Service Area,Service Division,Expense Type,Expense Code,Detailed Expense Type,Payment Date,Transaction Number,Amount Exc Vat,Supplier Name
Children and Adult Services,Education,Transport,235005,Public Transport,01-May-2015,2895112-108808,657.60,ARRIVA NORTH EAST LTD.
Children and Adult Services,Education,Third Party Payments,440999,Other Third Party Payments,01-May-2015,2895291-134,501.84,PATTINSON & MILBURN TRAINING LTD.
Children and Adult Services,Head of Adults,Third Party Payments,478101,Purchase of Care,01-May-2015,2895310-SI/00000849,"1,260.00",RICHMOND FELLOWSHIP.
Children and Adult Services,Public Health,Third Party Payments,460803,Contract Payments,01-May-2015,2895173-A83638/14/15,785.40,DR KS BALIGA.
Children and Adult Services,Public Health,Third Party Payments,460803,Contract Payments,01-May-2015,2895335-A83619/14/15,537.88,SOUTHDENE MEDICAL CENTRE.
Children and Adult Services,Public Health,Third Party Payments,460803,Contract Payments,01-May-2015,2895350-A83035/14/15,"1,009.12",THE WEARDALE PRACTICE.
Neighbourhood Services,Culture & Sport,Premises,106080,Centrally Controlled Rep and Maint,01-May-2015,2895103-29362696-61,"56,869.98",ADT FIRE & SECURITY PLC.
Neighbourhood Services,Culture & Sport,Premises,106080,Centrally Controlled Rep and Maint,01-May-2015,2895147-5173325,"1,210.81",CHUBB ELECTRONIC SECURITY SYSTEMS LTD.
Neighbourhood Services,Culture & Sport,Supplies and Services,312013,Newspapers Books and Periodicals,01-May-2015,2895113-4633580,555.04,ASKEWS & HOLTS LIBRARY SERVICES LTD.
Neighbourhood Services,Culture & Sport,Supplies and Services,312013,Newspapers Books and Periodicals,01-May-2015,2895113-4635709,547.32,ASKEWS & HOLTS LIBRARY SERVICES LTD.
Neighbourhood Services,Culture & Sport,Supplies and Services,312013,Newspapers Books and Periodicals,01-May-2015,2895113-4636019,524.45,ASKEWS & HOLTS LIBRARY SERVICES LTD.
Neighbourhood Services,Culture & Sport,Supplies and Services,338047,Services,01-May-2015,2895118-464,"3,235.89",BACK TO BROADWAY LTD.
Neighbourhood Services,Culture & Sport,Supplies and Services,338047,Services,01-May-2015,2895155-7498/TS,"3,102.86",COMEDY STORE MANAGEMENT.
Neighbourhood Services,Culture & Sport,Supplies and Services,338047,Services,01-May-2015,2895176,"2,055.37",DURHAM DRAMATIC SOCIETY.
Neighbourhood Services,Culture & Sport,Supplies and Services,338047,Services,01-May-2015,2895189-60199264,770.33,ENTERTAINMENT ONE UK LTD.
Neighbourhood Services,Culture & Sport,Supplies and Services,338047,Services,01-May-2015,2895189-60199266,819.69,ENTERTAINMENT ONE UK LTD.
Neighbourhood Services,Culture & Sport,Supplies and Services,338047,Services,01-May-2015,2895227-DARKNESSINLIGHT,"6,175.91",INTEROPERA.
Neighbourhood Services,Culture & Sport,Supplies and Services,338099,Services,01-May-2015,2895332-1038,"1,669.00",REDACTED - PAYMENT TO INDIVIDUAL
Neighbourhood Services,Culture & Sport,Supplies and Services,384956,Miscellaneous Expenses,01-May-2015,2895355-UKAPPL/93818,697.96,UKACTIVE.
Neighbourhood Services,Direct Services,Premises,106080,Centrally Controlled Rep and Maint,01-May-2015,2895322-96387658,"9,400.95",SCHNEIDER ELECTRIC LTD.
Neighbourhood Services,Direct Services,Premises,106082,Centrally Controlled Rep and Maint,01-May-2015,2895142-78206,779.40,CENTRAL POWER SERVICES LTD.
Neighbourhood Services,Direct Services,Supplies and Services,304221,Equipment and Materials,01-May-2015,2895246-827/039013,548.97,MAGNET LTD.
Neighbourhood Services,Direct Services,Supplies and Services,304221,Equipment and Materials,01-May-2015,2895246-827/039014,646.92,MAGNET LTD.
Neighbourhood Services,Direct Services,Supplies and Services,304221,Equipment and Materials,01-May-2015,2895290-XL138253,"1,208.00",PARK ELECTRICAL DISTRIBUTORS LTD.
Neighbourhood Services,Direct Services,Supplies and Services,304221,Equipment and Materials,01-May-2015,2895300-207625,"2,900.53",PLUMBING TRADE SUPPLIES LTD.
Neighbourhood Services,Direct Services,Supplies and Services,304221,Equipment and Materials,01-May-2015,2895363-6890186607,"5,253.77",VIESSMANN LTD.
Neighbourhood Services,Direct Services,Supplies and Services,304221,Equipment and Materials,01-May-2015,2895371-21578193,"1,754.48",WOLSELEY UK LTD.
Neighbourhood Services,Direct Services,Supplies and Services,304221,Equipment and Materials,01-May-2015,2895372-111412/M,"9,450.00",WYBONE LTD.
Neighbourhood Services,Direct Services,Supplies and Services,304252,Equipment and Materials,01-May-2015,2895247-SVS/90019102,"1,325.00",MAHA UK LTD.
Neighbourhood Services,Technical Services,Stock,926900,Stock in hand-Inventory system,01-May-2015,2895183-059-162139,"1,790.07",EDMUNDSON ELECTRICAL LTD.
RED HRA,Housing Revenue Account,Supplies and Services,338066,Services,01-May-2015,2895272,"117,535.44",NEPRO LTD.
RED HRA,Housing Revenue Account,Third Party Payments,430100,Rendered by Private Contractors,01-May-2015,2895179-SINV/00003622,"7,990.89",EAST DURHAM HOMES.
RED HRA,Housing Revenue Account,Third Party Payments,430100,Rendered by Private Contractors,01-May-2015,2895179-SINV/00003623,"6,729.80",EAST DURHAM HOMES.
RED HRA,Housing Revenue Account,Third Party Payments,430100,Rendered by Private Contractors,01-May-2015,2895179-SINV/00003624,"2,585.88",EAST DURHAM HOMES.
RED HRA,Housing Revenue Account,Third Party Payments,430100,Rendered by Private Contractors,01-May-2015,2895179-SINV/00003625,"4,139.28",EAST DURHAM HOMES.
Regeneration & Economic Development,Econ Dev and Regen Financing,Creditors,952146,Creditor-Section 106 agreement,01-May-2015,2895235-RES-04-2015-039,"6,092.00",LANCHESTER CRICKET CLUB.
Regeneration & Economic Development,Economic Development and Housing,Supplies and Services,304259,Equipment and Materials,01-May-2015,2895271-2015024757,"1,106.67",NEOPOST FINANCE LTD.
Regeneration & Economic Development,Economic Development and Housing,Supplies and Services,304337,Equipment and Materials,01-May-2015,2895339-SI020190,528.40,STRAITS TRADING CO LTD.
Regeneration & Economic Development,Economic Development and Housing,Supplies and Services,384700,Miscellaneous Expenses,01-May-2015,2895203-RED-04-2015-237,"1,000.00",G & B ELECTRICAL CONTRACTORS LTD.
Regeneration & Economic Development,Economic Development and Housing,Cap Exp on Grants & Other Financial Assistance (REFCUS),918401,Capital grants,01-May-2015,2895233-RED-04-2015-187,"13,891.60",K HARRISON (BUILDER) NE LTD.
Regeneration & Economic Development,Economic Development and Housing,Cap Exp on Grants & Other Financial Assistance (REFCUS),918401,Capital grants,01-May-2015,2895273-RED-04-2015-186,"4,430.00",NEW AGE PLUMBING & HEATING SERVICES.
Regeneration & Economic Development,Spatial Policy Planning Assets & Environment,Supplies and Services,372009,Subscriptions,01-May-2015,2895311-082774,"3,475.00",RICS BOOKS.
Regeneration & Economic Development,Spatial Policy Planning Assets & Environment,Supplies and Services,384956,Miscellaneous Expenses,01-May-2015,2895133-356/15GB,"9,975.00",BUREAU VAN DIJK ELECTRONIC PUBLISHING LTD.
Regeneration & Economic Development,Strategy Programmes and Performance,Employees,040149,Recruitment Instruction and Training,01-May-2015,2895209-2804,"3,146.35",GREENGAGE CONSULTING LTD.
Resources,Centrally Administered Costs,Supplies and Services,378002,Levies,01-May-2015,2895190-RES-04-2015-137,"103,696.25",ENVIRONMENT AGENCY.
Resources,Human Resources,Supplies and Services,342051,Computers and Communications,01-May-2015,2895149-C/PE130252,"49,975.60",CIVICA UK LTD.
Resources,I.C.T. Services,Supplies and Services,344033,Telephones,01-May-2015,2895117-11474828,"10,400.50",AZZURRI COMMUNICATIONS LTD.
Resources,I.C.T. Services,Supplies and Services,344033,Telephones,01-May-2015,2895117-11485426,"15,317.00",AZZURRI COMMUNICATIONS LTD.
Resources,I.C.T. Services,Stock,926900,Stock in hand-Inventory system,01-May-2015,2895373-X901057,982.44,XMA LTD.
Children and Adult Services,Central Charges (CYPS),Supplies and Services,372009,Subscriptions,05-May-2015,2895726-579554,"23,859.93",THE COPYRIGHT LICENSING AGENCY LTD.
Children and Adult Services,Childrens Services,Employees,080025,Agency Staff,05-May-2015,2895437-2306006,"1,697.50",CELSIAN.
Children and Adult Services,Childrens Services,Supplies and Services,304259,Equipment and Materials,05-May-2015,2895456-79992,799.44,CORPORATE COMPUTER SUPPLIES LTD.
Children and Adult Services,Childrens Services,Supplies and Services,324117,Provisions,05-May-2015,2895634-61947471,664.12,PHS GROUP PLC.
Children and Adult Services,Childrens Services,Supplies and Services,364352,Grants to Voluntary Organisations,05-May-2015,2895811-1023746,814.28,REDACTED - PAYMENT TO INDIVIDUAL
Children and Adult Services,Childrens Services,Third Party Payments,440027,Other Third Party Payments,05-May-2015,2896342-1025688,"1,614.24",REDACTED - PAYMENT TO INDIVIDUAL
Children and Adult Services,Childrens Services,Third Party Payments,440027,Other Third Party Payments,05-May-2015,2896349-1025315,840.84,REDACTED - PAYMENT TO INDIVIDUAL
Children and Adult Services,Childrens Services,Third Party Payments,440028,Other Third Party Payments,05-May-2015,2895784-1025680,941.64,REDACTED - PAYMENT TO INDIVIDUAL
Children and Adult Services,Childrens Services,Third Party Payments,440028,Other Third Party Payments,05-May-2015,2896129-1025275,941.64,REDACTED - PAYMENT TO INDIVIDUAL
Children and Adult Services,Childrens Services,Third Party Payments,440036,Other Third Party Payments,05-May-2015,2896052-1024104,879.60,REDACTED - PAYMENT TO INDIVIDUAL
Neighbourhood Services,Culture & Sport,Premises,120037,Energy Costs,05-May-2015,2895429-26680242,"1,250.86",CALOR GAS LTD.
Neighbourhood Services,Culture & Sport,Supplies and Services,304252,Equipment and Materials,05-May-2015,2895451-UK11925,603.75,COMPETITION LINE UK LTD.
Neighbourhood Services,Culture & Sport,Supplies and Services,338047,Services,05-May-2015,2895579-487,"4,746.46",MARK LUNDQUIST MLM CONCERTS LTD.
Neighbourhood Services,Culture & Sport,Supplies and Services,338099,Services,05-May-2015,2895722-14099,596.00,TEESDALE EVENT & SITE SERVICES LTD.
Neighbourhood Services,Culture & Sport,Supplies and Services,342053,Computers and Communications,05-May-2015,2895412-20259,"1,235.00",BLEEP 2000 COMPUTERS LTD T/A BLEEP COMPUTING.
Neighbourhood Services,Direct Services,Transport,210057,Repair and Maintenance of Vehicles,05-May-2015,2895440-312519,563.95,CHATFIELDS.
Neighbourhood Services,Direct Services,Transport,210057,Repair and Maintenance of Vehicles,05-May-2015,2895524-121266,522.18,GREENLAY (GRASS MACHINERY) LTD.
Neighbourhood Services,Direct Services,Transport,210057,Repair and Maintenance of Vehicles,05-May-2015,2895723-96311145,566.30,TERBERG MATEC (UK) LTD.
Neighbourhood Services,Direct Services,Supplies and Services,304221,Equipment and Materials,05-May-2015,2895575-827/039035,586.74,MAGNET LTD.
Neighbourhood Services,Direct Services,Supplies and Services,304221,Equipment and Materials,05-May-2015,2895575-827/039036,805.39,MAGNET LTD.
Neighbourhood Services,Direct Services,Supplies and Services,304221,Equipment and Materials,05-May-2015,2895575-827/039038,610.86,MAGNET LTD.
Neighbourhood Services,Direct Services,Supplies and Services,304221,Equipment and Materials,05-May-2015,2895625-XL140123,508.36,PARK ELECTRICAL DISTRIBUTORS LTD.
Neighbourhood Services,Direct Services,Supplies and Services,304221,Equipment and Materials,05-May-2015,2895639-NEI-EXP,"10,434.91",PLUMBING TRADE SUPPLIES LTD.
Neighbourhood Services,Direct Services,Supplies and Services,304221,Equipment and Materials,05-May-2015,2895685-335823000984,650.00,SIG ROOFING SUPPLIES.
Neighbourhood Services,Direct Services,Supplies and Services,304221,Equipment and Materials,05-May-2015,2895686-714517883457,695.72,SIG TRADING LTD.
Neighbourhood Services,Direct Services,Supplies and Services,304221,Equipment and Materials,05-May-2015,2895715-1550103,535.00,T CROSSLING & CO LTD.
Neighbourhood Services,Direct Services,Supplies and Services,304221,Equipment and Materials,05-May-2015,2895741-142056,676.92,TUDOR (UK) LTD T/A TUDOR ENVIRONMENTAL.
Neighbourhood Services,Direct Services,Supplies and Services,304259,Equipment and Materials,05-May-2015,2895741-142201,676.92,TUDOR (UK) LTD T/A TUDOR ENVIRONMENTAL.
Neighbourhood Services,Direct Services,Supplies and Services,304259,Equipment and Materials,05-May-2015,2895771-PS1130408,598.50,ZARGES (UK) LTD.
Neighbourhood Services,Direct Services,Third Party Payments,430100,Rendered by Private Contractors,05-May-2015,2895398-AV/15/456046,"3,981.90",ASSET ADVANTAGE LTD.
Neighbourhood Services,Direct Services,Third Party Payments,430100,Rendered by Private Contractors,05-May-2015,2895401-1499,"4,140.00",AWR ROOFING & ALUMIN RAINWATER SYSTEMS LTD.
Neighbourhood Services,Direct Services,Third Party Payments,430100,Rendered by Private Contractors,05-May-2015,2895421-82572022,812.67,BRISTOL STREET MOTORS.
Neighbourhood Services,Direct Services,Third Party Payments,430100,Rendered by Private Contractors,05-May-2015,2895519-A23318,960.00,GLASS ASSIST UK.
Neighbourhood Services,Direct Services,Third Party Payments,430100,Rendered by Private Contractors,05-May-2015,2895526-J4869,765.00,GROVE REED.
Neighbourhood Services,Direct Services,Third Party Payments,430100,Rendered by Private Contractors,05-May-2015,2895534-58615,964.00,HOGARTH COACHWORKS LTD.
Neighbourhood Services,Direct Services,Third Party Payments,430100,Rendered by Private Contractors,05-May-2015,2895599-5418,601.63,N1 JETTING SYSTEMS LTD.
Neighbourhood Services,Direct Services,Third Party Payments,430100,Rendered by Private Contractors,05-May-2015,2895668-1044,841.93,S JENNINGS LTD.
Neighbourhood Services,Direct Services,Vehicles Equipment Furniture and Fittings,912541,Purchase-vehicles,05-May-2015,2895720-529365,"44,354.16",TC HARRISON JCB.
Neighbourhood Services,Direct Services,Stock,926004,Stock,05-May-2015,2895524-121269,681.16,GREENLAY (GRASS MACHINERY) LTD.
Neighbourhood Services,Direct Services,Stock,926004,Stock,05-May-2015,2895531-530007,"6,011.20",HARVEST ENERGY LTD.
Neighbourhood Services,Direct Services,Stock,926004,Stock,05-May-2015,2895531-530927,"11,110.45",HARVEST ENERGY LTD.
Neighbourhood Services,Direct Services,Stock,926004,Stock,05-May-2015,2895604-INVDUR00312061,518.96,NE TRUCK SPARES LTD.
Neighbourhood Services,Direct Services,Stock,926004,Stock,05-May-2015,2895657-726871,538.88,RICKERBY LTD.
Neighbourhood Services,Projects and Business services,Supplies and Services,338027,Services,05-May-2015,2895656-700234.,"1,981.00",RESOURCE & ENVIRONMENTAL CONSULTANTS (REC) LTD.
Neighbourhood Services,Technical Services,Supplies and Services,304221,Equipment and Materials,05-May-2015,2895560-9032493810,547.50,LAFARGE TARMAC TRADING LTD.
Neighbourhood Services,Technical Services,Supplies and Services,304221,Equipment and Materials,05-May-2015,2895560-9032500007,547.50,LAFARGE TARMAC TRADING LTD.
Neighbourhood Services,Technical Services,Supplies and Services,304221,Equipment and Materials,05-May-2015,2895614-DI20211867,"1,849.32",NORTHERN POWERGRID (NORTHEAST) LTD.
Neighbourhood Services,Technical Services,Supplies and Services,304221,Equipment and Materials,05-May-2015,2895614-DI20211868,"2,353.68",NORTHERN POWERGRID (NORTHEAST) LTD.
Neighbourhood Services,Technical Services,Supplies and Services,304221,Equipment and Materials,05-May-2015,2895614-DI20211882,"6,984.64",NORTHERN POWERGRID (NORTHEAST) LTD.
Neighbourhood Services,Technical Services,Supplies and Services,304221,Equipment and Materials,05-May-2015,2895614-DI20211883,"6,400.51",NORTHERN POWERGRID (NORTHEAST) LTD.
Neighbourhood Services,Technical Services,Supplies and Services,304221,Equipment and Materials,05-May-2015,2895614-DI20211914,825.00,NORTHERN POWERGRID (NORTHEAST) LTD.
Neighbourhood Services,Technical Services,Third Party Payments,430100,Rendered by Private Contractors,05-May-2015,2895405-1447001,"5,053.74",BCE NORTHERN LTD.
Neighbourhood Services,Technical Services,Third Party Payments,430100,Rendered by Private Contractors,05-May-2015,2895405-1447002,"9,973.16",BCE NORTHERN LTD.
Neighbourhood Services,Technical Services,Stock,926900,Stock in hand-Inventory system,05-May-2015,2895538-32854A,"3,143.00",HUGH LOGAN ENGINEERING.
Neighbourhood Services,Technical Services,Stock,926900,Stock in hand-Inventory system,05-May-2015,2895763-21727759,"1,044.73",WOLSELEY UK LTD.
Regeneration & Economic Development,Economic Development and Housing,Supplies and Services,384437,Miscellaneous Expenses,05-May-2015,2895759-OrderNo1429793,"3,705.79",WESTERN UNION BUSINESS SOLUTIONS.
Regeneration & Economic Development,Economic Development and Housing,Supplies and Services,384700,Miscellaneous Expenses,05-May-2015,2895552-RED-05-2015-019,"1,000.00",JUST THE TOPS.
Regeneration & Economic Development,Economic Development and Housing,Cap Exp on Grants & Other Financial Assistance (REFCUS),918401,Capital grants,05-May-2015,2895379-RED-05-2015-009,"4,321.00",A OGILVIE BUILDING CONTRACTORS LTD.
Regeneration & Economic Development,Economic Development and Housing,Cap Exp on Grants & Other Financial Assistance (REFCUS),918401,Capital grants,05-May-2015,2895379-RED-05-2015-014,"3,000.00",A OGILVIE BUILDING CONTRACTORS LTD.
Regeneration & Economic Development,Economic Development and Housing,Cap Exp on Grants & Other Financial Assistance (REFCUS),918401,Capital grants,05-May-2015,2895465-RED-05-2015-018,"1,220.36",REDACTED - PAYMENT TO INDIVIDUAL
Regeneration & Economic Development,Economic Development and Housing,Cap Exp on Grants & Other Financial Assistance (REFCUS),918401,Capital grants,05-May-2015,2895512-RED-04-2015-170,"8,000.00",FULLERTON ELECTRICAL.
Regeneration & Economic Development,Economic Development and Housing,Cap Exp on Grants & Other Financial Assistance (REFCUS),918401,Capital grants,05-May-2015,2895545-RED-05-2015-010,"5,300.00",JAMES KIRWIN PLUMBING & HEATING.
Regeneration & Economic Development,Economic Development and Housing,Cap Exp on Grants & Other Financial Assistance (REFCUS),918401,Capital grants,05-May-2015,2895553-RED-05-2015-011,"4,563.50",K HARRISON (BUILDER) NE LTD.
Regeneration & Economic Development,Economic Development and Housing,Cap Exp on Grants & Other Financial Assistance (REFCUS),918401,Capital grants,05-May-2015,2895734-RED-05-2015-007,"1,475.00",THYSSENKRUPP ENCASA A DIVISION OF THYSSENKRUPP ACCESS LTD.
Regeneration & Economic Development,Economic Development and Housing,Cap Exp on Grants & Other Financial Assistance (REFCUS),918401,Capital grants,05-May-2015,2895734-RED-05-2015-012,"3,605.00",THYSSENKRUPP ENCASA A DIVISION OF THYSSENKRUPP ACCESS LTD.
Regeneration & Economic Development,Economic Development and Housing,Cap Exp on Grants & Other Financial Assistance (REFCUS),918401,Capital grants,05-May-2015,2895734-RED-05-2015-013,"1,400.00",THYSSENKRUPP ENCASA A DIVISION OF THYSSENKRUPP ACCESS LTD.
Regeneration & Economic Development,Economic Development and Housing,Cap Exp on Grants & Other Financial Assistance (REFCUS),918401,Capital grants,05-May-2015,2895734-RED-05-2015-015,"5,005.00",THYSSENKRUPP ENCASA A DIVISION OF THYSSENKRUPP ACCESS LTD.
Regeneration & Economic Development,Economic Development and Housing,Cap Exp on Grants & Other Financial Assistance (REFCUS),918401,Capital grants,05-May-2015,2895734-RED-05-2015-016,"1,360.00",THYSSENKRUPP ENCASA A DIVISION OF THYSSENKRUPP ACCESS LTD.
Regeneration & Economic Development,Spatial Policy Planning Assets & Environment,Supplies and Services,384700,Miscellaneous Expenses,05-May-2015,2895593-RED-04-2015-239,"1,499.00",REDACTED - PAYMENT TO INDIVIDUAL
Regeneration & Economic Development,Transport and Contracted Services,Supplies and Services,336005,Advertising,05-May-2015,2895706-9307,"24,000.00",STAR RADIO.
Resources,Financial Services,Transfer Payments,520002,Housing Benefits,05-May-2015,2895468,"1,801.95",DALE & VALLEY HOMES.
Resources,Financial Services,Transfer Payments,520002,Housing Benefits,05-May-2015,2895483,"8,882.47",DURHAM CITY HOMES LTD.
Resources,Financial Services,Transfer Payments,520002,Housing Benefits,05-May-2015,2895487,"8,973.52",EAST DURHAM HOMES.
Resources,Human Resources,Supplies and Services,338380,Services,05-May-2015,2895624-11852,"1,661.00",P & A MEDICAL LTD.
Resources,I.C.T. Services,Stock,926900,Stock in hand-Inventory system,05-May-2015,2895477-7402200364,"3,576.96",DELL COMPUTER CORPORATION LTD.
Children and Adult Services,Childrens Services,Employees,080025,Agency Staff,06-May-2015,2896480-325865,"147,895.88",DE POEL MANAGED SERVICES LTD.
Children and Adult Services,Childrens Services,Employees,080025,Agency Staff,06-May-2015,2896770-4810004590,"6,592.00",TEES ESK & WEAR VALLEYS NHS FOUNDATION TRUST.
Children and Adult Services,Childrens Services,Employees,080025,Agency Staff,06-May-2015,2896770-4810004837,"6,592.00",TEES ESK & WEAR VALLEYS NHS FOUNDATION TRUST.
Children and Adult Services,Childrens Services,Premises,125009,Rents,06-May-2015,2896778-GH3731,"1,010.59",THE GREENHOUSE COMPANY (GROUNDWORK) LTD.
Children and Adult Services,Childrens Services,Transport,235073,Public Transport,06-May-2015,2896771-836,688.56,TEESDALE COMMUNITY RESOURCES (TCR) LTD.
Children and Adult Services,Childrens Services,Transport,240045,Car Allowances,06-May-2015,2896739-4152,"71,856.35",SOCIAL RESOURCE CENTRE LTD.
Children and Adult Services,Childrens Services,Supplies and Services,352001,Conference Expenses,06-May-2015,2896485-PK084572,525.00,DODS PARLIAMENTARY COMMUNICATIONS.
Children and Adult Services,Childrens Services,Supplies and Services,364352,Grants to Voluntary Organisations,06-May-2015,2896751-D1IN/00018402,"1,657.08",STONHAM HOUSING ASSOCIATION LTD.
Children and Adult Services,Childrens Services,Supplies and Services,384199,Miscellaneous Expenses,06-May-2015,2896483-2525927,"1,401.48",DEPARTMENT FOR WORK & PENSIONS.
Children and Adult Services,Childrens Services,Supplies and Services,384199,Miscellaneous Expenses,06-May-2015,2896483-2925925,"1,055.14",DEPARTMENT FOR WORK & PENSIONS.
Children and Adult Services,Childrens Services,Supplies and Services,384199,Miscellaneous Expenses,06-May-2015,2896649-3610015214,"14,990.42",NORTH TEES & HARTLEPOOL NHS FOUNDATION TRUST.
Children and Adult Services,Childrens Services,Third Party Payments,425040,Rendered by Voluntary Organisations,06-May-2015,2896707-1158,936.19,ROCSOLID.
Children and Adult Services,Childrens Services,Third Party Payments,440999,Other Third Party Payments,06-May-2015,2896770-4810004591,"3,500.00",TEES ESK & WEAR VALLEYS NHS FOUNDATION TRUST.
Children and Adult Services,Childrens Services,Third Party Payments,440999,Other Third Party Payments,06-May-2015,2896770-4810004838,"3,500.00",TEES ESK & WEAR VALLEYS NHS FOUNDATION TRUST.
Children and Adult Services,Childrens Services,Third Party Payments,486044,Service Level Agreements,06-May-2015,2896770-4810004617,"3,560.67",TEES ESK & WEAR VALLEYS NHS FOUNDATION TRUST.
Children and Adult Services,Childrens Services,Third Party Payments,486044,Service Level Agreements,06-May-2015,2896770-4810004869,"3,560.67",TEES ESK & WEAR VALLEYS NHS FOUNDATION TRUST.
Children and Adult Services,Childrens Services,Third Party Payments,486046,Service Level Agreements,06-May-2015,2896633-35161,"8,003.75",NATIONAL YOUTH ADVOCACY SERVICE.
Children and Adult Services,Commissioning inc Supporting People,Supplies and Services,384199,Miscellaneous Expenses,06-May-2015,2896458-15/16/004,"15,000.00",CORNFORTH PARTNERSHIP.
Children and Adult Services,Education,Transport,230006,Contract Hire,06-May-2015,2896567-0013,825.00,JOHN WARE T/A J & K TAXIS.
Children and Adult Services,Education,Transport,230006,Contract Hire,06-May-2015,2896584-1043,"1,030.00",LD TAXIS.
Children and Adult Services,Education,Transport,230006,Contract Hire,06-May-2015,2896660-F613-APRIL2015,"1,131.00",PAUL ROSE T/A PAUL`S TAXIS.
Children and Adult Services,Education,Transport,230006,Contract Hire,06-May-2015,2896764-DCC/2015/19,770.00,TAYLOR`S TAXIS.
Children and Adult Services,Education,Transport,230007,Contract Hire,06-May-2015,2896461-DCC/4029/APRIL15,"1,386.00",COUNTY COACHES.
Children and Adult Services,Education,Transport,230007,Contract Hire,06-May-2015,2896513-17275,"12,857.34",GARNETTS LTD (COACHES).
Children and Adult Services,Education,Transport,230007,Contract Hire,06-May-2015,2896561-720,700.00,JDS PRIVATE HIRE DURHAM.
Children and Adult Services,Education,Transport,230007,Contract Hire,06-May-2015,2896562-2391,"1,322.86",JEFF ANDERSON COACHES LTD.
Children and Adult Services,Education,Transport,230007,Contract Hire,06-May-2015,2896570-SJPS14,868.00,JOVIAL PRIVATE HIRE.
Children and Adult Services,Education,Transport,230007,Contract Hire,06-May-2015,2896573-1186-1/5/15,630.00,K & R TAXIS.
Children and Adult Services,Education,Transport,230007,Contract Hire,06-May-2015,2896661-1412-30/4/15,756.00,PAUL WATSON TRAVEL.
Children and Adult Services,Education,Transport,230007,Contract Hire,06-May-2015,2896661-1413-30/4/15,"1,820.00",PAUL WATSON TRAVEL.
Children and Adult Services,Education,Transport,230007,Contract Hire,06-May-2015,2896729-71729,700.00,SHOTTON PRIVATE HIRE.
Children and Adult Services,Education,Transport,230007,Contract Hire,06-May-2015,2896747-003,980.00,STAR CABS - WEST AUCKLAND.
Children and Adult Services,Education,Transport,230007,Contract Hire,06-May-2015,2896758-30204A,"1,689.60",T MOORE & SON.
Children and Adult Services,Education,Transport,230008,Contract Hire,06-May-2015,2896394-16/2015,840.00,A & P TAXIS.
Children and Adult Services,Education,Transport,230008,Contract Hire,06-May-2015,2896396-A220763,"1,064.00",A MURRAY TRAVEL.
Children and Adult Services,Education,Transport,230008,Contract Hire,06-May-2015,2896397-0242,627.00,ABC & OUSTON CABS.
Children and Adult Services,Education,Transport,230008,Contract Hire,06-May-2015,2896397-0244,"2,014.00",ABC & OUSTON CABS.
Children and Adult Services,Education,Transport,230008,Contract Hire,06-May-2015,2896397-0245,"1,288.00",ABC & OUSTON CABS.
Children and Adult Services,Education,Transport,230008,Contract Hire,06-May-2015,2896397-0246,"2,212.00",ABC & OUSTON CABS.
Children and Adult Services,Education,Transport,230008,Contract Hire,06-May-2015,2896421-113,665.00,BG TAXIS.
Children and Adult Services,Education,Transport,230008,Contract Hire,06-May-2015,2896469-57,840.00,D CROOK T/A CK TAXIS.
Children and Adult Services,Education,Transport,230008,Contract Hire,06-May-2015,2896470-1398,672.00,DA TAXIS.
Children and Adult Services,Education,Transport,230008,Contract Hire,06-May-2015,2896471-119,882.00,DA TRAVEL.
Children and Adult Services,Education,Transport,230008,Contract Hire,06-May-2015,2896471-120,770.00,DA TRAVEL.
Children and Adult Services,Education,Transport,230008,Contract Hire,06-May-2015,2896535-30,"1,155.00",HENRYS TAXIS.
Children and Adult Services,Education,Transport,230008,Contract Hire,06-May-2015,2896546-19,840.00,IAN SHEPLEY T/A SHEPPA`S TAXIS.
Children and Adult Services,Education,Transport,230008,Contract Hire,06-May-2015,2896557-88,700.00,JACK`S TAXIS.
Children and Adult Services,Education,Transport,230008,Contract Hire,06-May-2015,2896561-703,"1,120.00",JDS PRIVATE HIRE DURHAM.
Children and Adult Services,Education,Transport,230008,Contract Hire,06-May-2015,2896561-704,"1,064.00",JDS PRIVATE HIRE DURHAM.
Children and Adult Services,Education,Transport,230008,Contract Hire,06-May-2015,2896561-705,896.00,JDS PRIVATE HIRE DURHAM.
Children and Adult Services,Education,Transport,230008,Contract Hire,06-May-2015,2896561-706,999.60,JDS PRIVATE HIRE DURHAM.
Children and Adult Services,Education,Transport,230008,Contract Hire,06-May-2015,2896561-707,728.00,JDS PRIVATE HIRE DURHAM.
Children and Adult Services,Education,Transport,230008,Contract Hire,06-May-2015,2896561-709,"1,430.00",JDS PRIVATE HIRE DURHAM.
Children and Adult Services,Education,Transport,230008,Contract Hire,06-May-2015,2896561-711,756.00,JDS PRIVATE HIRE DURHAM.
Children and Adult Services,Education,Transport,230008,Contract Hire,06-May-2015,2896561-712,"1,375.00",JDS PRIVATE HIRE DURHAM.
Children and Adult Services,Education,Transport,230008,Contract Hire,06-May-2015,2896561-713,700.00,JDS PRIVATE HIRE DURHAM.
Children and Adult Services,Education,Transport,230008,Contract Hire,06-May-2015,2896561-714,960.00,JDS PRIVATE HIRE DURHAM.
Children and Adult Services,Education,Transport,230008,Contract Hire,06-May-2015,2896568-77,"1,498.50",JOHNS TAXIS (CHESTER LE STREET).
Children and Adult Services,Education,Transport,230008,Contract Hire,06-May-2015,2896570-M0368,686.00,JOVIAL PRIVATE HIRE.
Children and Adult Services,Education,Transport,230008,Contract Hire,06-May-2015,2896570-NO308,"1,162.00",JOVIAL PRIVATE HIRE.
Children and Adult Services,Education,Transport,230008,Contract Hire,06-May-2015,2896575-8-30/4/15,"2,800.00",KD TAXIS.
Children and Adult Services,Education,Transport,230008,Contract Hire,06-May-2015,2896579-8,"1,732.00",KT TAXIS.
Children and Adult Services,Education,Transport,230008,Contract Hire,06-May-2015,2896591-2119,"1,064.00",LOCAL TRANSPORT LTD.
Children and Adult Services,Education,Transport,230008,Contract Hire,06-May-2015,2896591-2120,560.00,LOCAL TRANSPORT LTD.
Children and Adult Services,Education,Transport,230008,Contract Hire,06-May-2015,2896595-79,"1,540.00",M BUTCHER T/A KIDDI CABS.
Children and Adult Services,Education,Transport,230008,Contract Hire,06-May-2015,2896600-041501,"1,848.00",MARK & JOHN CHISHOLM T/A (CHEVRON).
Children and Adult Services,Education,Transport,230008,Contract Hire,06-May-2015,2896600-041503,980.00,MARK & JOHN CHISHOLM T/A (CHEVRON).
Children and Adult Services,Education,Transport,230008,Contract Hire,06-May-2015,2896600-041505,812.00,MARK & JOHN CHISHOLM T/A (CHEVRON).
Children and Adult Services,Education,Transport,230008,Contract Hire,06-May-2015,2896600-041506,665.00,MARK & JOHN CHISHOLM T/A (CHEVRON).
Children and Adult Services,Education,Transport,230008,Contract Hire,06-May-2015,2896612-KDC010415,"1,813.00",MJ TIMNEY T/A KDC & C&M TAXIS.
Children and Adult Services,Education,Transport,230008,Contract Hire,06-May-2015,2896617-2014-88,"1,260.00",MR D KEMP T/A ACE EXECUTIVE.
Children and Adult Services,Education,Transport,230008,Contract Hire,06-May-2015,2896624-AA307,"1,890.00",MR T GUNN.
Children and Adult Services,Education,Transport,230008,Contract Hire,06-May-2015,2896680-150407,"1,435.00",PRATTS TAXIS.
Children and Adult Services,Education,Transport,230008,Contract Hire,06-May-2015,2896680-150408,784.00,PRATTS TAXIS.
Children and Adult Services,Education,Transport,230008,Contract Hire,06-May-2015,2896680-150410,"1,120.00",PRATTS TAXIS.
Children and Adult Services,Education,Transport,230008,Contract Hire,06-May-2015,2896704-335,"1,064.00",ROAD RUNNERS (NE) LTD.
Children and Adult Services,Education,Transport,230008,Contract Hire,06-May-2015,2896704-337,910.00,ROAD RUNNERS (NE) LTD.
Children and Adult Services,Education,Transport,230008,Contract Hire,06-May-2015,2896709-018,"1,190.00",RONS TAXI.
Children and Adult Services,Education,Transport,230008,Contract Hire,06-May-2015,2896728-32,880.00,SHARON`S TAXI.
Children and Adult Services,Education,Transport,230008,Contract Hire,06-May-2015,2896729-71730,792.00,SHOTTON PRIVATE HIRE.
Children and Adult Services,Education,Transport,230008,Contract Hire,06-May-2015,2896729-71732,"1,430.00",SHOTTON PRIVATE HIRE.
Children and Adult Services,Education,Transport,230008,Contract Hire,06-May-2015,2896729-71733,"1,356.00",SHOTTON PRIVATE HIRE.
Children and Adult Services,Education,Transport,230008,Contract Hire,06-May-2015,2896729-71734,588.00,SHOTTON PRIVATE HIRE.
Children and Adult Services,Education,Transport,230008,Contract Hire,06-May-2015,2896734-46,"1,030.50",SIMONS TAXIS.
Children and Adult Services,Education,Transport,230008,Contract Hire,06-May-2015,2896748-00034,675.00,STEVES TAXIS.
Children and Adult Services,Education,Transport,230008,Contract Hire,06-May-2015,2896760-B724,"1,325.00",TALBOTS TRAVEL LTD.
Children and Adult Services,Education,Transport,230008,Contract Hire,06-May-2015,2896760-B725,831.00,TALBOTS TRAVEL LTD.
Children and Adult Services,Education,Transport,230008,Contract Hire,06-May-2015,2896762-4-30/4/15,971.60,TALLA`S TAXIS.
Children and Adult Services,Education,Transport,230008,Contract Hire,06-May-2015,2896764-DCC/2015/22,840.00,TAYLOR`S TAXIS.
Children and Adult Services,Education,Transport,230008,Contract Hire,06-May-2015,2896793-30,"1,274.00",TT TAXIS.
Children and Adult Services,Education,Transport,230009,Contract Hire,06-May-2015,2896561-710,784.00,JDS PRIVATE HIRE DURHAM.
Children and Adult Services,Education,Transport,230009,Contract Hire,06-May-2015,2896623-7244-MAR,680.00,MR S BALL T/A ABBIE`S TAXIS..
Children and Adult Services,Education,Supplies and Services,338027,Services,06-May-2015,2896425-4194860,"2,446.00",BOND DICKINSON LLP.
Children and Adult Services,Education,Supplies and Services,338099,Services,06-May-2015,2896691-DMS001,"2,500.00",RE SMITH.
Children and Adult Services,Education,Third Party Payments,440999,Other Third Party Payments,06-May-2015,2896398-DOC02272,"2,779.20",ACUMEN COMMUNITY ENTERPRISE DEVELOPMENT TRUST LTD.
Children and Adult Services,Education,Third Party Payments,440999,Other Third Party Payments,06-May-2015,2896398-INV02018,"3,705.60",ACUMEN COMMUNITY ENTERPRISE DEVELOPMENT TRUST LTD.
Children and Adult Services,Education,Construction Work,908105,Construction work,06-May-2015,2896399-29377309-61,"2,476.00",ADT FIRE & SECURITY PLC.
Children and Adult Services,Education,Construction Work,908105,Construction work,06-May-2015,2896551-DURH/0618,"2,157,578.00",INSPIREDSPACES DURHAM LTD.
Children and Adult Services,Head of Adults,Transport,230005,Contract Hire,06-May-2015,239582-01032015,800.00,BENNETTS TAXIS.
Children and Adult Services,Head of Adults,Transport,230005,Contract Hire,06-May-2015,2896423-2017,928.00,BOBBY DOVE.
Children and Adult Services,Head of Adults,Transport,230005,Contract Hire,06-May-2015,2896464-5160,"2,161.60",CROFT BUSINESS SERVICES (UK) LTD T/A CROFT TAXIS.
Children and Adult Services,Head of Adults,Transport,230005,Contract Hire,06-May-2015,2896596-29,"1,162.00",MA BODDY.
Children and Adult Services,Head of Adults,Transport,230005,Contract Hire,06-May-2015,2896619-66152,"1,640.00",MR GN ROBBINS T/A GNR MINIBUS HIRE.
Children and Adult Services,Head of Adults,Transport,230005,Contract Hire,06-May-2015,2896812-981,"1,200.00",WAYNE`S TAXIS.
Children and Adult Services,Head of Adults,Transport,230005,Contract Hire,06-May-2015,2896812-983,"2,554.00",WAYNE`S TAXIS.
Children and Adult Services,Head of Adults,Transport,230005,Contract Hire,06-May-2015,2896812-984,900.00,WAYNE`S TAXIS.
Children and Adult Services,Head of Adults,Supplies and Services,304516,Equipment and Materials,06-May-2015,2896671-01264,650.50,PHILLIPS TAXI GROUP LTD.
Children and Adult Services,Head of Adults,Third Party Payments,478101,Purchase of Care,06-May-2015,2896702-20732,"1,815.36",RIVERSIDE GROUP LTD.
Children and Adult Services,Head of Adults,Third Party Payments,478111,Purchase of Care,06-May-2015,2896606-2124662,"1,501.20",MENCAP.
Dedicated Schools Grant,Dedicated Schools Grant,Transport,230010,Contract Hire,06-May-2015,239618-3,"1,140.00",REDACTED - PAYMENT TO INDIVIDUAL
Dedicated Schools Grant,Dedicated Schools Grant,Transport,230010,Contract Hire,06-May-2015,2896558-L026H,910.00,JAFFAS TAXIS.
Dedicated Schools Grant,Dedicated Schools Grant,Transport,230010,Contract Hire,06-May-2015,2896584-1042,"1,402.00",LD TAXIS.
Dedicated Schools Grant,Dedicated Schools Grant,Transport,230010,Contract Hire,06-May-2015,2896600-041411,940.00,MARK & JOHN CHISHOLM T/A (CHEVRON).
Dedicated Schools Grant,Dedicated Schools Grant,Transport,230010,Contract Hire,06-May-2015,2896680-150411,868.00,PRATTS TAXIS.
Dedicated Schools Grant,Dedicated Schools Grant,Transport,230010,Contract Hire,06-May-2015,2896704-338,700.00,ROAD RUNNERS (NE) LTD.
Dedicated Schools Grant,Dedicated Schools Grant,Transport,230010,Contract Hire,06-May-2015,2896764-DCC/2015/20,"1,092.00",TAYLOR`S TAXIS.
Dedicated Schools Grant,Dedicated Schools Grant,Transport,230010,Contract Hire,06-May-2015,2896764-DCC/2015/21,"1,228.00",TAYLOR`S TAXIS.
Dedicated Schools Grant,Dedicated Schools Grant,Transport,230010,Contract Hire,06-May-2015,2896764-DCC/2015/23,966.00,TAYLOR`S TAXIS.
Dedicated Schools Grant,Dedicated Schools Grant,Third Party Payments,425005,Rendered by Voluntary Organisations,06-May-2015,2896543-4140000321,"15,000.00",HURWORTH HOUSE PRIORY.
Dedicated Schools Grant,Dedicated Schools Grant,Third Party Payments,440080,Other Third Party Payments,06-May-2015,2896543-4140000320,"15,000.00",HURWORTH HOUSE PRIORY.
Dedicated Schools Grant,Dedicated Schools Grant,Transfer Payments,510032,School Children,06-May-2015,2896489-381574,"3,021.29",EARLY EXCELLENCE LTD.
Neighbourhood Services,Culture & Sport,Premises,108301,Service Repairs and Maintenance,06-May-2015,2896583-01-2015,"2,370.00",LAURIE LAMBETH.
Neighbourhood Services,Culture & Sport,Supplies and Services,338047,Services,06-May-2015,239595-AH220415,"2,856.38",GTA MUSIC AGENTS.
Neighbourhood Services,Culture & Sport,Supplies and Services,338047,Services,06-May-2015,239639-1997,650.00,TONI WEEKES.
Neighbourhood Services,Culture & Sport,Supplies and Services,338047,Services,06-May-2015,2896451-7510/M,"2,058.61",COMEDY STORE MANAGEMENT.
Neighbourhood Services,Culture & Sport,Supplies and Services,338047,Services,06-May-2015,2896659-R2093047,927.21,PARAMOUNT PICTURES UK.
Neighbourhood Services,Culture & Sport,Supplies and Services,338047,Services,06-May-2015,2896659-R2093048,764.50,PARAMOUNT PICTURES UK.
Neighbourhood Services,Culture & Sport,Supplies and Services,338047,Services,06-May-2015,2896659-R2093049,669.59,PARAMOUNT PICTURES UK.
Neighbourhood Services,Culture & Sport,Supplies and Services,338047,Services,06-May-2015,2896659-R2093050,752.40,PARAMOUNT PICTURES UK.
Neighbourhood Services,Culture & Sport,Supplies and Services,384199,Miscellaneous Expenses,06-May-2015,2896801-001/04/15,"1,256.00",URBAN RAJAH CREATE LTD.
Neighbourhood Services,Culture & Sport,Supplies and Services,384700,Miscellaneous Expenses,06-May-2015,2896491-NEI-EXP,"3,600.00",EASINGTON HARES RUNNING CLUB.
Neighbourhood Services,Culture & Sport,Third Party Payments,430105,Rendered by Private Contractors,06-May-2015,2896673-62159012,995.49,PHS GROUP PLC.
Neighbourhood Services,Culture & Sport,Income,715699,Sales,06-May-2015,2896740-GDB000085,864.80,SOCIETY OF LONDON THEATRE.
Neighbourhood Services,Direct Services,Premises,150015,Apportioned Exps of Operational Blds,06-May-2015,2896814-377788,664.95,WERNICK HIRE LTD.
Neighbourhood Services,Direct Services,Supplies and Services,304221,Equipment and Materials,06-May-2015,2896580-9032483619,634.80,LAFARGE TARMAC TRADING LTD.
Neighbourhood Services,Direct Services,Supplies and Services,304221,Equipment and Materials,06-May-2015,2896677-218632,991.17,PLUMBING TRADE SUPPLIES LTD.
Neighbourhood Services,Direct Services,Supplies and Services,304221,Equipment and Materials,06-May-2015,2896698-168930,"17,080.00",RICKERBY LTD.
Neighbourhood Services,Direct Services,Supplies and Services,372009,Subscriptions,06-May-2015,2896450-1678,"1,260.00",CO WHEELS CAR CLUB CIC.
Neighbourhood Services,Direct Services,Supplies and Services,384974,Miscellaneous Expenses,06-May-2015,2896804-NEI-EXP,"60,000.00",VEHICLE & OPERATOR SERVICES AGENCY (VOSA).
Neighbourhood Services,Direct Services,Third Party Payments,430100,Rendered by Private Contractors,06-May-2015,2896442-106,"2,207.59",CEILINGS DIRECT LTD.
Neighbourhood Services,Direct Services,Third Party Payments,430100,Rendered by Private Contractors,06-May-2015,2896545-2182,999.00,IAN C LIDDLE.
Neighbourhood Services,Direct Services,Third Party Payments,430100,Rendered by Private Contractors,06-May-2015,2896545-2183,999.00,IAN C LIDDLE.
Neighbourhood Services,Direct Services,Third Party Payments,430100,Rendered by Private Contractors,06-May-2015,2896545-2188,999.00,IAN C LIDDLE.
Neighbourhood Services,Direct Services,Third Party Payments,430100,Rendered by Private Contractors,06-May-2015,2896574-6381,550.00,KAEFER C & D - KD SCAFFOLDING DIVISION.
Neighbourhood Services,Direct Services,Vehicles Equipment Furniture and Fittings,912541,Purchase-vehicles,06-May-2015,2896419-113175,"144,702.00",BELL TRUCK SALES LTD.
Neighbourhood Services,Direct Services,Vehicles Equipment Furniture and Fittings,912541,Purchase-vehicles,06-May-2015,2896419-113252,"144,702.00",BELL TRUCK SALES LTD.
Neighbourhood Services,Direct Services,Vehicles Equipment Furniture and Fittings,912541,Purchase-vehicles,06-May-2015,2896419-113253,"144,702.00",BELL TRUCK SALES LTD.
Neighbourhood Services,Direct Services,Vehicles Equipment Furniture and Fittings,912541,Purchase-vehicles,06-May-2015,2896419-113254,"144,702.00",BELL TRUCK SALES LTD.
Neighbourhood Services,Direct Services,Vehicles Equipment Furniture and Fittings,912541,Purchase-vehicles,06-May-2015,2896419-113255,"144,702.00",BELL TRUCK SALES LTD.
Neighbourhood Services,Projects and Business services,Employees,040149,Recruitment Instruction and Training,06-May-2015,239622-NEI-INC-04-2015-027,603.75,REDACTED - PAYMENT TO INDIVIDUAL
Neighbourhood Services,Technical Services,Supplies and Services,304221,Equipment and Materials,06-May-2015,2896401-21276824,"1,168.63",AGGREGATE INDUSTRIES UK LTD.
Neighbourhood Services,Technical Services,Supplies and Services,304221,Equipment and Materials,06-May-2015,2896401-21278826,"1,005.87",AGGREGATE INDUSTRIES UK LTD.
Neighbourhood Services,Technical Services,Supplies and Services,304221,Equipment and Materials,06-May-2015,2896580-9032508336,665.41,LAFARGE TARMAC TRADING LTD.
Neighbourhood Services,Technical Services,Third Party Payments,430100,Rendered by Private Contractors,06-May-2015,2896569-0137,"5,084.80",JOSHUA THOMAS CONSTRUCTION LTD.
Neighbourhood Services,Technical Services,Third Party Payments,430100,Rendered by Private Contractors,06-May-2015,2896569-0145,"2,542.40",JOSHUA THOMAS CONSTRUCTION LTD.
Neighbourhood Services,Technical Services,Third Party Payments,430100,Rendered by Private Contractors,06-May-2015,2896569-0150,"3,463.20",JOSHUA THOMAS CONSTRUCTION LTD.
Neighbourhood Services,Technical Services,Third Party Payments,430100,Rendered by Private Contractors,06-May-2015,2896569-0151,"3,358.40",JOSHUA THOMAS CONSTRUCTION LTD.
Neighbourhood Services,Technical Services,Third Party Payments,430100,Rendered by Private Contractors,06-May-2015,2896569-0156,"8,683.20",JOSHUA THOMAS CONSTRUCTION LTD.
Neighbourhood Services,Technical Services,Third Party Payments,430100,Rendered by Private Contractors,06-May-2015,2896569-0161,"7,186.00",JOSHUA THOMAS CONSTRUCTION LTD.
Neighbourhood Services,Technical Services,Third Party Payments,460350,Contract Payments,06-May-2015,2896597-5089,"1,173.50",MAKEPEACE MOTORS.
Neighbourhood Services,Technical Services,Third Party Payments,460350,Contract Payments,06-May-2015,2896597-5090,"1,173.50",MAKEPEACE MOTORS.
Neighbourhood Services,Technical Services,Third Party Payments,460350,Contract Payments,06-May-2015,2896597-5092,"1,119.00",MAKEPEACE MOTORS.
Neighbourhood Services,Technical Services,Third Party Payments,460350,Contract Payments,06-May-2015,2896597-5093,"1,119.00",MAKEPEACE MOTORS.
Neighbourhood Services,Technical Services,Third Party Payments,460350,Contract Payments,06-May-2015,2896597-5094,"1,309.00",MAKEPEACE MOTORS.
Neighbourhood Services,Technical Services,Third Party Payments,460350,Contract Payments,06-May-2015,2896597-5095,"1,272.00",MAKEPEACE MOTORS.
Neighbourhood Services,Technical Services,Construction Work,908105,Construction work,06-May-2015,239633-10157,689.27,SEAHAM HARBOUR CIC.
Neighbourhood Services,Technical Services,Stock,926900,Stock in hand-Inventory system,06-May-2015,2896572-STI416052,503.70,JT DOVE LTD.
Neighbourhood Services,Technical Services,Stock,926900,Stock in hand-Inventory system,06-May-2015,2896572-STI416123,834.20,JT DOVE LTD.
Neighbourhood Services,Technical Services,Stock,926900,Stock in hand-Inventory system,06-May-2015,2896572-STI417499,754.97,JT DOVE LTD.
Neighbourhood Services,Technical Services,Stock,926900,Stock in hand-Inventory system,06-May-2015,2896572-STI417564,"1,501.86",JT DOVE LTD.
Neighbourhood Services,Technical Services,Stock,926900,Stock in hand-Inventory system,06-May-2015,2896588-LFP/15/3309,927.25,LIFELINE FIRE PREVENTION LTD.
Neighbourhood Services,Technical Services,Stock,926900,Stock in hand-Inventory system,06-May-2015,2896817-19865728,"1,333.35",WOLSELEY UK LTD.
Regeneration & Economic Development,Economic Development and Housing,Supplies and Services,344033,Telephones,06-May-2015,2896761-05354101,"1,119.84",TALKTALK BUSINESS.
Regeneration & Economic Development,Economic Development and Housing,Supplies and Services,384700,Miscellaneous Expenses,06-May-2015,2896724-RED-04-2015-215,"1,000.00",SCOTT BRICKLAYERS.
Regeneration & Economic Development,Economic Development and Housing,Supplies and Services,384700,Miscellaneous Expenses,06-May-2015,2896815-RED-05-2015-023,"1,000.00",WESTFIELD HOUSE NURSERY.
Regeneration & Economic Development,Economic Development and Housing,Construction Work,908105,Construction work,06-May-2015,2896718-NEW3633,"3,895.55",SANDERSON WEATHERALL LLP.
Regeneration & Economic Development,Economic Development and Housing,Cap Exp on Grants & Other Financial Assistance (REFCUS),918401,Capital grants,06-May-2015,2896490-RED-05-2015-006,813.80,EASIBATHE LTD.
Regeneration & Economic Development,Economic Development and Housing,Cap Exp on Grants & Other Financial Assistance (REFCUS),918401,Capital grants,06-May-2015,2896694-RED-05-2015-005,750.00,REDGATE ARCHITECTURAL DESIGN.
Regeneration & Economic Development,Economic Development and Housing,Cap Exp on Grants & Other Financial Assistance (REFCUS),918401,Capital grants,06-May-2015,2896703-RED-04-2015-217,"4,370.00",REDACTED - PAYMENT TO INDIVIDUAL
Regeneration & Economic Development,Economic Development and Housing,Cap Exp on Grants & Other Financial Assistance (REFCUS),918401,Capital grants,06-May-2015,2896708-RED-05-2015-008,"3,904.00",RONDEN PROPERTIES LTD.
Regeneration & Economic Development,Economic Development and Housing,Cap Exp on Grants & Other Financial Assistance (REFCUS),918401,Capital grants,06-May-2015,2896711-RED-05-2015-004,"2,821.90",ROYCE CARSON BUILDING SERVICES.
Regeneration & Economic Development,Economic Development and Housing,Cap Exp on Grants & Other Financial Assistance (REFCUS),918401,Capital grants,06-May-2015,2896816-RED-05-2015-020,"12,304.00",WHITWORTH CHEMISTS LTD.
Regeneration & Economic Development,Spatial Policy Planning Assets & Environment,Premises,106082,Centrally Controlled Rep and Maint,06-May-2015,2896717-1863,511.04,SAFE STRIP UK LTD.
Regeneration & Economic Development,Transport and Contracted Services,Premises,135005,Water Services,06-May-2015,2896650-210340120093008,734.40,NORTHUMBRIAN WATER LTD.
Regeneration & Economic Development,Transport and Contracted Services,Third Party Payments,430106,Rendered by Private Contractors,06-May-2015,2896564-DCC4/15,"1,629.59",JOHN JAMES BRUNSKILL.
Regeneration & Economic Development,Transport and Contracted Services,Third Party Payments,430106,Rendered by Private Contractors,06-May-2015,2896570-LINK2INV65,"2,777.28",JOVIAL PRIVATE HIRE.
Regeneration & Economic Development,Transport and Contracted Services,Third Party Payments,430106,Rendered by Private Contractors,06-May-2015,2896720-101,"2,926.48",SB TRAVEL.
Regeneration & Economic Development,Transport and Contracted Services,Third Party Payments,430106,Rendered by Private Contractors,06-May-2015,2896746-13639,"10,995.71",STANLEY TRAVEL (NORTH EAST) LTD.
Resources,Centrally Administered Costs,Third Party Payments,440999,Other Third Party Payments,06-May-2015,239631-FN341909,"6,335.00",NORTH KESTEVEN DISTRICT COUNCIL.
Resources,I.C.T. Services,Supplies and Services,340001,Postages,06-May-2015,2896710-9049575341,"15,087.90",ROYAL MAIL GROUP PLC.
Resources,I.C.T. Services,Stock,926900,Stock in hand-Inventory system,06-May-2015,2896481-7402200759,"4,575.20",DELL COMPUTER CORPORATION LTD.
Resources,Legal & Democratic Services,Supplies and Services,340001,Postages,06-May-2015,2896710-9049198201,"1,098.95",ROYAL MAIL GROUP PLC.
Children and Adult Services,Childrens Services,Supplies and Services,384199,Miscellaneous Expenses,07-May-2015,2896914-2925438,"1,139.26",DEPARTMENT FOR WORK & PENSIONS.
Children and Adult Services,Childrens Services,Supplies and Services,384199,Miscellaneous Expenses,07-May-2015,2896914-2926007,"1,620.22",DEPARTMENT FOR WORK & PENSIONS.
Children and Adult Services,Childrens Services,Supplies and Services,384302,Miscellaneous Expenses,07-May-2015,2897074-215276,500.00,SIMPLY SPORT LTD.
Children and Adult Services,Childrens Services,Supplies and Services,384871,Miscellaneous Expenses,07-May-2015,2897079-4100485874,"1,044.00",SMARTT NORTH EAST LTD.
Children and Adult Services,Childrens Services,Third Party Payments,425019,Rendered by Voluntary Organisations,07-May-2015,2897028-0000020916,"44,945.61",NORTH EAST AUTISM SOCIETY.
Children and Adult Services,Childrens Services,Third Party Payments,479101,Purchase of Care,07-May-2015,2896889-3980009598,573.83,CO DURHAM & DARLINGTON NHS FOUNDATION TRUST.
Children and Adult Services,Education,Transport,230006,Contract Hire,07-May-2015,2896841-388032,532.00,ALAN SOUTHERN T/A ALANS TAXIS PELTON FELL.
Children and Adult Services,Education,Transport,230006,Contract Hire,07-May-2015,2897009-0415,532.00,MR DEREK HENDERSON.
Children and Adult Services,Education,Transport,230007,Contract Hire,07-May-2015,2896884-44856,980.00,CJ GRIERSON T/A GRIERSONS COACHES.
Children and Adult Services,Education,Transport,230007,Contract Hire,07-May-2015,2896884-44857,"3,360.00",CJ GRIERSON T/A GRIERSONS COACHES.
Children and Adult Services,Education,Transport,230007,Contract Hire,07-May-2015,2896884-44858,"3,224.00",CJ GRIERSON T/A GRIERSONS COACHES.
Children and Adult Services,Education,Transport,230007,Contract Hire,07-May-2015,2896884-44859,"1,365.00",CJ GRIERSON T/A GRIERSONS COACHES.
Children and Adult Services,Education,Transport,230007,Contract Hire,07-May-2015,2897006-007,693.00,MR A MILLWARD T/A SWISS CABS PRIVATE HIRE.
Children and Adult Services,Education,Transport,230007,Contract Hire,07-May-2015,2897013-TN019,588.00,MR THOMAS G GRIFFITHS T/A TNL TAXIS.
Children and Adult Services,Education,Transport,230007,Contract Hire,07-May-2015,2897053-290,896.00,PREMIER PRIVATE HIRE.
Children and Adult Services,Education,Transport,230007,Contract Hire,07-May-2015,2897057-355,"6,060.00",PYGALL COACH HIRE.
Children and Adult Services,Education,Transport,230007,Contract Hire,07-May-2015,2897057-356,"2,100.00",PYGALL COACH HIRE.
Children and Adult Services,Education,Transport,230007,Contract Hire,07-May-2015,2897057-357,"1,750.00",PYGALL COACH HIRE.
Children and Adult Services,Education,Transport,230007,Contract Hire,07-May-2015,2897057-358,"1,652.00",PYGALL COACH HIRE.
Children and Adult Services,Education,Transport,230007,Contract Hire,07-May-2015,2897060-2182,840.00,RICHIES TAXIS.
Children and Adult Services,Education,Transport,230007,Contract Hire,07-May-2015,2897080-2562,"2,576.00",SNOWDON COACHES.
Children and Adult Services,Education,Transport,230008,Contract Hire,07-May-2015,2896841-388132,560.00,ALAN SOUTHERN T/A ALANS TAXIS PELTON FELL.
Children and Adult Services,Education,Transport,230008,Contract Hire,07-May-2015,2896841-388232,968.50,ALAN SOUTHERN T/A ALANS TAXIS PELTON FELL.
Children and Adult Services,Education,Transport,230008,Contract Hire,07-May-2015,2896848-300415,770.00,AVALON TAXIS.
Children and Adult Services,Education,Transport,230008,Contract Hire,07-May-2015,2896854-43,"1,395.00",BEELINE TAXIS.
Children and Adult Services,Education,Transport,230008,Contract Hire,07-May-2015,2896904-1394,840.00,DA TAXIS.
Children and Adult Services,Education,Transport,230008,Contract Hire,07-May-2015,2896904-1395,826.00,DA TAXIS.
Children and Adult Services,Education,Transport,230008,Contract Hire,07-May-2015,2896905-123,938.00,DA TRAVEL.
Children and Adult Services,Education,Transport,230008,Contract Hire,07-May-2015,2896956-A053-30/4/15,845.00,HIPPY`S TAXI.
Children and Adult Services,Education,Transport,230008,Contract Hire,07-May-2015,2896983-110,798.00,LEE`S TAXIS.
Children and Adult Services,Education,Transport,230008,Contract Hire,07-May-2015,2896983-111,"1,176.00",LEE`S TAXIS.
Children and Adult Services,Education,Transport,230008,Contract Hire,07-May-2015,2896983-112,"1,098.00",LEE`S TAXIS.
Children and Adult Services,Education,Transport,230008,Contract Hire,07-May-2015,2896996-380415,952.00,MARK MUSGROVE T/A MARKS TAXIS.
Children and Adult Services,Education,Transport,230008,Contract Hire,07-May-2015,2896996-480415,598.00,MARK MUSGROVE T/A MARKS TAXIS.
Children and Adult Services,Education,Transport,230008,Contract Hire,07-May-2015,2897040-DCC27,675.00,PAUL`S TAXIS..
Children and Adult Services,Education,Transport,230008,Contract Hire,07-May-2015,2897040-DCC28,"1,120.00",PAUL`S TAXIS..
Children and Adult Services,Education,Transport,230008,Contract Hire,07-May-2015,2897043-8,700.00,PEPPA`S CABS.
Children and Adult Services,Education,Transport,230008,Contract Hire,07-May-2015,2897045-490,896.00,PETERLEE EXECUTIVE CARS.
Children and Adult Services,Education,Transport,230008,Contract Hire,07-May-2015,2897045-492,"1,008.00",PETERLEE EXECUTIVE CARS.
Children and Adult Services,Education,Transport,230008,Contract Hire,07-May-2015,2897060-2181,"1,278.00",RICHIES TAXIS.
Children and Adult Services,Education,Transport,230008,Contract Hire,07-May-2015,2897077-141A,"1,050.00",SJ MACKENZIE T/A SCOTTS TAXIS.
Children and Adult Services,Education,Transport,230008,Contract Hire,07-May-2015,2897077-142A,910.00,SJ MACKENZIE T/A SCOTTS TAXIS.
Children and Adult Services,Education,Transport,230008,Contract Hire,07-May-2015,2897077-143A,"1,815.00",SJ MACKENZIE T/A SCOTTS TAXIS.
Children and Adult Services,Education,Transport,230008,Contract Hire,07-May-2015,2897077-144A,"1,680.00",SJ MACKENZIE T/A SCOTTS TAXIS.
Children and Adult Services,Education,Transport,230008,Contract Hire,07-May-2015,2897077-145A,"2,042.50",SJ MACKENZIE T/A SCOTTS TAXIS.
Children and Adult Services,Education,Transport,230008,Contract Hire,07-May-2015,2897099-1179,"1,970.00",TAILORMADE TRAVEL.
Children and Adult Services,Education,Transport,230008,Contract Hire,07-May-2015,2897108-150,"1,120.00",THE TAXI COMPANY (MURTON) LTD.
Children and Adult Services,Education,Supplies and Services,304649,Equipment and Materials,07-May-2015,2897147-497781053,719.90,YORKSHIRE PURCHASING ORGANISATION.
Children and Adult Services,Education,Construction Work,908105,Construction work,07-May-2015,2896962-ISD0125,"2,964.94",INSPIREDSPACES DURHAM (PROJECTCO1) LTD.
Children and Adult Services,Head of Adults,Transport,230005,Contract Hire,07-May-2015,2896970-708,560.00,JDS PRIVATE HIRE DURHAM.
Children and Adult Services,Head of Adults,Transport,230005,Contract Hire,07-May-2015,2896991-78,825.00,M BUTCHER T/A KIDDI CABS.
Children and Adult Services,Head of Adults,Transport,230005,Contract Hire,07-May-2015,2897000-00729,"2,720.00",MICHAELS TRAVEL.
Children and Adult Services,Head of Adults,Transport,230005,Contract Hire,07-May-2015,2897100-1227,600.00,TALBOTS TAXIS.
Children and Adult Services,Head of Adults,Transport,230005,Contract Hire,07-May-2015,2897140-5205,"1,390.00",WEARDALE PRIVATE HIRE.
Children and Adult Services,Head of Adults,Supplies and Services,338366,Services,07-May-2015,2896873-24077,"1,487.55",CARE ABILITY.
Children and Adult Services,Planning & Service Strategy,Supplies and Services,338091,Services,07-May-2015,2896920-279541,"10,368.00",DURHAM UNIVERSITY.
Children and Adult Services,Public Health,Premises,120009,Energy Costs,07-May-2015,2896916-30001184622,"1,426.55",DONG ENERGY SALES (UK) LTD.
Children and Adult Services,Public Health,Supplies and Services,304259,Equipment and Materials,07-May-2015,2896984-SI031814,760.00,LEWIS`S MEDICAL SUPPLIES.
Dedicated Schools Grant,Dedicated Schools Grant,Transport,230005,Contract Hire,07-May-2015,2896917-APRIL2015,900.00,DUNCAN G CUMMINGS T/A DC TAXIS.
Dedicated Schools Grant,Dedicated Schools Grant,Transport,230005,Contract Hire,07-May-2015,2896999-INV-74,744.00,MICHAEL COBB (T/A HAIL TAXIS).
Dedicated Schools Grant,Dedicated Schools Grant,Transport,230005,Contract Hire,07-May-2015,2897121-68,"3,036.00",TRIDENT TAXIS.
Dedicated Schools Grant,Dedicated Schools Grant,Transport,230010,Contract Hire,07-May-2015,2896995-041508,"1,330.00",MARK & JOHN CHISHOLM T/A (CHEVRON).
Dedicated Schools Grant,Dedicated Schools Grant,Transport,230010,Contract Hire,07-May-2015,2897090-010,806.00,STEPHEN REED T/A STEVE`S TAXIS.
Dedicated Schools Grant,Dedicated Schools Grant,Supplies and Services,340001,Postages,07-May-2015,2896936-53266,"4,700.00",FRANCOTYP POSTALIA LTD.
Neighbourhood Services,Culture & Sport,Supplies and Services,338099,Services,07-May-2015,2896975-GALA2015APRIL,"1,341.07",JOHN MURDOCH.
Neighbourhood Services,Direct Services,Premises,145009,Cleaning and Domestic Supplies,07-May-2015,2896953-SIN7044189,836.57,HCS DRAIN SERVICES LTD.
Neighbourhood Services,Direct Services,Transport,230005,Contract Hire,07-May-2015,2897021-99927,"3,000.00",ND BROWN LTD.
Neighbourhood Services,Direct Services,Transport,230005,Contract Hire,07-May-2015,2897026-75072,"3,255.00",NOBLET MUNICIPAL SERVICES LTD.
Neighbourhood Services,Direct Services,Transport,230005,Contract Hire,07-May-2015,2897119-12012,"1,900.00",TRASH UK LTD.
Neighbourhood Services,Direct Services,Transport,230005,Contract Hire,07-May-2015,2897119-12157,800.00,TRASH UK LTD.
Neighbourhood Services,Direct Services,Transport,230005,Contract Hire,07-May-2015,2897119-12158,800.00,TRASH UK LTD.
Neighbourhood Services,Direct Services,Supplies and Services,304221,Equipment and Materials,07-May-2015,2896993-827/039107,656.40,MAGNET LTD.
Neighbourhood Services,Direct Services,Supplies and Services,304221,Equipment and Materials,07-May-2015,2896993-827/039108,628.00,MAGNET LTD.
Neighbourhood Services,Direct Services,Supplies and Services,304221,Equipment and Materials,07-May-2015,2896993-827/039109,646.97,MAGNET LTD.
Neighbourhood Services,Direct Services,Supplies and Services,304221,Equipment and Materials,07-May-2015,2897112-102703,"2,550.00",TOMMY WARDLE.
Neighbourhood Services,Direct Services,Third Party Payments,430100,Rendered by Private Contractors,07-May-2015,2896883-4118,"2,216.00",CITY FABRICATIONS.
Neighbourhood Services,Direct Services,Third Party Payments,430100,Rendered by Private Contractors,07-May-2015,2896982-15047,"26,991.92",LANGUARD LTD.
Neighbourhood Services,Direct Services,Third Party Payments,430100,Rendered by Private Contractors,07-May-2015,2896982-15076,"8,997.31",LANGUARD LTD.
Neighbourhood Services,Direct Services,Third Party Payments,430100,Rendered by Private Contractors,07-May-2015,2897087-4734,"3,625.00",ST ASTIER LTD.
Neighbourhood Services,Direct Services,Third Party Payments,430100,Rendered by Private Contractors,07-May-2015,2897092-40778,565.00,STORMKING WINDOWS.
Neighbourhood Services,Direct Services,Third Party Payments,430101,Rendered by Private Contractors,07-May-2015,2896955-5067403556,664.20,HI Q TYRESERVICES.
Neighbourhood Services,Projects and Business services,Third Party Payments,430116,Rendered by Private Contractors,07-May-2015,2897133-17067,"2,046.00",VIRIDIAN SYSTEMS LTD.
Neighbourhood Services,Projects and Business services,Third Party Payments,430120,Rendered by Private Contractors,07-May-2015,2896934-CTIN06440306,"2,574.46",FINNING (UK) LTD.
Neighbourhood Services,Projects and Business services,Third Party Payments,430120,Rendered by Private Contractors,07-May-2015,2896934-CTIN06440307,"3,265.29",FINNING (UK) LTD.
Neighbourhood Services,Projects and Business services,Third Party Payments,430120,Rendered by Private Contractors,07-May-2015,2896934-CTIN06440308,"1,282.26",FINNING (UK) LTD.
Neighbourhood Services,Projects and Business services,Third Party Payments,430120,Rendered by Private Contractors,07-May-2015,2896934-CTIN06442596,"3,588.34",FINNING (UK) LTD.
Neighbourhood Services,Projects and Business services,Third Party Payments,430120,Rendered by Private Contractors,07-May-2015,2896934-CTIN06442597,"2,216.62",FINNING (UK) LTD.
Neighbourhood Services,Projects and Business services,Third Party Payments,430120,Rendered by Private Contractors,07-May-2015,2896934-CTIN06442598,"1,386.63",FINNING (UK) LTD.
Neighbourhood Services,Projects and Business services,Third Party Payments,430120,Rendered by Private Contractors,07-May-2015,2896934-CTIN06445014,"2,788.17",FINNING (UK) LTD.
Neighbourhood Services,Projects and Business services,Third Party Payments,430120,Rendered by Private Contractors,07-May-2015,2896934-CTIN06445015,571.55,FINNING (UK) LTD.
Neighbourhood Services,Projects and Business services,Third Party Payments,430120,Rendered by Private Contractors,07-May-2015,2896934-CTIN06445016,"2,713.62",FINNING (UK) LTD.
Neighbourhood Services,Technical Services,Employees,040149,Recruitment Instruction and Training,07-May-2015,2896923-22504,"3,850.00",EASYBOOK TRAINING LTD.
Neighbourhood Services,Technical Services,Employees,040149,Recruitment Instruction and Training,07-May-2015,2897125-110021,587.50,TYNESIDE TRAINING SERVICES LTD.
Neighbourhood Services,Technical Services,Supplies and Services,304221,Equipment and Materials,07-May-2015,2896840-21285778,"5,058.38",AGGREGATE INDUSTRIES UK LTD.
Neighbourhood Services,Technical Services,Supplies and Services,304221,Equipment and Materials,07-May-2015,2896840-21285781,"5,358.61",AGGREGATE INDUSTRIES UK LTD.
Neighbourhood Services,Technical Services,Supplies and Services,304221,Equipment and Materials,07-May-2015,2896997-ZBB0798997,"5,809.32",MARSHALLS MONO LTD.
Neighbourhood Services,Technical Services,Supplies and Services,304221,Equipment and Materials,07-May-2015,2897091-071317,995.08,STONEGRAVE AGGREGATES LTD.
Neighbourhood Services,Technical Services,Supplies and Services,304358,Equipment and Materials,07-May-2015,2896989-24A,"1,690.68",M & E & MR WALTON.
Neighbourhood Services,Technical Services,Supplies and Services,338066,Services,07-May-2015,2897022-DCC-1030-0415-NIL,"28,585.23",NEPRO LTD.
Neighbourhood Services,Technical Services,Supplies and Services,342051,Computers and Communications,07-May-2015,2896947-113871,"7,920.00",GRAITEC LTD.
Neighbourhood Services,Technical Services,Third Party Payments,430100,Rendered by Private Contractors,07-May-2015,2896946-30AFOR13/4/2015,"2,000.00",GRAEME HOPPER LTD.
Neighbourhood Services,Technical Services,Third Party Payments,430100,Rendered by Private Contractors,07-May-2015,2896950-40788,"83,988.51",HALL CONSTRUCTION SERVICES LTD.
Neighbourhood Services,Technical Services,Third Party Payments,430100,Rendered by Private Contractors,07-May-2015,2897083-12081878,"2,874.29",SOUTH TYNESIDE COUNCIL.
Neighbourhood Services,Technical Services,Third Party Payments,430100,Rendered by Private Contractors,07-May-2015,2897083-12081879,"2,286.46",SOUTH TYNESIDE COUNCIL.
Neighbourhood Services,Technical Services,Third Party Payments,430100,Rendered by Private Contractors,07-May-2015,2897083-12081880,"2,437.84",SOUTH TYNESIDE COUNCIL.
Neighbourhood Services,Technical Services,Third Party Payments,430100,Rendered by Private Contractors,07-May-2015,2897083-12081881,"4,079.45",SOUTH TYNESIDE COUNCIL.
Neighbourhood Services,Technical Services,Third Party Payments,430100,Rendered by Private Contractors,07-May-2015,2897083-12081903,"2,860.53",SOUTH TYNESIDE COUNCIL.
Neighbourhood Services,Technical Services,Third Party Payments,430100,Rendered by Private Contractors,07-May-2015,2897083-12081904,"3,420.84",SOUTH TYNESIDE COUNCIL.
Neighbourhood Services,Technical Services,Third Party Payments,430100,Rendered by Private Contractors,07-May-2015,2897083-12081906,"3,371.69",SOUTH TYNESIDE COUNCIL.
Neighbourhood Services,Technical Services,Third Party Payments,430100,Rendered by Private Contractors,07-May-2015,2897083-12081908,"3,469.99",SOUTH TYNESIDE COUNCIL.
Neighbourhood Services,Technical Services,Stock,926900,Stock in hand-Inventory system,07-May-2015,2896878-9950/01641446,988.22,CERAMIC TILE DISTRIBUTORS (CTD).
Neighbourhood Services,Technical Services,Stock,926900,Stock in hand-Inventory system,07-May-2015,2896974-NI027720,819.44,JOHN MACLEAN & SONS ELECTRICAL (DINGWALL) LTD.
Neighbourhood Services,Technical Services,Stock,926900,Stock in hand-Inventory system,07-May-2015,2897038-XL140465,907.40,PARK ELECTRICAL DISTRIBUTORS LTD.
Neighbourhood Services,Technical Services,Stock,926900,Stock in hand-Inventory system,07-May-2015,2897144-17624647,947.85,WOLSELEY UK LTD.
Neighbourhood Services,Technical Services,Stock,926900,Stock in hand-Inventory system,07-May-2015,2897144-21819985,"3,334.75",WOLSELEY UK LTD.
RED HRA,HRA Capital,Construction Work,908105,Construction work,07-May-2015,2897148-33404,"9,370.94",YWC GROUP LTD.
Regeneration & Economic Development,Economic Development and Housing,Construction Work,908105,Construction work,07-May-2015,2896834-001429,"3,368.40",A PARRY MOBILE WELDING & FABRICATION.
Regeneration & Economic Development,Economic Development and Housing,Cap Exp on Grants & Other Financial Assistance (REFCUS),918401,Capital grants,07-May-2015,2896910-RED-03-2015-315,"4,000.00",DAVID CRAWFORD PLUMBING & HEATING.
Regeneration & Economic Development,Transport and Contracted Services,Supplies and Services,384199,Miscellaneous Expenses,07-May-2015,2896933-157ADDITPAYMNT,500.00,FINKLEGATE PROPERTIES LTD.
Regeneration & Economic Development,Transport and Contracted Services,Third Party Payments,430108,Rendered by Private Contractors,07-May-2015,2897023-1800007381030,"42,461.20",NEWCASTLE UPON TYNE CITY COUNCIL.
Resources,Financial Services,Supplies and Services,384199,Miscellaneous Expenses,07-May-2015,2896868-6003054215,"9,200.46",CAPITA BUSINESS SERVICES LTD.
Resources,Financial Services,Supplies and Services,384199,Miscellaneous Expenses,07-May-2015,2896869-6003058465,"23,702.87",CAPITA BUSINESS SERVICES LTD.
Resources,Financial Services,Supplies and Services,384199,Miscellaneous Expenses,07-May-2015,2896869-6003060653,"14,532.00",CAPITA BUSINESS SERVICES LTD.
Resources,Financial Services,Supplies and Services,384199,Miscellaneous Expenses,07-May-2015,2896985-91863RI,"2,397.71",LIBERATA UK LTD T/A CAPACITYGRID.
Assistant Chief Executive,Partnerships & Community Engagement Div.,Supplies and Services,384086,Miscellaneous Expenses,08-May-2015,2897328-VOUCHER14NB-EDUR040,"11,484.00",GROUNDWORK NORTH EAST.
Assistant Chief Executive,Partnerships & Community Engagement Div.,Transfer Payments,525030,Other,08-May-2015,2897209-VOUCHER14AB-3TWN009,"6,560.00",BLIND LIFE IN DURHAM.
Assistant Chief Executive,Partnerships & Community Engagement Div.,Transfer Payments,525030,Other,08-May-2015,2897255,"10,000.00",CORNFORTH PARTNERSHIP.
Assistant Chief Executive,Partnerships & Community Engagement Div.,Transfer Payments,525030,Other,08-May-2015,2897260,"3,000.00",COUNTY DURHAM COMMUNITY FOUNDATION.
Assistant Chief Executive,Partnerships & Community Engagement Div.,Transfer Payments,525030,Other,08-May-2015,2897278-VOUCHER14AB-DCTY012,"6,000.00",DERIC YOUTH BUS PROJECT.
Assistant Chief Executive,Partnerships & Community Engagement Div.,Transfer Payments,525030,Other,08-May-2015,2897286-VOUCHER14AB-TEES005,"11,750.00",DURHAM DALES ENTERPRISE CIC.
Assistant Chief Executive,Partnerships & Community Engagement Div.,Cap Exp on Grants & Other Financial Assistance (REFCUS),918004,Contributions to other bodies,08-May-2015,2897230-VOUCHER14NB-MDUR015,"5,000.00",CASTLESIDE PAROCHIAL CHURCH COUNCIL.
Assistant Chief Executive,Partnerships & Community Engagement Div.,Cap Exp on Grants & Other Financial Assistance (REFCUS),918004,Contributions to other bodies,08-May-2015,2897230-VOUCHER14NB-MDUR020,"8,465.00",CASTLESIDE PAROCHIAL CHURCH COUNCIL.
Assistant Chief Executive,Partnerships & Community Engagement Div.,Cap Exp on Grants & Other Financial Assistance (REFCUS),918004,Contributions to other bodies,08-May-2015,2897236-VOUCHER14NB-CHES029,"6,640.00",CHESTER LE STREET COMMUNITY ASSOCIATION.
Assistant Chief Executive,Partnerships & Community Engagement Div.,Cap Exp on Grants & Other Financial Assistance (REFCUS),918004,Contributions to other bodies,08-May-2015,2897528-VOUCHER12NB-CHES075,"13,000.00",PELTON COMMUNITY ASSOCIATION.
Assistant Chief Executive,Partnerships & Community Engagement Div.,Cap Exp on Grants & Other Financial Assistance (REFCUS),918004,Contributions to other bodies,08-May-2015,2897600-VOUCHER14NB-DCTY030,"4,860.00",ST CUTHBERTS HOSPICE.
Children and Adult Services,Childrens Services,Premises,125009,Rents,08-May-2015,2897328-GH3852,"1,010.59",GROUNDWORK NORTH EAST.
Children and Adult Services,Childrens Services,Premises,145009,Cleaning and Domestic Supplies,08-May-2015,2897513-CN18965572,535.62,OCS GROUP UK LTD T/A CANNON HYGIENE.
Children and Adult Services,Childrens Services,Transport,230005,Contract Hire,08-May-2015,2897417-546,724.00,MOLLYS TAXIS.
Children and Adult Services,Childrens Services,Transport,230005,Contract Hire,08-May-2015,2897565-343,886.50,ROAD RUNNERS (NE) LTD.
Children and Adult Services,Commissioning inc Supporting People,Third Party Payments,472112,Purchase of Care,08-May-2015,2897338-DRE14,"3,424.31",HOMECARE SUPPORT LTD T/A THE HUMAN SUPPORT GROUP.
Children and Adult Services,Education,Transport,230006,Contract Hire,08-May-2015,2897340-INV74504,504.00,HORNDALE TAXIS LTD.
Children and Adult Services,Education,Transport,230006,Contract Hire,08-May-2015,2897406-MCD7720,583.00,MCDONALD TRAVEL.
Children and Adult Services,Education,Transport,230006,Contract Hire,08-May-2015,2897616-04/2015/025,504.00,TARNS TAXIS LTD.
Children and Adult Services,Education,Transport,230006,Contract Hire,08-May-2015,2897664-0415,"1,415.00",WEST AUCKLAND TOWN TRAVEL (WATT).
Children and Adult Services,Education,Transport,230007,Contract Hire,08-May-2015,2897162-43,812.00,AALPHA TAXIS.
Children and Adult Services,Education,Transport,230007,Contract Hire,08-May-2015,2897242-44860,"1,386.00",CJ GRIERSON T/A GRIERSONS COACHES.
Children and Adult Services,Education,Transport,230007,Contract Hire,08-May-2015,2897242-44861,"1,246.00",CJ GRIERSON T/A GRIERSONS COACHES.
Children and Adult Services,Education,Transport,230007,Contract Hire,08-May-2015,2897242-44862,"1,386.00",CJ GRIERSON T/A GRIERSONS COACHES.
Children and Adult Services,Education,Transport,230007,Contract Hire,08-May-2015,2897314-17237,"5,031.00",GARNETTS LTD (COACHES).
Children and Adult Services,Education,Transport,230007,Contract Hire,08-May-2015,2897315-1783,"1,795.92",GEM TRAVEL.
Children and Adult Services,Education,Transport,230007,Contract Hire,08-May-2015,2897315-1785,980.00,GEM TRAVEL.
Children and Adult Services,Education,Transport,230007,Contract Hire,08-May-2015,2897331-HT168,560.00,HARRY`S TAXI`S.
Children and Adult Services,Education,Transport,230007,Contract Hire,08-May-2015,2897331-HT170,"1,350.00",HARRY`S TAXI`S.
Children and Adult Services,Education,Transport,230007,Contract Hire,08-May-2015,2897340-INV70,840.00,HORNDALE TAXIS LTD.
Children and Adult Services,Education,Transport,230007,Contract Hire,08-May-2015,2897352-948,525.00,J YOUNG T/A VIP TAXIS.
Children and Adult Services,Education,Transport,230007,Contract Hire,08-May-2015,2897352-952,754.00,J YOUNG T/A VIP TAXIS.
Children and Adult Services,Education,Transport,230007,Contract Hire,08-May-2015,2897354-4300APR,544.00,JAFFAS TAXIS.
Children and Adult Services,Education,Transport,230007,Contract Hire,08-May-2015,2897388-4289,840.00,M BEHAN T/A M & M`S TAXIS.
Children and Adult Services,Education,Transport,230007,Contract Hire,08-May-2015,2897554-30C,"4,200.00",RAYNERS COACHES.
Children and Adult Services,Education,Transport,230007,Contract Hire,08-May-2015,2897595-2563,"2,875.00",SNOWDON COACHES.
Children and Adult Services,Education,Transport,230007,Contract Hire,08-May-2015,2897605-297,"1,397.20",STEPHEN MAUDE LTD T/A MAUDES COACHES.
Children and Adult Services,Education,Transport,230007,Contract Hire,08-May-2015,2897605-298,"1,537.20",STEPHEN MAUDE LTD T/A MAUDES COACHES.
Children and Adult Services,Education,Transport,230007,Contract Hire,08-May-2015,2897605-299,"1,344.00",STEPHEN MAUDE LTD T/A MAUDES COACHES.
Children and Adult Services,Education,Transport,230007,Contract Hire,08-May-2015,2897605-300,931.00,STEPHEN MAUDE LTD T/A MAUDES COACHES.
Children and Adult Services,Education,Transport,230007,Contract Hire,08-May-2015,2897614-30504C,826.00,T MOORE & SON.
Children and Adult Services,Education,Transport,230007,Contract Hire,08-May-2015,2897614-30804F,504.00,T MOORE & SON.
Children and Adult Services,Education,Transport,230007,Contract Hire,08-May-2015,2897655-43/15,"1,120.00",WALTONS TAXIS.
Children and Adult Services,Education,Transport,230008,Contract Hire,08-May-2015,2897202-10APRIL15,"1,120.00",BEELINE PRIVATE HIRE.
Children and Adult Services,Education,Transport,230008,Contract Hire,08-May-2015,2897202-9APRIL15,770.00,BEELINE PRIVATE HIRE.
Children and Adult Services,Education,Transport,230008,Contract Hire,08-May-2015,2897211-1377,"1,806.00",BOBBY DOVE.
Children and Adult Services,Education,Transport,230008,Contract Hire,08-May-2015,2897211-1378,"1,176.00",BOBBY DOVE.
Children and Adult Services,Education,Transport,230008,Contract Hire,08-May-2015,2897217-BZ00151,"1,092.00",BREZ`S TAXIS.
Children and Adult Services,Education,Transport,230008,Contract Hire,08-May-2015,2897224-BIL0056,"1,120.00",CA MUSGROVE.
Children and Adult Services,Education,Transport,230008,Contract Hire,08-May-2015,2897331-HT167,"1,848.00",HARRY`S TAXI`S.
Children and Adult Services,Education,Transport,230008,Contract Hire,08-May-2015,2897331-HT169,"1,680.00",HARRY`S TAXI`S.
Children and Adult Services,Education,Transport,230008,Contract Hire,08-May-2015,2897340-INV73,"1,190.00",HORNDALE TAXIS LTD.
Children and Adult Services,Education,Transport,230008,Contract Hire,08-May-2015,2897352-947,532.00,J YOUNG T/A VIP TAXIS.
Children and Adult Services,Education,Transport,230008,Contract Hire,08-May-2015,2897352-949,750.00,J YOUNG T/A VIP TAXIS.
Children and Adult Services,Education,Transport,230008,Contract Hire,08-May-2015,2897352-950,720.00,J YOUNG T/A VIP TAXIS.
Children and Adult Services,Education,Transport,230008,Contract Hire,08-May-2015,2897352-956,"1,014.00",J YOUNG T/A VIP TAXIS.
Children and Adult Services,Education,Transport,230008,Contract Hire,08-May-2015,2897355-APR15,705.00,JAMY`S TAXIS.
Children and Adult Services,Education,Transport,230008,Contract Hire,08-May-2015,2897355-APRIL15,812.00,JAMY`S TAXIS.
Children and Adult Services,Education,Transport,230008,Contract Hire,08-May-2015,2897358-2389,"1,308.44",JEFF ANDERSON COACHES LTD.
Children and Adult Services,Education,Transport,230008,Contract Hire,08-May-2015,2897358-2390,"1,494.44",JEFF ANDERSON COACHES LTD.
Children and Adult Services,Education,Transport,230008,Contract Hire,08-May-2015,2897362-2015/04,627.20,JM HUMBLE COACH HIRE.
Children and Adult Services,Education,Transport,230008,Contract Hire,08-May-2015,2897369-S007/030,"1,591.00",FERRYHILL VILLAGE TRAVEL.
Children and Adult Services,Education,Transport,230008,Contract Hire,08-May-2015,2897369-W131/008B,609.00,FERRYHILL VILLAGE TRAVEL.
Children and Adult Services,Education,Transport,230008,Contract Hire,08-May-2015,2897371-010415,"1,140.00",KEVIN EDMUNDSON.
Children and Adult Services,Education,Transport,230008,Contract Hire,08-May-2015,2897383-2117,"1,340.00",LOCAL TRANSPORT LTD.
Children and Adult Services,Education,Transport,230008,Contract Hire,08-May-2015,2897385-100,"1,245.00",LORRAINES TAXIS.
Children and Adult Services,Education,Transport,230008,Contract Hire,08-May-2015,2897386-25,644.00,LUMLEY TAXIS.
Children and Adult Services,Education,Transport,230008,Contract Hire,08-May-2015,2897403-09/15,980.00,MAURICE & SONS.
Children and Adult Services,Education,Transport,230008,Contract Hire,08-May-2015,2897403-13,"1,190.00",MAURICE & SONS.
Children and Adult Services,Education,Transport,230008,Contract Hire,08-May-2015,2897406-MCD7722,"1,386.00",MCDONALD TRAVEL.
Children and Adult Services,Education,Transport,230008,Contract Hire,08-May-2015,2897411-E046/008,"1,568.00",MISS KA SUTHERLAND T/A FERRYHILL TRAVEL TAXI & MINIBUS HIRE.
Children and Adult Services,Education,Transport,230008,Contract Hire,08-May-2015,2897411-N071/018,"2,007.00",MISS KA SUTHERLAND T/A FERRYHILL TRAVEL TAXI & MINIBUS HIRE.
Children and Adult Services,Education,Transport,230008,Contract Hire,08-May-2015,2897417-537,990.00,MOLLYS TAXIS.
Children and Adult Services,Education,Transport,230008,Contract Hire,08-May-2015,2897417-539,"1,176.00",MOLLYS TAXIS.
Children and Adult Services,Education,Transport,230008,Contract Hire,08-May-2015,2897417-540,"1,320.00",MOLLYS TAXIS.
Children and Adult Services,Education,Transport,230008,Contract Hire,08-May-2015,2897417-541,"1,210.00",MOLLYS TAXIS.
Children and Adult Services,Education,Transport,230008,Contract Hire,08-May-2015,2897417-545,"1,111.00",MOLLYS TAXIS.
Children and Adult Services,Education,Transport,230008,Contract Hire,08-May-2015,2897434-37A,"1,500.00",MR G FREELAND T/A HUNWICK CARS.
Children and Adult Services,Education,Transport,230008,Contract Hire,08-May-2015,2897434-37B,"1,240.00",MR G FREELAND T/A HUNWICK CARS.
Children and Adult Services,Education,Transport,230008,Contract Hire,08-May-2015,2897436-66154,"1,201.20",MR GN ROBBINS T/A GNR MINIBUS HIRE.
Children and Adult Services,Education,Transport,230008,Contract Hire,08-May-2015,2897436-66155,"1,459.50",MR GN ROBBINS T/A GNR MINIBUS HIRE.
Children and Adult Services,Education,Transport,230008,Contract Hire,08-May-2015,2897451-662,533.00,MR PETER YOUNG.
Children and Adult Services,Education,Transport,230008,Contract Hire,08-May-2015,2897542-B08,"1,097.00",PRESTYS HACKNEY & PRIVATE HIRE TAXIS.
Children and Adult Services,Education,Transport,230008,Contract Hire,08-May-2015,2897542-G61,598.00,PRESTYS HACKNEY & PRIVATE HIRE TAXIS.
Children and Adult Services,Education,Transport,230008,Contract Hire,08-May-2015,2897584-0016,990.00,SHOEY`S TAXIS.
Children and Adult Services,Education,Transport,230008,Contract Hire,08-May-2015,2897586-71728,"1,260.00",SHOTTON PRIVATE HIRE.
Children and Adult Services,Education,Transport,230008,Contract Hire,08-May-2015,2897614-30704E,"1,155.00",T MOORE & SON.
Children and Adult Services,Education,Transport,230008,Contract Hire,08-May-2015,2897616-04/2015/027,952.00,TARNS TAXIS LTD.
Children and Adult Services,Education,Transport,230008,Contract Hire,08-May-2015,2897616-04/2015/028,"1,022.00",TARNS TAXIS LTD.
Children and Adult Services,Education,Transport,230008,Contract Hire,08-May-2015,2897658-000901,"1,144.00",WATSON OF SPENNYMOOR.
Children and Adult Services,Education,Transport,230008,Contract Hire,08-May-2015,2897659-976,"1,400.00",WAYNE`S TAXIS.
Children and Adult Services,Education,Transport,230008,Contract Hire,08-May-2015,2897659-977,"1,232.00",WAYNE`S TAXIS.
Children and Adult Services,Education,Transport,230008,Contract Hire,08-May-2015,2897665-WESTLEA300415,700.00,WESTLEA TAXIS.
Children and Adult Services,Education,Transport,230009,Contract Hire,08-May-2015,2897352-959,924.00,J YOUNG T/A VIP TAXIS.
Children and Adult Services,Education,Supplies and Services,304649,Equipment and Materials,08-May-2015,2897675-497729447,"1,866.00",YORKSHIRE PURCHASING ORGANISATION.
Children and Adult Services,Education,Supplies and Services,338027,Services,08-May-2015,2897596-4100483698,"1,600.00",SPECIALISED TRANSPORT ADVISORY NETWORK.
Children and Adult Services,Education,Transfer Payments,510026,School Children,08-May-2015,2897633-SI-275,780.00,TM NURSERY ENTERPRISES LTD T/A JACK IN THE BOX DAYCARE.
Children and Adult Services,Education,Transfer Payments,510028,School Children,08-May-2015,2897626-CAS-05-2015-008,"7,000.00",THE LAURELS CHILD CARE.
Children and Adult Services,Head of Adults,Transport,230005,Contract Hire,08-May-2015,2897163-0243,"1,036.00",ABC & OUSTON CABS.
Children and Adult Services,Head of Adults,Transport,230005,Contract Hire,08-May-2015,2897321-WV091/025,"1,139.00",GMC TAXIS NORTH EAST.
Children and Adult Services,Head of Adults,Transport,230005,Contract Hire,08-May-2015,2897325-45A,590.00,GRAEME AGNEW T/A STREETCARS.
Children and Adult Services,Head of Adults,Transport,230005,Contract Hire,08-May-2015,2897369-WV079-014,"1,190.00",FERRYHILL VILLAGE TRAVEL.
Children and Adult Services,Head of Adults,Transport,230005,Contract Hire,08-May-2015,2897371-020415,"1,500.00",KEVIN EDMUNDSON.
Children and Adult Services,Head of Adults,Transport,230005,Contract Hire,08-May-2015,2897397-590415,910.00,MARK MUSGROVE T/A MARKS TAXIS.
Children and Adult Services,Head of Adults,Transport,230005,Contract Hire,08-May-2015,2897406-MCD7721,980.00,MCDONALD TRAVEL.
Children and Adult Services,Head of Adults,Transport,230005,Contract Hire,08-May-2015,2897417-542,"1,640.00",MOLLYS TAXIS.
Children and Adult Services,Head of Adults,Transport,230005,Contract Hire,08-May-2015,2897426-EDB04-15,798.00,MR CT WALKER T/A COLIN`S TAXIS.
Children and Adult Services,Head of Adults,Transport,230005,Contract Hire,08-May-2015,2897541-150404,734.00,PRATTS TAXIS.
Children and Adult Services,Head of Adults,Transport,230005,Contract Hire,08-May-2015,2897614-30904G,"1,500.00",T MOORE & SON.
Children and Adult Services,Head of Adults,Transport,230005,Contract Hire,08-May-2015,2897661-5206,"3,174.00",WEARDALE PRIVATE HIRE.
Children and Adult Services,Head of Adults,Supplies and Services,304516,Equipment and Materials,08-May-2015,2897225-9938/04,"1,363.65",CABLES TAXI CONTRACTS.
Children and Adult Services,Head of Adults,Supplies and Services,338069,Services,08-May-2015,2897229-41919260,"21,670.00",CARE QUALITY COMMISSION.
Children and Adult Services,Public Health,Premises,145009,Cleaning and Domestic Supplies,08-May-2015,2897248-3980010753,"1,620.22",CO DURHAM & DARLINGTON NHS FOUNDATION TRUST.
Children and Adult Services,Public Health,Third Party Payments,460802,Contract Payments,08-May-2015,2897241-7910014823,"7,166.00",CITY HOSPITALS SUNDERLAND NHS FOUNDATION TRUST.
Children and Adult Services,Public Health,Third Party Payments,460803,Contract Payments,08-May-2015,2897248-3980010199,"929,817.00",CO DURHAM & DARLINGTON NHS FOUNDATION TRUST.
Dedicated Schools Grant,Dedicated Schools Grant,Transport,230010,Contract Hire,08-May-2015,2897207-0003,675.00,BLACKS PRIVATE HIRE.
Dedicated Schools Grant,Dedicated Schools Grant,Transport,230010,Contract Hire,08-May-2015,2897207-0003MAR,"1,000.00",BLACKS PRIVATE HIRE.
Dedicated Schools Grant,Dedicated Schools Grant,Transport,230010,Contract Hire,08-May-2015,2897345-PRU034,"1,570.00",IAN SOULSBY.
Dedicated Schools Grant,Dedicated Schools Grant,Transport,230010,Contract Hire,08-May-2015,2897362-2015/05,660.00,JM HUMBLE COACH HIRE.
Dedicated Schools Grant,Dedicated Schools Grant,Transport,230010,Contract Hire,08-May-2015,2897456-49,900.00,MRS ANNE BOWMAN T/A ANNES CARS.
Dedicated Schools Grant,Dedicated Schools Grant,Transport,230010,Contract Hire,08-May-2015,2897614-30304A,781.00,T MOORE & SON.
Dedicated Schools Grant,Dedicated Schools Grant,Supplies and Services,338091,Services,08-May-2015,2897459-1/GAP/MAR15/JSB,500.00,MRS J BARNINGHAM.
Dedicated Schools Grant,Dedicated Schools Grant,Supplies and Services,340001,Postages,08-May-2015,2897306-53266APRIL15,900.00,FP TELESET.
Neighbourhood Services,Culture & Sport,Supplies and Services,384199,Miscellaneous Expenses,08-May-2015,2897504-SIN000324,"9,475.00",NORTH MUSIC TRUST.
Neighbourhood Services,Direct Services,Premises,145009,Cleaning and Domestic Supplies,08-May-2015,2897240-CC97765,796.00,CITY CLEAN NORTHERN LTD.
Neighbourhood Services,Direct Services,Premises,150015,Apportioned Exps of Operational Blds,08-May-2015,2897662-408630,643.50,WERNICK HIRE LTD.
Neighbourhood Services,Direct Services,Transport,230005,Contract Hire,08-May-2015,2897223-NEW8119352,935.15,BURNT TREE GROUP LTD.
Neighbourhood Services,Direct Services,Transport,230005,Contract Hire,08-May-2015,2897223-NEW8119378,510.00,BURNT TREE GROUP LTD.
Neighbourhood Services,Direct Services,Transport,230005,Contract Hire,08-May-2015,2897272-671200,776.60,DAWSONRENTALS VANS LTD.
Neighbourhood Services,Direct Services,Supplies and Services,304221,Equipment and Materials,08-May-2015,2897263-INV0098457,811.37,CROMWELL POLYTHENE LTD.
Neighbourhood Services,Direct Services,Supplies and Services,304221,Equipment and Materials,08-May-2015,2897292-059-161528,"11,724.85",EDMUNDSON ELECTRICAL LTD.
Neighbourhood Services,Direct Services,Supplies and Services,304221,Equipment and Materials,08-May-2015,2897332-532302,"1,467.56",HARVEST ENERGY LTD.
Neighbourhood Services,Direct Services,Supplies and Services,304221,Equipment and Materials,08-May-2015,2897408-3044/0303467,536.00,MINSTER INSULATION & DRY LINING.
Neighbourhood Services,Direct Services,Supplies and Services,304221,Equipment and Materials,08-May-2015,2897521-BR520660,922.53,PARK ELECTRICAL DISTRIBUTORS LTD.
Neighbourhood Services,Direct Services,Supplies and Services,304252,Equipment and Materials,08-May-2015,2897532-IN3081,"28,853.00",PHOENIX PARTNERSHIP.
Neighbourhood Services,Direct Services,Supplies and Services,304259,Equipment and Materials,08-May-2015,2897198-95830745,"2,070.72",BALL COLEGRAVE LTD.
Neighbourhood Services,Direct Services,Third Party Payments,430100,Rendered by Private Contractors,08-May-2015,2897175-20078,"3,524.00",ALARM & COMMUNICATION SYSTEMS LTD.
Neighbourhood Services,Direct Services,Third Party Payments,430100,Rendered by Private Contractors,08-May-2015,2897179-15009,"5,887.50",AMBIC LTD.
Neighbourhood Services,Direct Services,Third Party Payments,430100,Rendered by Private Contractors,08-May-2015,2897538-2091,"11,960.00",POLY ADVISORY SERVICES LTD.
Neighbourhood Services,Projects and Business services,Third Party Payments,430103,Rendered by Private Contractors,08-May-2015,2897261-NEI-EXP,"1,460.96",COUNTY DURHAM FURNITURE HELP SCHEME.
Neighbourhood Services,Projects and Business services,Vehicles Equipment Furniture and Fittings,912529,Purchase-equipment,08-May-2015,2897648-17068,991.42,VIRIDIAN SYSTEMS LTD.
Neighbourhood Services,Technical Services,Premises,150015,Apportioned Exps of Operational Blds,08-May-2015,2897243-17574,821.40,CLEE HILL PLANT LTD.
Neighbourhood Services,Technical Services,Premises,150015,Apportioned Exps of Operational Blds,08-May-2015,2897243-17575,821.40,CLEE HILL PLANT LTD.
Neighbourhood Services,Technical Services,Premises,150015,Apportioned Exps of Operational Blds,08-May-2015,2897243-17576,821.40,CLEE HILL PLANT LTD.
Neighbourhood Services,Technical Services,Supplies and Services,304221,Equipment and Materials,08-May-2015,2897174-21291244,"1,646.32",AGGREGATE INDUSTRIES UK LTD.
Neighbourhood Services,Technical Services,Supplies and Services,304221,Equipment and Materials,08-May-2015,2897174-21291346,831.35,AGGREGATE INDUSTRIES UK LTD.
Neighbourhood Services,Technical Services,Supplies and Services,304221,Equipment and Materials,08-May-2015,2897174-21291348,"4,559.67",AGGREGATE INDUSTRIES UK LTD.
Neighbourhood Services,Technical Services,Supplies and Services,304221,Equipment and Materials,08-May-2015,2897244-3179899,934.55,CLEVELAND CABLE CO LTD.
Neighbourhood Services,Technical Services,Supplies and Services,304221,Equipment and Materials,08-May-2015,2897492-NC5/C366/BW,"15,328.56",NEDCO CONTRACTS (NE) LTD.
Neighbourhood Services,Technical Services,Supplies and Services,304221,Equipment and Materials,08-May-2015,2897492-NC6/C366/BW,"10,848.76",NEDCO CONTRACTS (NE) LTD.
Neighbourhood Services,Technical Services,Supplies and Services,304221,Equipment and Materials,08-May-2015,2897607-071355,929.16,STONEGRAVE AGGREGATES LTD.
Neighbourhood Services,Technical Services,Supplies and Services,304221,Equipment and Materials,08-May-2015,2897656-17642,911.16,WARD TIMBER LTD.
Neighbourhood Services,Technical Services,Supplies and Services,304357,Equipment and Materials,08-May-2015,2897313-DCC260415,"16,620.72",GAP GROUP LTD.
Neighbourhood Services,Technical Services,Third Party Payments,430100,Rendered by Private Contractors,08-May-2015,2897170-29370800-61,569.00,ADT FIRE & SECURITY PLC.
Neighbourhood Services,Technical Services,Third Party Payments,430100,Rendered by Private Contractors,08-May-2015,2897604-6975,"1,079.50",STEADFAST SECURITY SOLUTIONS LTD.
Neighbourhood Services,Technical Services,Third Party Payments,430100,Rendered by Private Contractors,08-May-2015,2897604-7056,527.00,STEADFAST SECURITY SOLUTIONS LTD.
Neighbourhood Services,Technical Services,Stock,926900,Stock in hand-Inventory system,08-May-2015,2897192-SIN300093,535.50,ATF SUPPLIES LTD.
RED HRA,HRA Capital,Construction Work,908105,Construction work,08-May-2015,2897316-SIGN/00051898,"251,827.35",GENTOO CONSTRUCTION LTD.
RED HRA,HRA Capital,Construction Work,908105,Construction work,08-May-2015,2897516-986522,"18,014.04",OPENREACH LLU.
RED HRA,HRA Capital,Construction Work,908105,Construction work,08-May-2015,2897516-990149,"6,914.48",OPENREACH LLU.
RED HRA,HRA Capital,Construction Work,908105,Construction work,08-May-2015,2897657-B50400-6,"60,987.00",WATES CONSTRUCTION LTD.
Regeneration & Economic Development,Economic Development and Housing,Supplies and Services,384700,Miscellaneous Expenses,08-May-2015,2897376-RED-04-2015-168,"1,000.00",KR ELECTRICAL.
Regeneration & Economic Development,Economic Development and Housing,Supplies and Services,384700,Miscellaneous Expenses,08-May-2015,2897625-RED-04-2015-220,"1,000.00",THE CREATIVE CATERING COMPANY.
Regeneration & Economic Development,Economic Development and Housing,Construction Work,908105,Construction work,08-May-2015,2897506,"1,163.00",NORTHERN POWERGRID (NORTHEAST) LTD.
Regeneration & Economic Development,Transport and Contracted Services,Supplies and Services,338027,Services,08-May-2015,2897173-28216003,"1,656.00",AECOM LTD.
Regeneration & Economic Development,Transport and Contracted Services,Third Party Payments,430106,Rendered by Private Contractors,08-May-2015,2897190-108807,"46,749.37",ARRIVA NORTH EAST LTD.
Regeneration & Economic Development,Transport and Contracted Services,Third Party Payments,430106,Rendered by Private Contractors,08-May-2015,2897634-01/04/15-25/04/15,"1,746.76",TONYS TAXIS (A BIRCH).
Regeneration & Economic Development,Transport and Contracted Services,Third Party Payments,430106,Rendered by Private Contractors,08-May-2015,2897660-0408/2015,"30,668.57",WEARDALE MOTOR SERVICES LTD.
Resources,I.C.T. Services,Stock,926900,Stock in hand-Inventory system,08-May-2015,2897276-7402200288,"1,256.61",DELL COMPUTER CORPORATION LTD.
Resources,Legal & Democratic Services,Supplies and Services,338057,Services,08-May-2015,2897566-0000019808,"1,235.00",ROAR FORENSICS LTD.
Assistant Chief Executive,Partnerships & Community Engagement Div.,Supplies and Services,384086,Miscellaneous Expenses,11-May-2015,2897754-VOUCHER14NB-SPEN011,"2,000.00",CLEVES CROSS LEARNING TRUST T/A ROSA STREET PRIMARY SCHOOL.
Assistant Chief Executive,Partnerships & Community Engagement Div.,Supplies and Services,384086,Miscellaneous Expenses,11-May-2015,2897760-VOUCHER14NB-STAN022,"2,000.00",COLLIERLEY PCC.
Assistant Chief Executive,Partnerships & Community Engagement Div.,Supplies and Services,384086,Miscellaneous Expenses,11-May-2015,2898019-VOUCHER14NB-EDUR033,"6,000.00",SOUTH HETTON & DISTRICT COMMUNITY ASSOCIATION.
Assistant Chief Executive,Partnerships & Community Engagement Div.,Transfer Payments,525030,Other,11-May-2015,2897717-VOUCHER14AB,"1,000.00",BARNARD CASTLE FOOTBALL CLUB.
Assistant Chief Executive,Partnerships & Community Engagement Div.,Transfer Payments,525030,Other,11-May-2015,2897745-VOUCHER14AB,843.00,CHESTER LE STREET TOWN FC.
Assistant Chief Executive,Partnerships & Community Engagement Div.,Transfer Payments,525030,Other,11-May-2015,2897789-VOUCHER14AB,603.00,DAWN TILL DUSK CHILDCARE.
Assistant Chief Executive,Partnerships & Community Engagement Div.,Transfer Payments,525030,Other,11-May-2015,2897799-VOUCHER14AB-DCTY010,"7,438.00",DURHAM AMATEUR ROWING CLUB.
Assistant Chief Executive,Partnerships & Community Engagement Div.,Transfer Payments,525030,Other,11-May-2015,2897803-VOUCHER14AB,"12,000.00",DURHAM COMMUNITY ACTION LTD.
Assistant Chief Executive,Partnerships & Community Engagement Div.,Transfer Payments,525030,Other,11-May-2015,2897910-VOUCHER14AB,754.00,LYNESACK PAROCHIAL FUND.
Assistant Chief Executive,Partnerships & Community Engagement Div.,Transfer Payments,525030,Other,11-May-2015,2898039-VOUCHER14AB,550.00,TEESDALE YMCA.
Assistant Chief Executive,Partnerships & Community Engagement Div.,Cap Exp on Grants & Other Financial Assistance (REFCUS),918004,Contributions to other bodies,11-May-2015,2897824-VOUCHER14AB-4TOG012,"5,146.00",FERRYHILL TOWN COUNCIL.
Assistant Chief Executive,Partnerships & Community Engagement Div.,Cap Exp on Grants & Other Financial Assistance (REFCUS),918004,Contributions to other bodies,11-May-2015,2897829-VOUCHER14NB-EDRC009,"2,000.00",FISHBURN ALLOTMENT ASSOCIATION.
Children and Adult Services,Childrens Services,Supplies and Services,338044,Services,11-May-2015,2897984-15017,"1,012.50",PROFESSOR JOHN S WYATT.
Children and Adult Services,Childrens Services,Supplies and Services,338045,Services,11-May-2015,2897861-ITL5151,"4,233.25",ITL NORTH EAST LTD.
Children and Adult Services,Childrens Services,Supplies and Services,360099,Insurances,11-May-2015,2898024-DURH01/03,"13,594.50",STANDARD SECURITIES.
Children and Adult Services,Childrens Services,Supplies and Services,360099,Insurances,11-May-2015,2898024-DURH02/03,"1,788.75",STANDARD SECURITIES.
Children and Adult Services,Childrens Services,Supplies and Services,364353,Grants to Voluntary Organisations,11-May-2015,2898048-CAS-05-2015-015,606.00,REDACTED - PAYMENT TO INDIVIDUAL
Children and Adult Services,Childrens Services,Supplies and Services,384199,Miscellaneous Expenses,11-May-2015,2897794-2926060,770.94,DEPARTMENT FOR WORK & PENSIONS.
Children and Adult Services,Childrens Services,Supplies and Services,384302,Miscellaneous Expenses,11-May-2015,2897957-1561978,857.80,NORTHERN TOOLS & ACCESSORIES.
Children and Adult Services,Childrens Services,Third Party Payments,425040,Rendered by Voluntary Organisations,11-May-2015,2897830-0000055063,"3,232.99",FIVE RIVERS CHILD CARE LTD.
Children and Adult Services,Childrens Services,Third Party Payments,425040,Rendered by Voluntary Organisations,11-May-2015,2897833-630151723,"4,180.58",FOSTER CARE ASSOCIATES LTD.
Children and Adult Services,Childrens Services,Third Party Payments,425040,Rendered by Voluntary Organisations,11-May-2015,2897833-630151851,"4,292.69",FOSTER CARE ASSOCIATES LTD.
Children and Adult Services,Childrens Services,Third Party Payments,425040,Rendered by Voluntary Organisations,11-May-2015,2897833-630151865,"4,079.43",FOSTER CARE ASSOCIATES LTD.
Children and Adult Services,Childrens Services,Third Party Payments,425040,Rendered by Voluntary Organisations,11-May-2015,2897833-630151988,"4,079.43",FOSTER CARE ASSOCIATES LTD.
Children and Adult Services,Childrens Services,Third Party Payments,425040,Rendered by Voluntary Organisations,11-May-2015,2897833-630152015,"4,079.43",FOSTER CARE ASSOCIATES LTD.
Children and Adult Services,Childrens Services,Third Party Payments,425040,Rendered by Voluntary Organisations,11-May-2015,2897833-630152090,"4,079.43",FOSTER CARE ASSOCIATES LTD.
Children and Adult Services,Childrens Services,Third Party Payments,425040,Rendered by Voluntary Organisations,11-May-2015,2897833-630152270,"4,079.43",FOSTER CARE ASSOCIATES LTD.
Children and Adult Services,Childrens Services,Third Party Payments,425040,Rendered by Voluntary Organisations,11-May-2015,2897833-630152350,"4,079.43",FOSTER CARE ASSOCIATES LTD.
Children and Adult Services,Childrens Services,Third Party Payments,425040,Rendered by Voluntary Organisations,11-May-2015,2897833-630152406,"4,079.43",FOSTER CARE ASSOCIATES LTD.
Children and Adult Services,Childrens Services,Third Party Payments,425040,Rendered by Voluntary Organisations,11-May-2015,2897833-630152637,"4,079.43",FOSTER CARE ASSOCIATES LTD.
Children and Adult Services,Childrens Services,Third Party Payments,425040,Rendered by Voluntary Organisations,11-May-2015,2897833-630152687,"4,079.43",FOSTER CARE ASSOCIATES LTD.
Children and Adult Services,Childrens Services,Third Party Payments,486044,Service Level Agreements,11-May-2015,2897757-3980010805,"2,456.00",CO DURHAM & DARLINGTON NHS FOUNDATION TRUST.
Children and Adult Services,Education,Employees,040001,Recruitment Instruction and Training,11-May-2015,2898041-TARINV/15364631,789.00,TES GLOBAL LTD.
Children and Adult Services,Education,Transport,230006,Contract Hire,11-May-2015,2897678-41505,"1,062.00",24/7 TAXI SERVICES LTD.
Children and Adult Services,Education,Transport,230006,Contract Hire,11-May-2015,2897678-41506,649.00,24/7 TAXI SERVICES LTD.
Children and Adult Services,Education,Transport,230006,Contract Hire,11-May-2015,2898014-F536-04-15,"1,080.00",SIMON ELLIFF.
Children and Adult Services,Education,Transport,230006,Contract Hire,11-May-2015,2898078-5203,"1,078.00",WEARDALE PRIVATE HIRE.
Children and Adult Services,Education,Transport,230006,Contract Hire,11-May-2015,2898078-5204,684.00,WEARDALE PRIVATE HIRE.
Children and Adult Services,Education,Transport,230006,Contract Hire,11-May-2015,2898080-4299312,560.00,WENDYS` TAXIS.
Children and Adult Services,Education,Transport,230007,Contract Hire,11-May-2015,2897801-20833,"1,813.00",DURHAM CITY COACHES.
Children and Adult Services,Education,Transport,230007,Contract Hire,11-May-2015,2897839-17234,"1,946.00",GARNETTS LTD (COACHES).
Children and Adult Services,Education,Transport,230007,Contract Hire,11-May-2015,2897839-17235,"3,052.00",GARNETTS LTD (COACHES).
Children and Adult Services,Education,Transport,230007,Contract Hire,11-May-2015,2897839-17236,"8,330.00",GARNETTS LTD (COACHES).
Children and Adult Services,Education,Transport,230007,Contract Hire,11-May-2015,2897839-17238,"12,446.00",GARNETTS LTD (COACHES).
Children and Adult Services,Education,Transport,230007,Contract Hire,11-May-2015,2897839-17239,"2,226.00",GARNETTS LTD (COACHES).
Children and Adult Services,Education,Transport,230007,Contract Hire,11-May-2015,2897839-17240,"1,677.00",GARNETTS LTD (COACHES).
Children and Adult Services,Education,Transport,230007,Contract Hire,11-May-2015,2897932-8,560.00,MR BW YOUNG T/A ESH TAXIS.
Children and Adult Services,Education,Transport,230007,Contract Hire,11-May-2015,2897941-168,504.00,N FORBES.
Children and Adult Services,Education,Transport,230007,Contract Hire,11-May-2015,2898078-5201,"2,702.00",WEARDALE PRIVATE HIRE.
Children and Adult Services,Education,Transport,230007,Contract Hire,11-May-2015,2898078-5202,"2,575.86",WEARDALE PRIVATE HIRE.
Children and Adult Services,Education,Transport,230007,Contract Hire,11-May-2015,2898085-27315-APRIL2015,520.00,WIL TRAVEL.
Children and Adult Services,Education,Transport,230008,Contract Hire,11-May-2015,2897678-41502,"1,280.00",24/7 TAXI SERVICES LTD.
Children and Adult Services,Education,Transport,230008,Contract Hire,11-May-2015,2897678-41503,949.00,24/7 TAXI SERVICES LTD.
Children and Adult Services,Education,Transport,230008,Contract Hire,11-May-2015,2897678-41504,630.00,24/7 TAXI SERVICES LTD.
Children and Adult Services,Education,Transport,230008,Contract Hire,11-May-2015,2897678-41507,798.00,24/7 TAXI SERVICES LTD.
Children and Adult Services,Education,Transport,230008,Contract Hire,11-May-2015,2897678-41508,"1,650.00",24/7 TAXI SERVICES LTD.
Children and Adult Services,Education,Transport,230008,Contract Hire,11-May-2015,2897733-PS0101,884.80,BURNDALE PRIVATE HIRE.
Children and Adult Services,Education,Transport,230008,Contract Hire,11-May-2015,2897741-92,"1,050.00",CASTLE CARS.
Children and Adult Services,Education,Transport,230008,Contract Hire,11-May-2015,2897759-240,826.00,COLIN HOLMES.
Children and Adult Services,Education,Transport,230008,Contract Hire,11-May-2015,2897780-DI201504,616.00,D&I TAXIS.
Children and Adult Services,Education,Transport,230008,Contract Hire,11-May-2015,2897787-0011,900.00,DAVID WALKER TAXIS.
Children and Adult Services,Education,Transport,230008,Contract Hire,11-May-2015,2897791-0415/001,980.00,DCM TAXIS.
Children and Adult Services,Education,Transport,230008,Contract Hire,11-May-2015,2897863-944,676.00,J YOUNG T/A VIP TAXIS.
Children and Adult Services,Education,Transport,230008,Contract Hire,11-May-2015,2897913-8,770.00,MALCOLM CARR T/A CARLY CABS.
Children and Adult Services,Education,Transport,230008,Contract Hire,11-May-2015,2897933-WAL104-15,"1,698.30",MR CT WALKER T/A COLIN`S TAXIS.
Children and Adult Services,Education,Transport,230008,Contract Hire,11-May-2015,2897933-WAL204-15,"1,615.00",MR CT WALKER T/A COLIN`S TAXIS.
Children and Adult Services,Education,Transport,230008,Contract Hire,11-May-2015,2897933-WINDS04-15,"2,198.00",MR CT WALKER T/A COLIN`S TAXIS.
Children and Adult Services,Education,Transport,230008,Contract Hire,11-May-2015,2897938-2855,700.00,MR S BOWERS.
Children and Adult Services,Education,Transport,230008,Contract Hire,11-May-2015,2897938-2858,"1,064.00",MR S BOWERS.
Children and Adult Services,Education,Transport,230008,Contract Hire,11-May-2015,2897941-167,"1,224.00",N FORBES.
Children and Adult Services,Education,Transport,230008,Contract Hire,11-May-2015,2898014-S027-04-15,"1,372.00",SIMON ELLIFF.
Children and Adult Services,Education,Transport,230008,Contract Hire,11-May-2015,2898014-W102-04-15,826.00,SIMON ELLIFF.
Children and Adult Services,Education,Transport,230008,Contract Hire,11-May-2015,2898085-26315-APR2015,588.00,WIL TRAVEL.
Children and Adult Services,Education,Third Party Payments,440999,Other Third Party Payments,11-May-2015,2897827-660,"28,699.86",FIRST IN TRAINING LTD.
Children and Adult Services,Education,Transfer Payments,510026,School Children,11-May-2015,2898050-SI-276,780.00,TM NURSERY ENTERPRISES LTD T/A JACK IN THE BOX DAYCARE.
Children and Adult Services,Education,Transfer Payments,510026,School Children,11-May-2015,2898050-SI-277,780.00,TM NURSERY ENTERPRISES LTD T/A JACK IN THE BOX DAYCARE.
Children and Adult Services,Education,Transfer Payments,510026,School Children,11-May-2015,2898050-SI-278,780.00,TM NURSERY ENTERPRISES LTD T/A JACK IN THE BOX DAYCARE.
Children and Adult Services,Head of Adults,Transport,230005,Contract Hire,11-May-2015,2897682-EA220764,"1,600.00",A MURRAY TRAVEL.
Children and Adult Services,Head of Adults,Transport,230005,Contract Hire,11-May-2015,2897772-5305,"1,143.76",CROFT BUSINESS SERVICES (UK) LTD T/A CROFT TAXIS.
Children and Adult Services,Head of Adults,Transport,230005,Contract Hire,11-May-2015,2897867-701,"1,069.00",JDS PRIVATE HIRE DURHAM.
Children and Adult Services,Head of Adults,Transport,230005,Contract Hire,11-May-2015,2897867-702,"1,640.00",JDS PRIVATE HIRE DURHAM.
Children and Adult Services,Head of Adults,Transport,230005,Contract Hire,11-May-2015,2897937-201513,650.00,MR JR FORT.
Children and Adult Services,Head of Adults,Transport,230005,Contract Hire,11-May-2015,2897973-0371,828.00,PETER`S PRIVATE HIRE/PETER BEST.
Children and Adult Services,Head of Adults,Transport,230005,Contract Hire,11-May-2015,2897973-0372,858.00,PETER`S PRIVATE HIRE/PETER BEST.
Children and Adult Services,Head of Adults,Transport,230005,Contract Hire,11-May-2015,2897982-DM127,570.00,PRATTS TAXIS.
Children and Adult Services,Head of Adults,Transport,230005,Contract Hire,11-May-2015,2898032-B723,"1,444.40",TALBOTS TRAVEL LTD.
Children and Adult Services,Head of Adults,Transport,230005,Contract Hire,11-May-2015,2898055-5614-APRIL2015,876.00,TRANSPORT.ADVENTURE.XI.
Children and Adult Services,Head of Adults,Transport,230005,Contract Hire,11-May-2015,2898055-5714-APRIL2015,"1,180.00",TRANSPORT.ADVENTURE.XI.
Children and Adult Services,Head of Adults,Supplies and Services,338366,Services,11-May-2015,2897738-23829,817.35,CARE ABILITY.
Children and Adult Services,Head of Adults,Supplies and Services,338366,Services,11-May-2015,2897738-24076,"1,923.58",CARE ABILITY.
Children and Adult Services,Head of Adults,Supplies and Services,338366,Services,11-May-2015,2897738-24144,"3,773.56",CARE ABILITY.
Children and Adult Services,Public Health,Third Party Payments,460802,Contract Payments,11-May-2015,2897948-7310002446,"38,200.00",NHS NORTH OF ENGLAND CSU.
Children and Adult Services,Public Health,Third Party Payments,460803,Contract Payments,11-May-2015,2897744,530.00,CENTRECHEM DISPENSING CHEMIST.
Children and Adult Services,Public Health,Third Party Payments,460803,Contract Payments,11-May-2015,2897709-FDE75/APRIL/15,791.00,ASDA PHARMACY.
Children and Adult Services,Public Health,Third Party Payments,460803,Contract Payments,11-May-2015,2897774-TVDA00146,"10,000.00",CRUSE BEREAVEMENT CARE.
Dedicated Schools Grant,Dedicated Schools Grant,Transport,230010,Contract Hire,11-May-2015,2897722-04/2015/0002,924.00,BILL SCOTT (BILL SCOTT TAXIS).
Dedicated Schools Grant,Dedicated Schools Grant,Transport,230010,Contract Hire,11-May-2015,2897843-GT019,924.00,GORDON`S TAXIS.
Dedicated Schools Grant,Dedicated Schools Grant,Transport,230010,Contract Hire,11-May-2015,2898080-487832,658.00,WENDYS` TAXIS.
Dedicated Schools Grant,Dedicated Schools Grant,Third Party Payments,425005,Rendered by Voluntary Organisations,11-May-2015,2897959-NK210/AM,"6,432.66",NUNNYKIRK CENTRE FOR DYSLEXIA.
Neighbourhood Services,Culture & Sport,Premises,106080,Centrally Controlled Rep and Maint,11-May-2015,2898006-96413985,"5,562.40",SCHNEIDER ELECTRIC LTD.
Neighbourhood Services,Culture & Sport,Premises,106082,Centrally Controlled Rep and Maint,11-May-2015,2897887-1502081,"1,169.75",KINGFISHER ENVIRONMENTAL SERVICES LTD.
Neighbourhood Services,Culture & Sport,Premises,145015,Cleaning and Domestic Supplies,11-May-2015,2897977-62362583,557.40,PHS GROUP PLC.
Neighbourhood Services,Culture & Sport,Supplies and Services,336005,Advertising,11-May-2015,2897679-2B26,"1,200.00",2B COMMUNICATIONS LTD.
Neighbourhood Services,Culture & Sport,Supplies and Services,338047,Services,11-May-2015,2897768-343,891.30,COWBOYS & IRANIANS LTD T/A PATRICK MONAHAN.
Neighbourhood Services,Culture & Sport,Supplies and Services,338047,Services,11-May-2015,2897847-FBC688,600.00,GROWLING CLOWN.
Neighbourhood Services,Culture & Sport,Supplies and Services,338047,Services,11-May-2015,2898047-57516,"1,106.86",THEATRE HULLABALOO.
Neighbourhood Services,Culture & Sport,Supplies and Services,384540,Miscellaneous Expenses,11-May-2015,2897862-2042265,500.00,J CATHERALL & CO PRINTERS LTD.
Neighbourhood Services,Culture & Sport,Supplies and Services,384700,Miscellaneous Expenses,11-May-2015,2897807-NEI-EXP,912.00,EASINGTON HARES RUNNING CLUB.
Neighbourhood Services,Direct Services,Premises,106082,Centrally Controlled Rep and Maint,11-May-2015,2897878-13942,755.00,JPS SYSTEMS N E LTD.
Neighbourhood Services,Direct Services,Supplies and Services,304221,Equipment and Materials,11-May-2015,2897811-059-163303,"1,113.32",EDMUNDSON ELECTRICAL LTD.
Neighbourhood Services,Direct Services,Supplies and Services,304221,Equipment and Materials,11-May-2015,2897912-827/039173,738.37,MAGNET LTD.
Neighbourhood Services,Direct Services,Supplies and Services,304221,Equipment and Materials,11-May-2015,2897957-1558407,"2,056.00",NORTHERN TOOLS & ACCESSORIES.
Neighbourhood Services,Direct Services,Supplies and Services,304221,Equipment and Materials,11-May-2015,2897957-1565260,"1,423.00",NORTHERN TOOLS & ACCESSORIES.
Neighbourhood Services,Direct Services,Supplies and Services,304221,Equipment and Materials,11-May-2015,2898088-21704774,551.11,WOLSELEY UK LTD.
Neighbourhood Services,Direct Services,Supplies and Services,304259,Equipment and Materials,11-May-2015,2897957-1559206,"3,206.45",NORTHERN TOOLS & ACCESSORIES.
Neighbourhood Services,Direct Services,Supplies and Services,304259,Equipment and Materials,11-May-2015,2897957-1559276,"1,036.00",NORTHERN TOOLS & ACCESSORIES.
Neighbourhood Services,Direct Services,Supplies and Services,304259,Equipment and Materials,11-May-2015,2897957-1561144,"1,710.00",NORTHERN TOOLS & ACCESSORIES.
Neighbourhood Services,Direct Services,Supplies and Services,304259,Equipment and Materials,11-May-2015,2897957-1561768,"3,651.85",NORTHERN TOOLS & ACCESSORIES.
Neighbourhood Services,Direct Services,Supplies and Services,304359,Equipment and Materials,11-May-2015,2897836-159344,600.00,G O`BRIEN & SONS (NATIONWIDE DEMOLITION CONTRACTORS) LTD.
Neighbourhood Services,Direct Services,Supplies and Services,336005,Advertising,11-May-2015,2897919-83371,571.00,MASCOT SERVICES.
Neighbourhood Services,Direct Services,Supplies and Services,384956,Miscellaneous Expenses,11-May-2015,2897817-Y01162577,"1,881.00",ENVIRONMENT AGENCY.
Neighbourhood Services,Direct Services,Third Party Payments,430100,Rendered by Private Contractors,11-May-2015,2897714-1501,"4,140.00",AWR ROOFING & ALUMIN RAINWATER SYSTEMS LTD.
Neighbourhood Services,Direct Services,Third Party Payments,430100,Rendered by Private Contractors,11-May-2015,2897747-4131,736.00,CITY FABRICATIONS.
Neighbourhood Services,Projects and Business services,Third Party Payments,430100,Rendered by Private Contractors,11-May-2015,2897962-CN18911145,558.00,OCS GROUP UK LTD T/A CANNON HYGIENE.
Neighbourhood Services,Projects and Business services,Third Party Payments,430103,Rendered by Private Contractors,11-May-2015,2897718-NEI-EXP,614.46,BARNARDO SERVICES LTD.
Neighbourhood Services,Projects and Business services,Third Party Payments,430103,Rendered by Private Contractors,11-May-2015,2897845-NEI-EXP,"2,942.36",GREAT NORTH AIR AMBULANCE SERVICE TRADING CO LTD.
Neighbourhood Services,Technical Services,Premises,150015,Apportioned Exps of Operational Blds,11-May-2015,2897752-17573,616.05,CLEE HILL PLANT LTD.
Neighbourhood Services,Technical Services,Premises,150015,Apportioned Exps of Operational Blds,11-May-2015,2898081-408532,761.78,WERNICK HIRE LTD.
Neighbourhood Services,Technical Services,Premises,150015,Apportioned Exps of Operational Blds,11-May-2015,2898081-408536,626.78,WERNICK HIRE LTD.
Neighbourhood Services,Technical Services,Supplies and Services,304221,Equipment and Materials,11-May-2015,2897844-28914,"1,981.33",GRAB & DELIVER LTD.
Neighbourhood Services,Technical Services,Supplies and Services,304221,Equipment and Materials,11-May-2015,2897890-9032533911,573.13,LAFARGE TARMAC TRADING LTD.
Neighbourhood Services,Technical Services,Supplies and Services,304221,Equipment and Materials,11-May-2015,2897890-9032535767,801.07,LAFARGE TARMAC TRADING LTD.
Neighbourhood Services,Technical Services,Supplies and Services,304221,Equipment and Materials,11-May-2015,2897916-ZBB0801825,"3,599.74",MARSHALLS MONO LTD.
Neighbourhood Services,Technical Services,Supplies and Services,304221,Equipment and Materials,11-May-2015,2897922-34841,"1,864.10",MAY GURNEY LTD.
Neighbourhood Services,Technical Services,Supplies and Services,304221,Equipment and Materials,11-May-2015,2897922-34847,"1,007.96",MAY GURNEY LTD.
Neighbourhood Services,Technical Services,Supplies and Services,304221,Equipment and Materials,11-May-2015,2898026-071398,521.92,STONEGRAVE AGGREGATES LTD.
Neighbourhood Services,Technical Services,Supplies and Services,304221,Equipment and Materials,11-May-2015,2898051-26014,525.00,TODDS HIGHWAY MAINTENANCE LTD.
Neighbourhood Services,Technical Services,Supplies and Services,304221,Equipment and Materials,11-May-2015,2898073-18039,545.26,WARD TIMBER LTD.
Neighbourhood Services,Technical Services,Stock,926900,Stock in hand-Inventory system,11-May-2015,2897697-17708,840.00,AMECAL.
Regeneration & Economic Development,Economic Development and Housing,Supplies and Services,384899,Miscellaneous Expenses,11-May-2015,2897852-RED-05-2015-030,"1,200.00",HERITAGE CRAFT ALLIANCE LTD.
Regeneration & Economic Development,Economic Development and Housing,Supplies and Services,384899,Miscellaneous Expenses,11-May-2015,2897855-RED-05-2015-031,510.00,HUTTON MAGNA PARISH COUNCIL.
Regeneration & Economic Development,Economic Development and Housing,Supplies and Services,384899,Miscellaneous Expenses,11-May-2015,2898046-RED-02-2015-032,949.66,THE WARM AGE WOOD COMPANY CIC.
Regeneration & Economic Development,Spatial Policy Planning Assets & Environment,Premises,125009,Rents,11-May-2015,2897800-9277,"1,600.00",DURHAM CATHEDRAL LTD.
Regeneration & Economic Development,Spatial Policy Planning Assets & Environment,Supplies and Services,338066,Services,11-May-2015,2897991-T30861,"1,367.00",REDHILL ANALYSTS LTD.
Regeneration & Economic Development,Spatial Policy Planning Assets & Environment,Supplies and Services,384540,Miscellaneous Expenses,11-May-2015,2898084-WDS-INV-252,"1,399.64",WIDE SKY DESIGN.
Regeneration & Economic Development,Spatial Policy Planning Assets & Environment,Supplies and Services,384540,Miscellaneous Expenses,11-May-2015,2898084-WSDINV253,"4,645.45",WIDE SKY DESIGN.
Regeneration & Economic Development,Transport and Contracted Services,Employees,040149,Recruitment Instruction and Training,11-May-2015,2897854-1745,600.00,HSF TRAINING LTD.
Resources,Financial Services,Supplies and Services,384199,Miscellaneous Expenses,11-May-2015,2897898-91892,"1,639.68",LIBERATA UK LTD T/A CAPACITYGRID.
Resources,I.C.T. Services,Premises,120009,Energy Costs,11-May-2015,2897748-2821007962,"7,136.12",CITY OF SUNDERLAND.
Resources,I.C.T. Services,Stock,926900,Stock in hand-Inventory system,11-May-2015,2898095-X922791,"1,252.00",XMA LTD.
Resources,I.C.T. Services,Stock,926900,Stock in hand-Inventory system,11-May-2015,2898095-X922793,626.00,XMA LTD.
Assistant Chief Executive,Partnerships & Community Engagement Div.,Transfer Payments,525030,Other,12-May-2015,2898107-VOUCHER14AB,824.00,ALAN TENNICK MEMORIAL EVENT COMMITTEE.
Assistant Chief Executive,Partnerships & Community Engagement Div.,Transfer Payments,525030,Other,12-May-2015,2898198-VOUCHER14PH-STAN001,"5,000.00",EAST DURHAM COMMUNITY DEVELOPMENT TRUST LTD.
Assistant Chief Executive,Partnerships & Community Engagement Div.,Transfer Payments,525030,Other,12-May-2015,2898199-VOUCHER14AB,775.00,EASTGATE VILLAGE HALL ASSOCIATION.
Assistant Chief Executive,Partnerships & Community Engagement Div.,Transfer Payments,525030,Other,12-May-2015,2898231-VOUCHER14AB,600.00,HAREHOPE QUARRY PROJECT LTD.
Assistant Chief Executive,Partnerships & Community Engagement Div.,Transfer Payments,525030,Other,12-May-2015,2898436-VOUCHER14AB,500.00,STANHOPE SILVER BAND.
Assistant Chief Executive,Partnerships & Community Engagement Div.,Transfer Payments,525030,Other,12-May-2015,2898462-VOUCHER14AB,"1,000.00",THORNLEY VILLAGE HALL.
Assistant Chief Executive,Partnerships & Community Engagement Div.,Transfer Payments,525030,Other,12-May-2015,2898477-VOUCHER14AB,"1,200.00",UPPER TEESDALE AGRICULTURAL SUPPORT SERVICES LTD (UTASS).
Assistant Chief Executive,Partnerships & Community Engagement Div.,Transfer Payments,525030,Other,12-May-2015,2898485-VOUCHER14AB,"1,474.00",WEAR RIVERS TRUST.
Assistant Chief Executive,Partnerships & Community Engagement Div.,Cap Exp on Grants & Other Financial Assistance (REFCUS),918004,Contributions to other bodies,12-May-2015,2898152-VOUCHER14NB-MDUR018,"5,000.00",CASTLESIDE & DISTRICT COMMUNITY ASSOCIATION.
Children and Adult Services,Childrens Services,Supplies and Services,384491,Miscellaneous Expenses,12-May-2015,2898207-14C,792.00,EMERALD NURSERY.
Children and Adult Services,Education,Transport,230006,Contract Hire,12-May-2015,2898102-E23/GC,656.00,AABAT TAXIS.
Children and Adult Services,Education,Transport,230006,Contract Hire,12-May-2015,2898102-E3/SB,828.00,AABAT TAXIS.
Children and Adult Services,Education,Transport,230006,Contract Hire,12-May-2015,2898172-5313,689.92,CROFT BUSINESS SERVICES (UK) LTD T/A CROFT TAXIS.
Children and Adult Services,Education,Transport,230006,Contract Hire,12-May-2015,2898212-067,869.00,EXTREME TAXI`S.
Children and Adult Services,Education,Transport,230006,Contract Hire,12-May-2015,2898250-30/03/15G,534.00,JL EBDON.
Children and Adult Services,Education,Transport,230006,Contract Hire,12-May-2015,2898321-87F3460,686.00,MR GS ANDERSON.
Children and Adult Services,Education,Transport,230007,Contract Hire,12-May-2015,2898102-E11/SK,"1,356.80",AABAT TAXIS.
Children and Adult Services,Education,Transport,230007,Contract Hire,12-May-2015,2898102-E14/SP,616.00,AABAT TAXIS.
Children and Adult Services,Education,Transport,230007,Contract Hire,12-May-2015,2898123-03279,574.00,ATLAS TAXIS CONSETT.
Children and Adult Services,Education,Transport,230007,Contract Hire,12-May-2015,2898123-03282,616.00,ATLAS TAXIS CONSETT.
Children and Adult Services,Education,Transport,230007,Contract Hire,12-May-2015,2898164-C/8611,"4,438.00",COCHRANES T/A KELVIN TRAVEL.
Children and Adult Services,Education,Transport,230007,Contract Hire,12-May-2015,2898164-C/8612,"1,799.00",COCHRANES T/A KELVIN TRAVEL.
Children and Adult Services,Education,Transport,230007,Contract Hire,12-May-2015,2898164-C/8613,"1,939.00",COCHRANES T/A KELVIN TRAVEL.
Children and Adult Services,Education,Transport,230007,Contract Hire,12-May-2015,2898164-C/8614,"3,472.00",COCHRANES T/A KELVIN TRAVEL.
Children and Adult Services,Education,Transport,230007,Contract Hire,12-May-2015,2898208-0647,630.00,EN ROUTE TRAVEL.
Children and Adult Services,Education,Transport,230007,Contract Hire,12-May-2015,2898308-1193-30/4/15-BR,545.00,MR A CHAPMAN T/A ALAN`S TAXIS CHESTER LE ST.
Children and Adult Services,Education,Transport,230007,Contract Hire,12-May-2015,2898447-01513,999.60,TALLENTIRES LTD.
Children and Adult Services,Education,Transport,230008,Contract Hire,12-May-2015,2898102-E10/SH,868.00,AABAT TAXIS.
Children and Adult Services,Education,Transport,230008,Contract Hire,12-May-2015,2898102-E2/SA,"1,280.80",AABAT TAXIS.
Children and Adult Services,Education,Transport,230008,Contract Hire,12-May-2015,2898102-E4/SC,770.00,AABAT TAXIS.
Children and Adult Services,Education,Transport,230008,Contract Hire,12-May-2015,2898102-E5/SD,808.50,AABAT TAXIS.
Children and Adult Services,Education,Transport,230008,Contract Hire,12-May-2015,2898102-E6/SE,"1,036.00",AABAT TAXIS.
Children and Adult Services,Education,Transport,230008,Contract Hire,12-May-2015,2898103-25-30/4/15,"2,405.00",ABLE NOVAK TAXIS.
Children and Adult Services,Education,Transport,230008,Contract Hire,12-May-2015,2898103-26-30/4/15,540.00,ABLE NOVAK TAXIS.
Children and Adult Services,Education,Transport,230008,Contract Hire,12-May-2015,2898121-472,744.80,AT TAXIS LTD.
Children and Adult Services,Education,Transport,230008,Contract Hire,12-May-2015,2898121-473,826.00,AT TAXIS LTD.
Children and Adult Services,Education,Transport,230008,Contract Hire,12-May-2015,2898122-DCC10APRIL15,"1,120.00",ATLAS TAXIS BISHOP AUCKLAND.
Children and Adult Services,Education,Transport,230008,Contract Hire,12-May-2015,2898122-DCC2APRIL15,"2,060.60",ATLAS TAXIS BISHOP AUCKLAND.
Children and Adult Services,Education,Transport,230008,Contract Hire,12-May-2015,2898122-DCC4APRIL15,"1,470.00",ATLAS TAXIS BISHOP AUCKLAND.
Children and Adult Services,Education,Transport,230008,Contract Hire,12-May-2015,2898122-DCC7APRIL15,"1,190.00",ATLAS TAXIS BISHOP AUCKLAND.
Children and Adult Services,Education,Transport,230008,Contract Hire,12-May-2015,2898144-W01108,686.00,C & R TAXIS.
Children and Adult Services,Education,Transport,230008,Contract Hire,12-May-2015,2898165-0001461,"1,740.00",COLORS TAXIS LTD.
Children and Adult Services,Education,Transport,230008,Contract Hire,12-May-2015,2898167-572,"1,184.00",CONNORS MINI BUSES.
Children and Adult Services,Education,Transport,230008,Contract Hire,12-May-2015,2898167-573,924.00,CONNORS MINI BUSES.
Children and Adult Services,Education,Transport,230008,Contract Hire,12-May-2015,2898167-574,"1,208.00",CONNORS MINI BUSES.
Children and Adult Services,Education,Transport,230008,Contract Hire,12-May-2015,2898167-575,"1,036.00",CONNORS MINI BUSES.
Children and Adult Services,Education,Transport,230008,Contract Hire,12-May-2015,2898172-5317,647.36,CROFT BUSINESS SERVICES (UK) LTD T/A CROFT TAXIS.
Children and Adult Services,Education,Transport,230008,Contract Hire,12-May-2015,2898172-5319,546.00,CROFT BUSINESS SERVICES (UK) LTD T/A CROFT TAXIS.
Children and Adult Services,Education,Transport,230008,Contract Hire,12-May-2015,2898172-5320,680.40,CROFT BUSINESS SERVICES (UK) LTD T/A CROFT TAXIS.
Children and Adult Services,Education,Transport,230008,Contract Hire,12-May-2015,2898174-G/HEAD004,"1,050.00",D IRVING T/A BJ TAXIS.
Children and Adult Services,Education,Transport,230008,Contract Hire,12-May-2015,2898174-MEAD008,652.50,D IRVING T/A BJ TAXIS.
Children and Adult Services,Education,Transport,230008,Contract Hire,12-May-2015,2898176-1396,"1,162.00",DA TAXIS.
Children and Adult Services,Education,Transport,230008,Contract Hire,12-May-2015,2898176-1397,770.00,DA TAXIS.
Children and Adult Services,Education,Transport,230008,Contract Hire,12-May-2015,2898177-121,"1,130.00",DA TRAVEL.
Children and Adult Services,Education,Transport,230008,Contract Hire,12-May-2015,2898177-122,825.50,DA TRAVEL.
Children and Adult Services,Education,Transport,230008,Contract Hire,12-May-2015,2898180-2484,"1,190.00",DAVES MINIBUSES.
Children and Adult Services,Education,Transport,230008,Contract Hire,12-May-2015,2898180-2485,552.50,DAVES MINIBUSES.
Children and Adult Services,Education,Transport,230008,Contract Hire,12-May-2015,2898180-2486,"1,064.00",DAVES MINIBUSES.
Children and Adult Services,Education,Transport,230008,Contract Hire,12-May-2015,2898180-2488,"1,050.00",DAVES MINIBUSES.
Children and Adult Services,Education,Transport,230008,Contract Hire,12-May-2015,2898180-2489,"1,400.00",DAVES MINIBUSES.
Children and Adult Services,Education,Transport,230008,Contract Hire,12-May-2015,2898180-2490,640.00,DAVES MINIBUSES.
Children and Adult Services,Education,Transport,230008,Contract Hire,12-May-2015,2898181-781,"1,750.00",DAVES TAXIS.
Children and Adult Services,Education,Transport,230008,Contract Hire,12-May-2015,2898205-A072/0415,672.00,ELLIOTTS OF TRIMDON.
Children and Adult Services,Education,Transport,230008,Contract Hire,12-May-2015,2898205-E052/0415,812.00,ELLIOTTS OF TRIMDON.
Children and Adult Services,Education,Transport,230008,Contract Hire,12-May-2015,2898208-0648A,"1,120.00",EN ROUTE TRAVEL.
Children and Adult Services,Education,Transport,230008,Contract Hire,12-May-2015,2898238-0152,"1,632.40",I CLYDESDALE T/A BURNOPFIELD TAXIS.
Children and Adult Services,Education,Transport,230008,Contract Hire,12-May-2015,2898250-30/03/15A,"1,400.00",JL EBDON.
Children and Adult Services,Education,Transport,230008,Contract Hire,12-May-2015,2898250-30/03/15B,"1,120.00",JL EBDON.
Children and Adult Services,Education,Transport,230008,Contract Hire,12-May-2015,2898250-30/03/15D,980.00,JL EBDON.
Children and Adult Services,Education,Transport,230008,Contract Hire,12-May-2015,2898250-30/03/15F,"1,092.00",JL EBDON.
Children and Adult Services,Education,Transport,230008,Contract Hire,12-May-2015,2898321-86E3359,938.00,MR GS ANDERSON.
Children and Adult Services,Education,Transport,230008,Contract Hire,12-May-2015,2898392-01262,980.00,PHILLIPS TAXI GROUP LTD.
Children and Adult Services,Education,Transport,230008,Contract Hire,12-May-2015,2898397-1074,"1,050.00",PODA LTD.
Children and Adult Services,Education,Third Party Payments,430100,Rendered by Private Contractors,12-May-2015,2898334-13,605.90,MR PHILLIP TAIT.
Children and Adult Services,Head of Adults,Transport,230005,Contract Hire,12-May-2015,2898167-590,"1,100.00",CONNORS MINI BUSES.
Children and Adult Services,Head of Adults,Transport,230005,Contract Hire,12-May-2015,2898172-5309,"1,170.80",CROFT BUSINESS SERVICES (UK) LTD T/A CROFT TAXIS.
Children and Adult Services,Head of Adults,Transport,230005,Contract Hire,12-May-2015,2898238-0153,748.00,I CLYDESDALE T/A BURNOPFIELD TAXIS.
Children and Adult Services,Head of Adults,Transport,230005,Contract Hire,12-May-2015,2898317-2014-89,"1,980.00",MR D KEMP T/A ACE EXECUTIVE.
Children and Adult Services,Head of Adults,Transport,230005,Contract Hire,12-May-2015,2898320-66151,"1,196.00",MR GN ROBBINS T/A GNR MINIBUS HIRE.
Children and Adult Services,Head of Adults,Transport,230005,Contract Hire,12-May-2015,2898398-W10,510.00,PRESTYS HACKNEY & PRIVATE HIRE TAXIS.
Children and Adult Services,Head of Adults,Transport,230005,Contract Hire,12-May-2015,2898405-15054,"1,700.00",RAPID MINIBUSES.
Children and Adult Services,Head of Adults,Transport,230005,Contract Hire,12-May-2015,2898458-151,640.00,THE TAXI COMPANY (MURTON) LTD.
Children and Adult Services,Head of Adults,Transport,230005,Contract Hire,12-May-2015,2898483-979,500.00,WAYNE`S TAXIS.
Children and Adult Services,Head of Adults,Supplies and Services,304259,Equipment and Materials,12-May-2015,2898384-CN18946368,796.14,OCS GROUP UK LTD T/A CANNON HYGIENE.
Children and Adult Services,Public Health,Third Party Payments,460802,Contract Payments,12-May-2015,2898160-7910016961,"6,806.62",CITY HOSPITALS SUNDERLAND NHS FOUNDATION TRUST.
Children and Adult Services,Public Health,Third Party Payments,460802,Contract Payments,12-May-2015,2898160-7910016966,"3,193.93",CITY HOSPITALS SUNDERLAND NHS FOUNDATION TRUST.
Children and Adult Services,Public Health,Third Party Payments,460802,Contract Payments,12-May-2015,2898373-R0238096,"13,901.60",NEWCASTLE UPON TYNE HOSPITALS NHS FOUNDATION TRUST.
Dedicated Schools Grant,Dedicated Schools Grant,Transport,230010,Contract Hire,12-May-2015,2898144-P04808-30/4/15,720.00,C & R TAXIS.
Dedicated Schools Grant,Dedicated Schools Grant,Transport,230010,Contract Hire,12-May-2015,2898163-B1295,672.00,COASTAL TAXIS.
Dedicated Schools Grant,Dedicated Schools Grant,Supplies and Services,338035,Services,12-May-2015,2898476-100448737,"1,676.50",UNIVERSITY OF CAMBRIDGE LOCAL EXAMINATIONS SYNDICATE (UCLES).
Neighbourhood Services,Culture & Sport,Supplies and Services,336005,Advertising,12-May-2015,2898417-5003082,"2,895.00",SAGITTARIAN EMBROIDERY.
Neighbourhood Services,Culture & Sport,Supplies and Services,384956,Miscellaneous Expenses,12-May-2015,2898472-UKA_PPL/94383,"1,409.40",UKACTIVE.
Neighbourhood Services,Direct Services,Premises,145009,Cleaning and Domestic Supplies,12-May-2015,2898377-21470,705.52,NIRAMAX GROUP LTD.
Neighbourhood Services,Direct Services,Premises,150015,Apportioned Exps of Operational Blds,12-May-2015,2898488-408609,750.00,WERNICK HIRE LTD.
Neighbourhood Services,Direct Services,Premises,150015,Apportioned Exps of Operational Blds,12-May-2015,2898488-408631,901.50,WERNICK HIRE LTD.
Neighbourhood Services,Direct Services,Premises,150015,Apportioned Exps of Operational Blds,12-May-2015,2898488-408634,533.35,WERNICK HIRE LTD.
Neighbourhood Services,Direct Services,Transport,210057,Repair and Maintenance of Vehicles,12-May-2015,2898130-25155178,520.00,BELL TRUCK SALES LTD.
Neighbourhood Services,Direct Services,Transport,210057,Repair and Maintenance of Vehicles,12-May-2015,2898151-200665,507.50,CARRS BILLINGTON AGRICULTURE.
Neighbourhood Services,Direct Services,Transport,210057,Repair and Maintenance of Vehicles,12-May-2015,2898499-SI66683,"2,224.46",ZOELLER WASTE SYSTEMS LTD.
Neighbourhood Services,Direct Services,Transport,210057,Repair and Maintenance of Vehicles,12-May-2015,2898499-SVI32565,549.40,ZOELLER WASTE SYSTEMS LTD.
Neighbourhood Services,Direct Services,Transport,230005,Contract Hire,12-May-2015,2898141-NEW8119391,"1,059.80",BURNT TREE GROUP LTD.
Neighbourhood Services,Direct Services,Transport,230005,Contract Hire,12-May-2015,2898141-NEW8119392,"1,059.80",BURNT TREE GROUP LTD.
Neighbourhood Services,Direct Services,Transport,230005,Contract Hire,12-May-2015,2898141-NEW8119394,580.00,BURNT TREE GROUP LTD.
Neighbourhood Services,Direct Services,Transport,230005,Contract Hire,12-May-2015,2898265-4363401,"1,530.00",LEEDS COMMERCIAL LTD.
Neighbourhood Services,Direct Services,Transport,230005,Contract Hire,12-May-2015,2898414-IV31665,"3,272.64",RTR RIVERSIDE TRUCK RENTAL LTD.
Neighbourhood Services,Direct Services,Transport,230005,Contract Hire,12-May-2015,2898414-IV31783,"4,180.00",RTR RIVERSIDE TRUCK RENTAL LTD.
Neighbourhood Services,Direct Services,Transport,230005,Contract Hire,12-May-2015,2898414-IV31849,"3,272.64",RTR RIVERSIDE TRUCK RENTAL LTD.
Neighbourhood Services,Direct Services,Transport,230005,Contract Hire,12-May-2015,2898414-IV31943,"3,272.61",RTR RIVERSIDE TRUCK RENTAL LTD.
Neighbourhood Services,Direct Services,Transport,230005,Contract Hire,12-May-2015,2898414-IV38825,"3,272.64",RTR RIVERSIDE TRUCK RENTAL LTD.
Neighbourhood Services,Direct Services,Transport,230005,Contract Hire,12-May-2015,2898414-IV38869,"4,180.00",RTR RIVERSIDE TRUCK RENTAL LTD.
Neighbourhood Services,Direct Services,Transport,230005,Contract Hire,12-May-2015,2898414-IV38881,"4,180.00",RTR RIVERSIDE TRUCK RENTAL LTD.
Neighbourhood Services,Direct Services,Transport,230005,Contract Hire,12-May-2015,2898414-IV38884,"4,180.00",RTR RIVERSIDE TRUCK RENTAL LTD.
Neighbourhood Services,Direct Services,Transport,230005,Contract Hire,12-May-2015,2898414-IV38906,"3,322.00",RTR RIVERSIDE TRUCK RENTAL LTD.
Neighbourhood Services,Direct Services,Transport,230005,Contract Hire,12-May-2015,2898414-IV38908,"4,620.00",RTR RIVERSIDE TRUCK RENTAL LTD.
Neighbourhood Services,Direct Services,Transport,230005,Contract Hire,12-May-2015,2898414-IV38919,"4,180.00",RTR RIVERSIDE TRUCK RENTAL LTD.
Neighbourhood Services,Direct Services,Transport,230005,Contract Hire,12-May-2015,2898414-IV38968,"3,272.64",RTR RIVERSIDE TRUCK RENTAL LTD.
Neighbourhood Services,Direct Services,Transport,230005,Contract Hire,12-May-2015,2898414-IV39007,"3,272.61",RTR RIVERSIDE TRUCK RENTAL LTD.
Neighbourhood Services,Direct Services,Transport,230005,Contract Hire,12-May-2015,2898482-66352,"1,007.00",WARREN ACCESS LTD.
Neighbourhood Services,Direct Services,Supplies and Services,304221,Equipment and Materials,12-May-2015,2898230-118562,"4,021.73",GUSTHARTS.
Neighbourhood Services,Direct Services,Supplies and Services,304259,Equipment and Materials,12-May-2015,2898128-95834122,"1,461.70",BALL COLEGRAVE LTD.
Neighbourhood Services,Direct Services,Supplies and Services,304259,Equipment and Materials,12-May-2015,2898254-4521,"4,675.00",JP CONCRETE PRODUCTS.
Neighbourhood Services,Direct Services,Third Party Payments,430100,Rendered by Private Contractors,12-May-2015,2898109-550,"1,680.00",ALL SEASONS ARBORISTS.
Neighbourhood Services,Direct Services,Third Party Payments,430100,Rendered by Private Contractors,12-May-2015,2898387-557213,942.00,P & N ASSOCIATES LTD.
Neighbourhood Services,Direct Services,Third Party Payments,430100,Rendered by Private Contractors,12-May-2015,2898452-6975,"1,599.00",TEAMS ROOFING LTD.
Neighbourhood Services,Direct Services,Third Party Payments,430100,Rendered by Private Contractors,12-May-2015,2898499-SVI32640,668.83,ZOELLER WASTE SYSTEMS LTD.
Neighbourhood Services,Direct Services,Stock,926004,Stock,12-May-2015,2898232-531855,"33,650.14",HARVEST ENERGY LTD.
Neighbourhood Services,Technical Services,Employees,040149,Recruitment Instruction and Training,12-May-2015,2898261-TN01-GAS15-133,"1,580.00",KIER NORTH TYNESIDE LTD.
Neighbourhood Services,Technical Services,Premises,150015,Apportioned Exps of Operational Blds,12-May-2015,2898488-408543,660.66,WERNICK HIRE LTD.
Neighbourhood Services,Technical Services,Supplies and Services,304221,Equipment and Materials,12-May-2015,2898105-21311963,"1,216.67",AGGREGATE INDUSTRIES UK LTD.
Neighbourhood Services,Technical Services,Supplies and Services,304221,Equipment and Materials,12-May-2015,2898225-28947,819.00,GRAB & DELIVER LTD.
Neighbourhood Services,Technical Services,Supplies and Services,304221,Equipment and Materials,12-May-2015,2898465-25991,"2,960.00",TODDS HIGHWAY MAINTENANCE LTD.
Neighbourhood Services,Technical Services,Supplies and Services,304358,Equipment and Materials,12-May-2015,2898127-MG04349,500.00,BAILEY CONCRETE PUMPING LTD.
Neighbourhood Services,Technical Services,Supplies and Services,304358,Equipment and Materials,12-May-2015,2898253-23258,925.00,JOHN R BUTTERFIELD LTD.
Neighbourhood Services,Technical Services,Supplies and Services,304358,Equipment and Materials,12-May-2015,2898253-23259,985.00,JOHN R BUTTERFIELD LTD.
Neighbourhood Services,Technical Services,Supplies and Services,304358,Equipment and Materials,12-May-2015,2898253-23270,560.50,JOHN R BUTTERFIELD LTD.
Neighbourhood Services,Technical Services,Supplies and Services,304358,Equipment and Materials,12-May-2015,2898253-23307,975.00,JOHN R BUTTERFIELD LTD.
Neighbourhood Services,Technical Services,Supplies and Services,304358,Equipment and Materials,12-May-2015,2898253-23309,"1,027.00",JOHN R BUTTERFIELD LTD.
Neighbourhood Services,Technical Services,Supplies and Services,304358,Equipment and Materials,12-May-2015,2898253-23310,"1,065.50",JOHN R BUTTERFIELD LTD.
Neighbourhood Services,Technical Services,Supplies and Services,304358,Equipment and Materials,12-May-2015,2898253-23311,"1,372.00",JOHN R BUTTERFIELD LTD.
Neighbourhood Services,Technical Services,Supplies and Services,304358,Equipment and Materials,12-May-2015,2898253-23314,773.20,JOHN R BUTTERFIELD LTD.
Neighbourhood Services,Technical Services,Supplies and Services,304358,Equipment and Materials,12-May-2015,2898253-23317,703.00,JOHN R BUTTERFIELD LTD.
Neighbourhood Services,Technical Services,Supplies and Services,304358,Equipment and Materials,12-May-2015,2898253-23343,762.00,JOHN R BUTTERFIELD LTD.
Neighbourhood Services,Technical Services,Supplies and Services,304358,Equipment and Materials,12-May-2015,2898253-23344,610.20,JOHN R BUTTERFIELD LTD.
Neighbourhood Services,Technical Services,Supplies and Services,304358,Equipment and Materials,12-May-2015,2898253-23345,784.00,JOHN R BUTTERFIELD LTD.
Neighbourhood Services,Technical Services,Supplies and Services,304358,Equipment and Materials,12-May-2015,2898253-23346,595.20,JOHN R BUTTERFIELD LTD.
Neighbourhood Services,Technical Services,Supplies and Services,304358,Equipment and Materials,12-May-2015,2898253-23347,802.00,JOHN R BUTTERFIELD LTD.
Neighbourhood Services,Technical Services,Supplies and Services,304358,Equipment and Materials,12-May-2015,2898253-23349,570.00,JOHN R BUTTERFIELD LTD.
Neighbourhood Services,Technical Services,Supplies and Services,304358,Equipment and Materials,12-May-2015,2898253-23351,628.80,JOHN R BUTTERFIELD LTD.
Neighbourhood Services,Technical Services,Supplies and Services,304358,Equipment and Materials,12-May-2015,2898253-23368,765.40,JOHN R BUTTERFIELD LTD.
Neighbourhood Services,Technical Services,Supplies and Services,304358,Equipment and Materials,12-May-2015,2898253-23369,765.40,JOHN R BUTTERFIELD LTD.
Neighbourhood Services,Technical Services,Supplies and Services,304358,Equipment and Materials,12-May-2015,2898253-23371,536.00,JOHN R BUTTERFIELD LTD.
Neighbourhood Services,Technical Services,Supplies and Services,304358,Equipment and Materials,12-May-2015,2898253-23372,839.80,JOHN R BUTTERFIELD LTD.
Neighbourhood Services,Technical Services,Supplies and Services,304358,Equipment and Materials,12-May-2015,2898253-23388,714.60,JOHN R BUTTERFIELD LTD.
Neighbourhood Services,Technical Services,Supplies and Services,304358,Equipment and Materials,12-May-2015,2898253-23389,"1,174.50",JOHN R BUTTERFIELD LTD.
Neighbourhood Services,Technical Services,Supplies and Services,304358,Equipment and Materials,12-May-2015,2898253-23391,740.40,JOHN R BUTTERFIELD LTD.
Neighbourhood Services,Technical Services,Supplies and Services,304358,Equipment and Materials,12-May-2015,2898253-23394,914.20,JOHN R BUTTERFIELD LTD.
Neighbourhood Services,Technical Services,Supplies and Services,304358,Equipment and Materials,12-May-2015,2898253-23395,684.00,JOHN R BUTTERFIELD LTD.
Neighbourhood Services,Technical Services,Supplies and Services,304358,Equipment and Materials,12-May-2015,2898253-23411,990.00,JOHN R BUTTERFIELD LTD.
Neighbourhood Services,Technical Services,Supplies and Services,304358,Equipment and Materials,12-May-2015,2898253-23416,"1,150.00",JOHN R BUTTERFIELD LTD.
Neighbourhood Services,Technical Services,Supplies and Services,304358,Equipment and Materials,12-May-2015,2898253-23418,737.40,JOHN R BUTTERFIELD LTD.
Neighbourhood Services,Technical Services,Supplies and Services,304358,Equipment and Materials,12-May-2015,2898253-23419,740.40,JOHN R BUTTERFIELD LTD.
Neighbourhood Services,Technical Services,Supplies and Services,304358,Equipment and Materials,12-May-2015,2898253-23423,703.00,JOHN R BUTTERFIELD LTD.
Neighbourhood Services,Technical Services,Supplies and Services,304358,Equipment and Materials,12-May-2015,2898274-25A,"2,716.35",M & E & MR WALTON.
Neighbourhood Services,Technical Services,Supplies and Services,304358,Equipment and Materials,12-May-2015,2898278-1798,942.50,MARTIN JEWITT PLANT HIRE.
Neighbourhood Services,Technical Services,Supplies and Services,304358,Equipment and Materials,12-May-2015,2898278-1799,870.50,MARTIN JEWITT PLANT HIRE.
Neighbourhood Services,Technical Services,Supplies and Services,304358,Equipment and Materials,12-May-2015,2898423-2015032,"1,317.00",SHIREHAVEN LTD.
Neighbourhood Services,Technical Services,Supplies and Services,304358,Equipment and Materials,12-May-2015,2898423-2015033,985.00,SHIREHAVEN LTD.
Neighbourhood Services,Technical Services,Supplies and Services,338027,Services,12-May-2015,2898246-B225H002-071,"1,275.14",JACOBS UK LTD.
Neighbourhood Services,Technical Services,Supplies and Services,338027,Services,12-May-2015,2898448-HLD-TH/DCC/001,"1,800.00",TAMSIN HARRISON T/A HEART LAND DESIGN LTD.
Neighbourhood Services,Technical Services,Third Party Payments,430100,Rendered by Private Contractors,12-May-2015,2898437-7018,"1,343.00",STEADFAST SECURITY SOLUTIONS LTD.
Neighbourhood Services,Technical Services,Construction Work,908105,Construction work,12-May-2015,2898245-11172,840.08,JACK COUPE & SONS LTD T/A COUPE LINE.
Neighbourhood Services,Technical Services,Construction Work,908105,Construction work,12-May-2015,2898245-11173,863.45,JACK COUPE & SONS LTD T/A COUPE LINE.
Neighbourhood Services,Technical Services,Construction Work,908105,Construction work,12-May-2015,2898245-11174,863.02,JACK COUPE & SONS LTD T/A COUPE LINE.
Neighbourhood Services,Technical Services,Construction Work,908105,Construction work,12-May-2015,2898245-11175,757.93,JACK COUPE & SONS LTD T/A COUPE LINE.
Neighbourhood Services,Technical Services,Construction Work,908105,Construction work,12-May-2015,2898245-11176,"2,473.68",JACK COUPE & SONS LTD T/A COUPE LINE.
RED HRA,HRA Capital,Construction Work,908105,Construction work,12-May-2015,2898209,730.21,EON UK PLC.
Regeneration & Economic Development,Economic Development and Housing,Supplies and Services,384700,Miscellaneous Expenses,12-May-2015,2898239-RED-05-2015-057,"1,000.00",IK UK LTD.
Regeneration & Economic Development,Economic Development and Housing,Supplies and Services,384700,Miscellaneous Expenses,12-May-2015,2898301-RED-05-2015-055,"1,000.00",MISTY BLUE FARM.
Regeneration & Economic Development,Economic Development and Housing,Supplies and Services,384700,Miscellaneous Expenses,12-May-2015,2898305-RED-05-2015-056,"1,500.00",MONK HESLEDEN PARISH COUNCIL.
Regeneration & Economic Development,Economic Development and Housing,Cap Exp on Grants & Other Financial Assistance (REFCUS),918401,Capital grants,12-May-2015,2898125-RED-05-2015-048,"9,818.25",AVENSWAY BUILDING CONTRACTORS LTD.
Regeneration & Economic Development,Economic Development and Housing,Cap Exp on Grants & Other Financial Assistance (REFCUS),918401,Capital grants,12-May-2015,2898273-RED-05-2015-053,"4,144.00",LORMOR & HALL CONSTRUCTION.
Regeneration & Economic Development,Economic Development and Housing,Cap Exp on Grants & Other Financial Assistance (REFCUS),918401,Capital grants,12-May-2015,2898425-RED-05-2015-040,526.20,SHUTTER MEDIA LTD.
Regeneration & Economic Development,Economic Development and Housing,Cap Exp on Grants & Other Financial Assistance (REFCUS),918401,Capital grants,12-May-2015,2898463-RED-01-2015-195,"3,955.00",THYSSENKRUPP ENCASA A DIVISION OF THYSSENKRUPP ACCESS LTD.
Regeneration & Economic Development,Economic Development and Housing,Cap Exp on Grants & Other Financial Assistance (REFCUS),918401,Capital grants,12-May-2015,2898463-RED-01-2015-196,"5,245.00",THYSSENKRUPP ENCASA A DIVISION OF THYSSENKRUPP ACCESS LTD.
Regeneration & Economic Development,Economic Development and Housing,Cap Exp on Grants & Other Financial Assistance (REFCUS),918401,Capital grants,12-May-2015,2898463-RED-05-2015-036,"4,055.00",THYSSENKRUPP ENCASA A DIVISION OF THYSSENKRUPP ACCESS LTD.
Regeneration & Economic Development,Economic Development and Housing,Cap Exp on Grants & Other Financial Assistance (REFCUS),918401,Capital grants,12-May-2015,2898463-RED-05-2015-047,"1,490.00",THYSSENKRUPP ENCASA A DIVISION OF THYSSENKRUPP ACCESS LTD.
Regeneration & Economic Development,Economic Development and Housing,Cap Exp on Grants & Other Financial Assistance (REFCUS),918401,Capital grants,12-May-2015,2898463-RED-05-2015-050,"1,745.00",THYSSENKRUPP ENCASA A DIVISION OF THYSSENKRUPP ACCESS LTD.
Regeneration & Economic Development,Economic Development and Housing,Cap Exp on Grants & Other Financial Assistance (REFCUS),918401,Capital grants,12-May-2015,2898463-RED-05-2015-052,"4,095.00",THYSSENKRUPP ENCASA A DIVISION OF THYSSENKRUPP ACCESS LTD.
Regeneration & Economic Development,Economic Development and Housing,Cap Exp on Grants & Other Financial Assistance (REFCUS),918401,Capital grants,12-May-2015,2898466-RED-05-2015-051,"3,661.00",TOTAL HYGIENE LTD.
Regeneration & Economic Development,Spatial Policy Planning Assets & Environment,Income,720190,Fees and Charges,12-May-2015,2898490-RED-05-2015-034,"1,495.00",WILLMOTT DIXON CONSTRUCTION LTD.
Regeneration & Economic Development,Spatial Policy Planning Assets & Environment,Income,720200,Fees and Charges,12-May-2015,2898276-RED-04-2015-219,"3,080.00",REDACTED - PAYMENT TO INDIVIDUAL
Regeneration & Economic Development,Transport and Contracted Services,Supplies and Services,342053,Computers and Communications,12-May-2015,2898258-T/15/14546,"3,960.00",KEYSOFT SOLUTIONS LTD.
Regeneration & Economic Development,Transport and Contracted Services,Third Party Payments,430106,Rendered by Private Contractors,12-May-2015,2898419-1952,"114,051.89",SCARLET BAND BUS & COACH LTD.
Resources,I.C.T. Services,Supplies and Services,332029,Printing Stationery and Gen Off Exps,12-May-2015,2898263-1117367843,"1,318.06",KONICA MINOLTA BUSINESS SOLUTIONS (UK) LTD.
Assistant Chief Executive,Partnerships & Community Engagement Div.,Supplies and Services,384086,Miscellaneous Expenses,13-May-2015,239647-VOUCHER14NB-BASH018,"3,150.00",BISHOP AUCKLAND CIVIC SOCIETY (PUBLICATIONS).
Assistant Chief Executive,Partnerships & Community Engagement Div.,Supplies and Services,384086,Miscellaneous Expenses,13-May-2015,2898882-VOUCHER14NB-TEES018,"4,000.00",ST PAUL`S EVENWOOD PAROCHIAL CHURCH COUNCIL.
Assistant Chief Executive,Partnerships & Community Engagement Div.,Transfer Payments,525030,Other,13-May-2015,2898882-VOUCHER14AB,900.00,ST PAUL`S EVENWOOD PAROCHIAL CHURCH COUNCIL.
Assistant Chief Executive,Partnerships & Community Engagement Div.,Cap Exp on Grants & Other Financial Assistance (REFCUS),918004,Contributions to other bodies,13-May-2015,2898604-VOUCHER14AB-4TOG010,"5,350.00",CORNFORTH PARTNERSHIP.
Children and Adult Services,Childrens Services,Premises,108135,Service Repairs and Maintenance,13-May-2015,2898914-000912,640.00,TINTFIT WINDOW FILMS.
Children and Adult Services,Childrens Services,Supplies and Services,338044,Services,13-May-2015,239660-CI/DEC.9565,523.03,DR CHRISTOPHER MATTHEW INCE.
Children and Adult Services,Childrens Services,Supplies and Services,338045,Services,13-May-2015,2898796-250692,600.00,REDACTED - PAYMENT TO INDIVIDUAL
Children and Adult Services,Childrens Services,Third Party Payments,425040,Rendered by Voluntary Organisations,13-May-2015,2898895-162831,910.00,SWIIS FOSTER CARE LTD.
Children and Adult Services,Childrens Services,Third Party Payments,425040,Rendered by Voluntary Organisations,13-May-2015,2898895-162833,"1,074.99",SWIIS FOSTER CARE LTD.
Children and Adult Services,Childrens Services,Third Party Payments,425040,Rendered by Voluntary Organisations,13-May-2015,2898895-162834,891.87,SWIIS FOSTER CARE LTD.
Children and Adult Services,Childrens Services,Third Party Payments,425040,Rendered by Voluntary Organisations,13-May-2015,2898895-162835,900.97,SWIIS FOSTER CARE LTD.
Children and Adult Services,Childrens Services,Third Party Payments,425040,Rendered by Voluntary Organisations,13-May-2015,2898895-162836,"1,207.97",SWIIS FOSTER CARE LTD.
Children and Adult Services,Childrens Services,Third Party Payments,486044,Service Level Agreements,13-May-2015,2898599-3980010909,"2,456.00",CO DURHAM & DARLINGTON NHS FOUNDATION TRUST.
Children and Adult Services,Commissioning inc Supporting People,Third Party Payments,441001,Supporting People,13-May-2015,2898631-1962201,"20,819.76",DURHAM ACTION ON SINGLE HOUSING.
Children and Adult Services,Commissioning inc Supporting People,Third Party Payments,441001,Supporting People,13-May-2015,2898640-1962230,"5,483.40",EAST DURHAM COMMUNITY INITIATIVES LTD.
Children and Adult Services,Commissioning inc Supporting People,Third Party Payments,441001,Supporting People,13-May-2015,2898681-1962197,"18,082.80",HARBOUR SUPPORT SERVICES.
Children and Adult Services,Commissioning inc Supporting People,Third Party Payments,441001,Supporting People,13-May-2015,2898848-1962221,"9,423.88",RICHMOND FELLOWSHIP.
Children and Adult Services,Commissioning inc Supporting People,Third Party Payments,441001,Supporting People,13-May-2015,2898934-1962232,"1,183.60",WADDINGTON STREET CENTRE LTD.
Children and Adult Services,Commissioning inc Supporting People,Third Party Payments,441001,Supporting People,13-May-2015,2898936-1962194,"7,157.00",WEAR VALLEY WOMENS AID.
Children and Adult Services,Commissioning inc Supporting People,Third Party Payments,442002,Supporting People,13-May-2015,2898558-1962238,"16,448.04",BID SERVICES WITH DEAF PEOPLE.
Children and Adult Services,Commissioning inc Supporting People,Third Party Payments,442002,Supporting People,13-May-2015,2898586-1962205,"3,452.04",CHILDREN NORTH EAST.
Children and Adult Services,Commissioning inc Supporting People,Third Party Payments,442002,Supporting People,13-May-2015,2898609-1962171,"19,868.48",CREATIVE SUPPORT LTD.
Children and Adult Services,Commissioning inc Supporting People,Third Party Payments,442002,Supporting People,13-May-2015,2898627-1962160,"27,885.68",DISC LTD.
Children and Adult Services,Commissioning inc Supporting People,Third Party Payments,442002,Supporting People,13-May-2015,2898627-1962169,"5,668.48",DISC LTD.
Children and Adult Services,Commissioning inc Supporting People,Third Party Payments,442002,Supporting People,13-May-2015,2898654-1962195,"30,071.20",FOUNDATION.
Children and Adult Services,Commissioning inc Supporting People,Third Party Payments,442002,Supporting People,13-May-2015,2898680-1962231,"5,995.44",HANOVER HOUSING ASSOCIATION.
Children and Adult Services,Commissioning inc Supporting People,Third Party Payments,442002,Supporting People,13-May-2015,2898785-1962199,"5,240.36",MOVING ON.
Children and Adult Services,Commissioning inc Supporting People,Third Party Payments,442002,Supporting People,13-May-2015,2898848-1962087,"7,356.72",RICHMOND FELLOWSHIP.
Children and Adult Services,Commissioning inc Supporting People,Third Party Payments,442002,Supporting People,13-May-2015,2898868-1962200,"9,044.36",SHAID.
Children and Adult Services,Commissioning inc Supporting People,Third Party Payments,442002,Supporting People,13-May-2015,2898911-1962222,"36,446.00",THREE RIVERS HOUSING ASSOCIATION LTD.
Children and Adult Services,Commissioning inc Supporting People,Third Party Payments,443001,Supporting People,13-May-2015,2898631-1962223,"2,951.84",DURHAM ACTION ON SINGLE HOUSING.
Children and Adult Services,Commissioning inc Supporting People,Third Party Payments,443001,Supporting People,13-May-2015,2898631-1962227,"1,475.92",DURHAM ACTION ON SINGLE HOUSING.
Children and Adult Services,Commissioning inc Supporting People,Third Party Payments,443001,Supporting People,13-May-2015,2898934-1962164,"1,860.16",WADDINGTON STREET CENTRE LTD.
Children and Adult Services,Commissioning inc Supporting People,Third Party Payments,444002,Supporting People,13-May-2015,2898848-1962209,"4,068.24",RICHMOND FELLOWSHIP.
Children and Adult Services,Commissioning inc Supporting People,Third Party Payments,473111,Purchase of Care,13-May-2015,2898541-D/OP42-2015/16,"4,194.50",ASSOCIATION OF TEESDALE DAY CLUBS.
Children and Adult Services,Commissioning inc Supporting People,Third Party Payments,473111,Purchase of Care,13-May-2015,2898541-D/OP42-RENT,"9,500.00",ASSOCIATION OF TEESDALE DAY CLUBS.
Children and Adult Services,Education,Transport,230006,Contract Hire,13-May-2015,2898510-574,720.00,AC TAXIS.
Children and Adult Services,Education,Transport,230006,Contract Hire,13-May-2015,2898545-03281,823.60,ATLAS TAXIS CONSETT.
Children and Adult Services,Education,Transport,230006,Contract Hire,13-May-2015,2898545-03283,999.00,ATLAS TAXIS CONSETT.
Children and Adult Services,Education,Transport,230006,Contract Hire,13-May-2015,2898614-124,720.50,DA TRAVEL.
Children and Adult Services,Education,Transport,230006,Contract Hire,13-May-2015,2898778-0022,"1,204.00",MICHAEL CONNOR.
Children and Adult Services,Education,Transport,230006,Contract Hire,13-May-2015,2898894-36,986.00,SWAN TAXIS.
Children and Adult Services,Education,Transport,230006,Contract Hire,13-May-2015,2898916-ED311,562.00,TONYS TAXIS (A BIRCH).
Children and Adult Services,Education,Transport,230006,Contract Hire,13-May-2015,2898917-TSF601-08,558.00,TOP STAR TRAVEL.
Children and Adult Services,Education,Transport,230007,Contract Hire,13-May-2015,2898825-1414,"1,680.00",PAUL WATSON TRAVEL.
Children and Adult Services,Education,Transport,230007,Contract Hire,13-May-2015,2898903-HO7,990.00,TED WILFORD COACHES.
Children and Adult Services,Education,Transport,230007,Contract Hire,13-May-2015,2898903-MO18,"2,860.00",TED WILFORD COACHES.
Children and Adult Services,Education,Transport,230007,Contract Hire,13-May-2015,2898903-SA08,"1,232.00",TED WILFORD COACHES.
Children and Adult Services,Education,Transport,230007,Contract Hire,13-May-2015,2898903-TO19,"1,610.00",TED WILFORD COACHES.
Children and Adult Services,Education,Transport,230007,Contract Hire,13-May-2015,2898935-080,616.00,WAYSIDE TAXIS.
Children and Adult Services,Education,Transport,230007,Contract Hire,13-May-2015,2898937-CONS/APR/151,"2,354.80",WEARDALE MOTOR SERVICES LTD.
Children and Adult Services,Education,Transport,230007,Contract Hire,13-May-2015,2898937-CONS/APR/152,"2,366.00",WEARDALE MOTOR SERVICES LTD.
Children and Adult Services,Education,Transport,230007,Contract Hire,13-May-2015,2898937-CONS/APR/153,"4,116.00",WEARDALE MOTOR SERVICES LTD.
Children and Adult Services,Education,Transport,230008,Contract Hire,13-May-2015,2898506-AA1053,"1,062.60",AA MINIBUS HIRE.
Children and Adult Services,Education,Transport,230008,Contract Hire,13-May-2015,2898506-AA1054,"1,120.00",AA MINIBUS HIRE.
Children and Adult Services,Education,Transport,230008,Contract Hire,13-May-2015,2898506-AA1055,"1,050.00",AA MINIBUS HIRE.
Children and Adult Services,Education,Transport,230008,Contract Hire,13-May-2015,2898512-17/15,728.00,ADVANCE TRAVEL.
Children and Adult Services,Education,Transport,230008,Contract Hire,13-May-2015,2898542-471,980.00,AT TAXIS LTD.
Children and Adult Services,Education,Transport,230008,Contract Hire,13-May-2015,2898542-475,770.00,AT TAXIS LTD.
Children and Adult Services,Education,Transport,230008,Contract Hire,13-May-2015,2898549-471,"1,086.40",BEELINE MINI BUSES.
Children and Adult Services,Education,Transport,230008,Contract Hire,13-May-2015,2898549-472,"1,050.00",BEELINE MINI BUSES.
Children and Adult Services,Education,Transport,230008,Contract Hire,13-May-2015,2898610-5323,"1,318.30",CROFT BUSINESS SERVICES (UK) LTD T/A CROFT TAXIS.
Children and Adult Services,Education,Transport,230008,Contract Hire,13-May-2015,2898656-0415,900.00,FRANK ATKINSON T/A FJ MINIBUS TRAVEL.
Children and Adult Services,Education,Transport,230008,Contract Hire,13-May-2015,2898656-1504,"1,750.00",FRANK ATKINSON T/A FJ MINIBUS TRAVEL.
Children and Adult Services,Education,Transport,230008,Contract Hire,13-May-2015,2898696-0154,980.00,I CLYDESDALE T/A BURNOPFIELD TAXIS.
Children and Adult Services,Education,Transport,230008,Contract Hire,13-May-2015,2898718-APRIL2015,"1,015.00",JL EBDON.
Children and Adult Services,Education,Transport,230008,Contract Hire,13-May-2015,2898760-19,"1,050.00",M BEHAN T/A M & M`S TAXIS.
Children and Adult Services,Education,Transport,230008,Contract Hire,13-May-2015,2898761-AKTAS8,"1,260.00",MA BODDY.
Children and Adult Services,Education,Transport,230008,Contract Hire,13-May-2015,2898761-APRIL-15,"1,239.70",MA BODDY.
Children and Adult Services,Education,Transport,230008,Contract Hire,13-May-2015,2898779-00726,"1,456.00",MICHAELS TRAVEL.
Children and Adult Services,Education,Transport,230008,Contract Hire,13-May-2015,2898779-00727,"1,414.00",MICHAELS TRAVEL.
Children and Adult Services,Education,Transport,230008,Contract Hire,13-May-2015,2898779-00728,"1,260.00",MICHAELS TRAVEL.
Children and Adult Services,Education,Transport,230008,Contract Hire,13-May-2015,2898787-707/APRIL2015,800.00,MR AD HOWARD T/A TOFT HILL TAXIS.
Children and Adult Services,Education,Transport,230008,Contract Hire,13-May-2015,2898794-262,980.00,MR LEE ANDERSON.
Children and Adult Services,Education,Transport,230008,Contract Hire,13-May-2015,2898795-A057/04/15,638.00,MR M ALLISON T/A MACBETH TAXIS/COACHES.
Children and Adult Services,Education,Transport,230008,Contract Hire,13-May-2015,2898795-N053/04/15,"1,344.00",MR M ALLISON T/A MACBETH TAXIS/COACHES.
Children and Adult Services,Education,Transport,230008,Contract Hire,13-May-2015,2898795-N059/04/15,"1,040.00",MR M ALLISON T/A MACBETH TAXIS/COACHES.
Children and Adult Services,Education,Transport,230008,Contract Hire,13-May-2015,2898916-ED304,"1,342.00",TONYS TAXIS (A BIRCH).
Children and Adult Services,Education,Transport,230008,Contract Hire,13-May-2015,2898916-ED308,560.00,TONYS TAXIS (A BIRCH).
Children and Adult Services,Education,Transport,230008,Contract Hire,13-May-2015,2898916-ED309,"1,568.00",TONYS TAXIS (A BIRCH).
Children and Adult Services,Education,Transport,230008,Contract Hire,13-May-2015,2898916-ED312,"1,088.00",TONYS TAXIS (A BIRCH).
Children and Adult Services,Education,Transport,230008,Contract Hire,13-May-2015,2898917-TS20-30,"1,400.00",TOP STAR TRAVEL.
Children and Adult Services,Education,Transport,230008,Contract Hire,13-May-2015,2898935-082,756.00,WAYSIDE TAXIS.
Children and Adult Services,Education,Transport,230008,Contract Hire,13-May-2015,2898935-083,868.00,WAYSIDE TAXIS.
Children and Adult Services,Education,Transport,230008,Contract Hire,13-May-2015,2898935-084,980.00,WAYSIDE TAXIS.
Children and Adult Services,Education,Transport,230008,Contract Hire,13-May-2015,2898935-085,770.00,WAYSIDE TAXIS.
Children and Adult Services,Education,Transport,230008,Contract Hire,13-May-2015,2898937-PH/APR/15,"3,495.80",WEARDALE MOTOR SERVICES LTD.
Children and Adult Services,Education,Supplies and Services,338094,Services,13-May-2015,2898883-2-2015,"1,710.00",STANLEY COMMUNITY ASSOCIATION.
Children and Adult Services,Education,Supplies and Services,342055,Computers and Communications,13-May-2015,2898575-INV15177,"3,094.00",CAREERSOFT.
Children and Adult Services,Education,Third Party Payments,440999,Other Third Party Payments,13-May-2015,2898581,"3,392.38",CDC ENTERPRISE AGENCY.
Children and Adult Services,Education,Third Party Payments,440999,Other Third Party Payments,13-May-2015,2898604-14/15105,"2,340.52",CORNFORTH PARTNERSHIP.
Children and Adult Services,Education,Construction Work,908105,Construction work,13-May-2015,2898649-NEI-EXP,"1,605.65",ENERGY ASSETS LTD.
Children and Adult Services,Education,Construction Work,908105,Construction work,13-May-2015,2898697-DURH/0624,"368,560.23",INSPIREDSPACES DURHAM LTD.
Children and Adult Services,Education,Vehicles Equipment Furniture and Fittings,912529,Purchase-equipment,13-May-2015,2898929-2793,"6,292.29",UPNORTH FOODSERVICE EQUIPMENT LTD.
Children and Adult Services,Head of Adults,Transport,230005,Contract Hire,13-May-2015,2898507-E15/SS,640.00,AABAT TAXIS.
Children and Adult Services,Head of Adults,Transport,230005,Contract Hire,13-May-2015,2898507-E16/ST,"1,180.00",AABAT TAXIS.
Children and Adult Services,Head of Adults,Transport,230005,Contract Hire,13-May-2015,2898507-E24/LC,552.00,AABAT TAXIS.
Children and Adult Services,Head of Adults,Transport,230005,Contract Hire,13-May-2015,2898518-SAS0415NCL,935.00,AIRPORT CARS DURHAM
Children and Adult Services,Head of Adults,Transport,230005,Contract Hire,13-May-2015,2898544-DCC1APRIL15,"2,750.00",ATLAS TAXIS BISHOP AUCKLAND.
Children and Adult Services,Head of Adults,Transport,230005,Contract Hire,13-May-2015,2898544-DCC3APRIL15,"1,691.00",ATLAS TAXIS BISHOP AUCKLAND.
Children and Adult Services,Head of Adults,Transport,230005,Contract Hire,13-May-2015,2898544-DCC9APRIL15,720.00,ATLAS TAXIS BISHOP AUCKLAND.
Children and Adult Services,Head of Adults,Transport,230005,Contract Hire,13-May-2015,2898610-5263,"2,377.76",CROFT BUSINESS SERVICES (UK) LTD T/A CROFT TAXIS.
Children and Adult Services,Head of Adults,Transport,230005,Contract Hire,13-May-2015,2898610-5307,"2,161.60",CROFT BUSINESS SERVICES (UK) LTD T/A CROFT TAXIS.
Children and Adult Services,Head of Adults,Transport,230005,Contract Hire,13-May-2015,2898740-KW397,700.00,KWIK CABS.
Children and Adult Services,Head of Adults,Transport,230005,Contract Hire,13-May-2015,2898783-543,"1,210.00",MOLLYS TAXIS.
Children and Adult Services,Head of Adults,Transport,230005,Contract Hire,13-May-2015,2898829-01259,525.00,PHILLIPS TAXI GROUP LTD.
Children and Adult Services,Head of Adults,Transport,230005,Contract Hire,13-May-2015,2898916-ED305,756.00,TONYS TAXIS (A BIRCH).
Children and Adult Services,Head of Adults,Supplies and Services,308013,Furniture,13-May-2015,239669-ORDER555318,"1,537.99",DUPLICATE SUPPLIER PLEASE USE 60880 EMMERSONS ARCADE STORES.
Children and Adult Services,Planning & Service Strategy,Employees,040149,Recruitment Instruction and Training,13-May-2015,239723-2543,"15,500.00",THE GOLD STANDARDS FRAMEWORK CENTRE.
Dedicated Schools Grant,Dedicated Schools Grant,Employees,080025,Agency Staff,13-May-2015,2898902-991923,"2,447.15",TEACHING PERSONNEL LTD.
Dedicated Schools Grant,Dedicated Schools Grant,Employees,080025,Agency Staff,13-May-2015,2898902-994850,"2,647.15",TEACHING PERSONNEL LTD.
Dedicated Schools Grant,Dedicated Schools Grant,Employees,080025,Agency Staff,13-May-2015,2898933-142796,575.00,VISION FOR EDUCATION LTD.
Dedicated Schools Grant,Dedicated Schools Grant,Transport,230005,Contract Hire,13-May-2015,2898537-RI0001675464,808.16,ARVAL UK LTD.
Dedicated Schools Grant,Dedicated Schools Grant,Transport,230010,Contract Hire,13-May-2015,2898917-TS14S-30,"1,008.00",TOP STAR TRAVEL.
Dedicated Schools Grant,Dedicated Schools Grant,Transport,230010,Contract Hire,13-May-2015,2898919-14008,820.00,TRAVEL 6.
Dedicated Schools Grant,Dedicated Schools Grant,Transport,230010,Contract Hire,13-May-2015,2898919-15008,770.00,TRAVEL 6.
Dedicated Schools Grant,Dedicated Schools Grant,Supplies and Services,338027,Services,13-May-2015,2898697-DURH/0623,"109,755.00",INSPIREDSPACES DURHAM LTD.
Dedicated Schools Grant,Dedicated Schools Grant,Supplies and Services,338091,Services,13-May-2015,2898904-770,835.00,TEESDALE COMMUNITY RESOURCES (TCR) LTD.
Dedicated Schools Grant,Dedicated Schools Grant,Central Support and Capital,689997,Unclassified,13-May-2015,2898688-CAS-04-2015-120,"15,039.46",HERMITAGE ACADEMY.
Neighbourhood Services,Culture & Sport,Supplies and Services,304337,Equipment and Materials,13-May-2015,2898523-2947,597.65,ALISON BLACK LTD T/A SPORTMAX.
Neighbourhood Services,Culture & Sport,Supplies and Services,384302,Miscellaneous Expenses,13-May-2015,2898815-GT0010,"1,500.00",NICOLA MORRIS.
Neighbourhood Services,Culture & Sport,Supplies and Services,384540,Miscellaneous Expenses,13-May-2015,2898862-3571,525.00,SAVILLS UK LTD.
Neighbourhood Services,Culture & Sport,Supplies and Services,384700,Miscellaneous Expenses,13-May-2015,2898589-NEI-EXP,636.00,CHUNG DO KWAN TAEKWONDO CLUB SPENNYMOOR.
Neighbourhood Services,Direct Services,Employees,040149,Recruitment Instruction and Training,13-May-2015,2898684-OP/I109767,675.00,HARTLEPOOL BUSINESS DEVELOPMENT CENTRE LTD T/A FLAGSHIP TRAINING SOLUTIONS.
Neighbourhood Services,Direct Services,Transport,210057,Repair and Maintenance of Vehicles,13-May-2015,2898550-25155450,581.10,BELL TRUCK SALES LTD.
Neighbourhood Services,Direct Services,Transport,210057,Repair and Maintenance of Vehicles,13-May-2015,2898550-25155581,950.60,BELL TRUCK SALES LTD.
Neighbourhood Services,Direct Services,Transport,210057,Repair and Maintenance of Vehicles,13-May-2015,2898551-25155397,"1,039.72",BELL TRUCK SALES LTD.
Neighbourhood Services,Direct Services,Transport,210057,Repair and Maintenance of Vehicles,13-May-2015,2898625-DE10866598,573.03,DENNIS EAGLE LTD.
Neighbourhood Services,Direct Services,Transport,210057,Repair and Maintenance of Vehicles,13-May-2015,2898690-8171,723.50,HILLCREST AUTO ELECTRICS.
Neighbourhood Services,Direct Services,Supplies and Services,304221,Equipment and Materials,13-May-2015,2898824-XL141114,585.84,PARK ELECTRICAL DISTRIBUTORS LTD.
Neighbourhood Services,Direct Services,Supplies and Services,304221,Equipment and Materials,13-May-2015,2898839-76570,550.00,PROTECTOR SECURITY GROUP LTD.
Neighbourhood Services,Direct Services,Supplies and Services,304259,Equipment and Materials,13-May-2015,2898924-141669,"1,287.14",TUDOR (UK) LTD T/A TUDOR ENVIRONMENTAL.
Neighbourhood Services,Direct Services,Supplies and Services,338027,Services,13-May-2015,2898859-DCC/06,"1,179.50",SANDRA BROCKLEBANK WICKES.
Neighbourhood Services,Direct Services,Third Party Payments,430100,Rendered by Private Contractors,13-May-2015,2898598-8117053,655.79,CLOVER CONTROLS LTD.
Neighbourhood Services,Direct Services,Third Party Payments,430100,Rendered by Private Contractors,13-May-2015,2898625-260714,905.25,DENNIS EAGLE LTD.
Neighbourhood Services,Direct Services,Third Party Payments,430100,Rendered by Private Contractors,13-May-2015,2898652-1440,"1,108.50",F WARREN (ELECTRICAL) LTD.
Neighbourhood Services,Direct Services,Third Party Payments,430100,Rendered by Private Contractors,13-May-2015,2898690-8186,646.80,HILLCREST AUTO ELECTRICS.
Neighbourhood Services,Direct Services,Third Party Payments,430100,Rendered by Private Contractors,13-May-2015,2898945-33870,"14,255.71",YWC GROUP LTD.
Neighbourhood Services,Direct Services,Vehicles Equipment Furniture and Fittings,912541,Purchase-vehicles,13-May-2015,2898857-200339,"24,052.56",S JENNINGS LTD.
Neighbourhood Services,Direct Services,Debtors,930046,Debtor-leasing,13-May-2015,2898857-200323,"23,597.56",S JENNINGS LTD.
Neighbourhood Services,Direct Services,Debtors,930046,Debtor-leasing,13-May-2015,2898857-200364,"23,597.56",S JENNINGS LTD.
Neighbourhood Services,Direct Services,Debtors,930046,Debtor-leasing,13-May-2015,2898857-200390,"23,597.56",S JENNINGS LTD.
Neighbourhood Services,EnvironmentHealth & Consumer Protection,Third Party Payments,430100,Rendered by Private Contractors,13-May-2015,2898634-1138,"1,360.00",DURHAM EQUINE PRACTICE.
Neighbourhood Services,Technical Services,Supplies and Services,304221,Equipment and Materials,13-May-2015,2898514-21315060,"4,053.89",AGGREGATE INDUSTRIES UK LTD.
Neighbourhood Services,Technical Services,Supplies and Services,304221,Equipment and Materials,13-May-2015,2898514-21315061,"6,441.25",AGGREGATE INDUSTRIES UK LTD.
Neighbourhood Services,Technical Services,Supplies and Services,304221,Equipment and Materials,13-May-2015,2898514-21315062,"1,150.71",AGGREGATE INDUSTRIES UK LTD.
Neighbourhood Services,Technical Services,Supplies and Services,304221,Equipment and Materials,13-May-2015,2898514-21315063,"1,056.90",AGGREGATE INDUSTRIES UK LTD.
Neighbourhood Services,Technical Services,Supplies and Services,304221,Equipment and Materials,13-May-2015,2898514-21315064,898.10,AGGREGATE INDUSTRIES UK LTD.
Neighbourhood Services,Technical Services,Supplies and Services,304221,Equipment and Materials,13-May-2015,2898689-IN033565,"2,846.26",HILL & SMITH LTD.
Neighbourhood Services,Technical Services,Supplies and Services,304221,Equipment and Materials,13-May-2015,2898839-76571,550.00,PROTECTOR SECURITY GROUP LTD.
Neighbourhood Services,Technical Services,Supplies and Services,304221,Equipment and Materials,13-May-2015,2898925-148034,"1,164.95",TYNEDALE ROADSTONE LTD.
Neighbourhood Services,Technical Services,Supplies and Services,342051,Computers and Communications,13-May-2015,2898552-47666190,"21,193.53",BENTLEY SYSTEMS INTERNATIONAL LTD.
Neighbourhood Services,Technical Services,Supplies and Services,372009,Subscriptions,13-May-2015,2898867-GB/NN/01981,"8,170.90",SGS UNITED KINGDOM LTD.
Neighbourhood Services,Technical Services,Third Party Payments,430100,Rendered by Private Contractors,13-May-2015,2898726-0167,"15,444.00",JOSHUA THOMAS CONSTRUCTION LTD.
Neighbourhood Services,Technical Services,Third Party Payments,430100,Rendered by Private Contractors,13-May-2015,2898834-133846,"12,288.38",PREMIER TRAFFIC MANAGEMENT LTD.
Neighbourhood Services,Technical Services,Third Party Payments,430100,Rendered by Private Contractors,13-May-2015,2898839-76569,550.00,PROTECTOR SECURITY GROUP LTD.
Neighbourhood Services,Technical Services,Stock,926900,Stock in hand-Inventory system,13-May-2015,2898824-XL141040,"1,423.80",PARK ELECTRICAL DISTRIBUTORS LTD.
Neighbourhood Services,Technical Services,Stock,926900,Stock in hand-Inventory system,13-May-2015,2898824-XL141041,612.81,PARK ELECTRICAL DISTRIBUTORS LTD.
Neighbourhood Services,Technical Services,Stock,926900,Stock in hand-Inventory system,13-May-2015,2898824-XL141046,"3,200.00",PARK ELECTRICAL DISTRIBUTORS LTD.
Neighbourhood Services,Technical Services,Stock,926900,Stock in hand-Inventory system,13-May-2015,2898913-SIP-139615,"1,019.14",THYSSENKRUPP ENCASA A DIVISION OF THYSSENKRUPP ACCESS LTD.
Neighbourhood Services,Technical Services,Creditors,952029,Creditor-returnable bonds,13-May-2015,2898797-NEI-EXP,"3,068.78",REDACTED - PAYMENT TO INDIVIDUAL
Regeneration & Economic Development,Economic Development and Housing,Premises,135005,Water Services,13-May-2015,2898821-302866120011033,"1,309.80",NORTHUMBRIAN WATER LTD.
Regeneration & Economic Development,Economic Development and Housing,Supplies and Services,304259,Equipment and Materials,13-May-2015,2898751-SI032096,570.00,LEWIS`S MEDICAL SUPPLIES.
Regeneration & Economic Development,Economic Development and Housing,Supplies and Services,368008,Incentives to Industrialists,13-May-2015,239712-10103,"5,554.53",SEAHAM HARBOUR CIC.
Regeneration & Economic Development,Economic Development and Housing,Supplies and Services,384700,Miscellaneous Expenses,13-May-2015,239670-RED-05-2015-037,670.00,REDACTED - PAYMENT TO INDIVIDUAL
Regeneration & Economic Development,Economic Development and Housing,Other Expenses,914001,Other capital expenses,13-May-2015,2898921-5006,"18,700.50",TREVOR ATKINSON & CO LTD.
Regeneration & Economic Development,Economic Development and Housing,Cap Exp on Grants & Other Financial Assistance (REFCUS),918401,Capital grants,13-May-2015,2898622-RED-05-2015-049,"4,268.00",DAVID RYAN PLUMBING & MERRYBENT BATHROOMS LTD.
Regeneration & Economic Development,Economic Development and Housing,Cap Exp on Grants & Other Financial Assistance (REFCUS),918501,Exp assets not owned by authority,13-May-2015,2898878-INV01117372,"1,119.48",SOFTCAT LTD.
Regeneration & Economic Development,Spatial Policy Planning Assets & Environment,Supplies and Services,372009,Subscriptions,13-May-2015,2898941-15/010,500.00,WORLD HERITAGE UK.
Regeneration & Economic Development,Strategy Programmes and Performance,Employees,040149,Recruitment Instruction and Training,13-May-2015,2898511-14/6152,835.00,ACAS.
Regeneration & Economic Development,Transport and Contracted Services,Premises,135005,Water Services,13-May-2015,2898821-304203880011016,"2,447.40",NORTHUMBRIAN WATER LTD.
Regeneration & Economic Development,Transport and Contracted Services,Construction Work,908105,Construction work,13-May-2015,2898704-11170,"1,256.99",JACK COUPE & SONS LTD T/A COUPE LINE.
Resources,Centrally Administered Costs,Supplies and Services,372009,Subscriptions,13-May-2015,2898540-1653,"146,659.00",ASSOCIATION OF NORTH EAST COUNCILS LTD.
Resources,Centrally Administered Costs,Third Party Payments,440999,Other Third Party Payments,13-May-2015,2898653-RES-05-2015-192,"50,000.00",FAMILY FUND TRADING LTD.
Resources,Financial Services,Supplies and Services,332029,Printing Stationery and Gen Off Exps,13-May-2015,2898582-CFH002718,"6,051.86",CFH TOTAL DOCUMENT MANAGEMENT LTD.
Resources,Financial Services,Supplies and Services,364999,Grants to Voluntary Organisations,13-May-2015,2898590-CACD104,"110,075.50",CITIZENS ADVICE COUNTY DURHAM.
Resources,Financial Services,Transfer Payments,520002,Housing Benefits,13-May-2015,2898615,687.25,DALE & VALLEY HOMES.
Resources,Financial Services,Transfer Payments,520002,Housing Benefits,13-May-2015,2898633,"2,207.87",DURHAM CITY HOMES LTD.
Resources,Financial Services,Transfer Payments,520002,Housing Benefits,13-May-2015,2898641,"3,142.79",EAST DURHAM HOMES.
Resources,Human Resources,Supplies and Services,384199,Miscellaneous Expenses,13-May-2015,239672-21679,560.00,GATENBY SANDERSON LTD.
Resources,I.C.T. Services,Supplies and Services,304252,Equipment and Materials,13-May-2015,239644-7487,"1,990.00",ALPHATEC 2000 LTD.
Resources,I.C.T. Services,Debtors,930168,Debtor - Mobile Telephone Holding Account,13-May-2015,239666-01178785356,"2,047.84",EE LTD.
Resources,Legal & Democratic Services,Premises,125009,Rents,13-May-2015,2898564-D15171,"3,197.34",BRADLEY HALL CHARTERED SURVEYORS CLIENT ACCOUNT.
Resources,Legal & Democratic Services,Supplies and Services,338025,Services,13-May-2015,2898668-SI53415,500.00,REDACTED - PAYMENT TO INDIVIDUAL
Resources,Legal & Democratic Services,Supplies and Services,338057,Services,13-May-2015,2898852-0000019918,800.00,ROAR FORENSICS LTD.
Resources,Legal & Democratic Services,Supplies and Services,384960,Miscellaneous Expenses,13-May-2015,2898738-INT02/2015,562.00,KLARA MORVAI.
Assistant Chief Executive,Partnerships & Community Engagement Div.,Supplies and Services,384086,Miscellaneous Expenses,14-May-2015,2899420-VOUCHER15NB-WEAR001,"3,000.00",WEARDALE AGRICULTURAL SOCIETY.
Assistant Chief Executive,Partnerships & Community Engagement Div.,Transfer Payments,525030,Other,14-May-2015,2898987-VOUCHER14PH-CHES002,"6,356.00",ASPIRE LEARNING SUPPORT & WELLING CIC.
Assistant Chief Executive,Partnerships & Community Engagement Div.,Cap Exp on Grants & Other Financial Assistance (REFCUS),918004,Contributions to other bodies,14-May-2015,2899085-VOUCHER14NB-BASH025,"3,300.00",DENE VALLEY COMMUNITY PARTNERSHIP.
Assistant Chief Executive,Partnerships & Community Engagement Div.,Cap Exp on Grants & Other Financial Assistance (REFCUS),918004,Contributions to other bodies,14-May-2015,2899109-VOUCHER14AB-4TOG011,"7,000.00",ENTER CIC.
Assistant Chief Executive,Partnerships & Community Engagement Div.,Cap Exp on Grants & Other Financial Assistance (REFCUS),918004,Contributions to other bodies,14-May-2015,2899157-VOUCHER14NB-EDUR024,"6,000.00",HORDEN REGENERATION PARTNERSHIP.
Assistant Chief Executive,Partnerships & Community Engagement Div.,Cap Exp on Grants & Other Financial Assistance (REFCUS),918004,Contributions to other bodies,14-May-2015,2899324-VOUCHER14NB-CHES026,"4,000.00",SACRISTON TABLE TENNIS CLUB.
Assistant Chief Executive,Partnerships & Community Engagement Div.,Cap Exp on Grants & Other Financial Assistance (REFCUS),918004,Contributions to other bodies,14-May-2015,2899357-VOUCHER14NB-MDUR020,"8,465.00",ST JOHNS PCC (MEADOWFIELD).
Children and Adult Services,Childrens Services,Supplies and Services,384999,Miscellaneous Expenses,14-May-2015,2899012-JUL-13,500.00,BRANDON CARRSIDE YOUTH & COMMUNITY PROJECT.
Children and Adult Services,Commissioning inc Supporting People,Supplies and Services,384540,Miscellaneous Expenses,14-May-2015,2898996-339853,"4,953.44",BAUER RADIO LTD.
Children and Adult Services,Commissioning inc Supporting People,Third Party Payments,441001,Supporting People,14-May-2015,2899385-1962239,"19,231.20",THE CYRENIANS LTD.
Children and Adult Services,Education,Transport,230006,Contract Hire,14-May-2015,2898951-8,726.00,A HJ JOBLING T/A CASTLE TAXIS.
Children and Adult Services,Education,Transport,230006,Contract Hire,14-May-2015,2899057-0001482,836.00,COLORS TAXIS LTD.
Children and Adult Services,Education,Transport,230006,Contract Hire,14-May-2015,2899076-5311,693.00,CROFT BUSINESS SERVICES (UK) LTD T/A CROFT TAXIS.
Children and Adult Services,Education,Transport,230006,Contract Hire,14-May-2015,2899076-5312,661.64,CROFT BUSINESS SERVICES (UK) LTD T/A CROFT TAXIS.
Children and Adult Services,Education,Transport,230006,Contract Hire,14-May-2015,2899076-5314,758.16,CROFT BUSINESS SERVICES (UK) LTD T/A CROFT TAXIS.
Children and Adult Services,Education,Transport,230006,Contract Hire,14-May-2015,2899128-008/APR,627.00,GAIL MADDISON T/A CENTRAL TAXIS.
Children and Adult Services,Education,Transport,230006,Contract Hire,14-May-2015,2899232-CMX04-15,"1,085.50",MR CT WALKER T/A COLIN`S TAXIS.
Children and Adult Services,Education,Transport,230007,Contract Hire,14-May-2015,2898998-DJ42260415,"3,360.00",BELL BROTHERS TRAVEL.
Children and Adult Services,Education,Transport,230007,Contract Hire,14-May-2015,2899057-0001480,700.00,COLORS TAXIS LTD.
Children and Adult Services,Education,Transport,230007,Contract Hire,14-May-2015,2899058-6035/04.15,"1,108.00",COLVIN`S CABS.
Children and Adult Services,Education,Transport,230007,Contract Hire,14-May-2015,2899089-15/03,715.00,DMG PRIVATE HIRE.
Children and Adult Services,Education,Transport,230007,Contract Hire,14-May-2015,2899156-012464,"1,000.00",HODGSONS COACH OPERATORS LTD.
Children and Adult Services,Education,Transport,230007,Contract Hire,14-May-2015,2899197-81,"1,680.00",LEE`S COACHES LTD.
Children and Adult Services,Education,Transport,230007,Contract Hire,14-May-2015,2899197-82,"1,743.00",LEE`S COACHES LTD.
Children and Adult Services,Education,Transport,230007,Contract Hire,14-May-2015,2899212-5100,"1,609.60",MAKEPEACE MOTORS.
Children and Adult Services,Education,Transport,230007,Contract Hire,14-May-2015,2899212-5101,"1,437.60",MAKEPEACE MOTORS.
Children and Adult Services,Education,Transport,230007,Contract Hire,14-May-2015,2899212-5102,"1,544.89",MAKEPEACE MOTORS.
Children and Adult Services,Education,Transport,230007,Contract Hire,14-May-2015,2899284-26A,560.00,PETER HOLMES T/A PETERS TAXIS.
Children and Adult Services,Education,Transport,230007,Contract Hire,14-May-2015,2899360-13732,"1,246.00",STANLEY TRAVEL (NORTH EAST) LTD.
Children and Adult Services,Education,Transport,230007,Contract Hire,14-May-2015,2899360-13733,"1,540.00",STANLEY TRAVEL (NORTH EAST) LTD.
Children and Adult Services,Education,Transport,230007,Contract Hire,14-May-2015,2899360-13743,"1,428.00",STANLEY TRAVEL (NORTH EAST) LTD.
Children and Adult Services,Education,Transport,230007,Contract Hire,14-May-2015,2899404-066,560.00,TRUDY`S.
Children and Adult Services,Education,Transport,230008,Contract Hire,14-May-2015,2899044-24/2015,"1,240.00",CHRIS`S TAXI.
Children and Adult Services,Education,Transport,230008,Contract Hire,14-May-2015,2899053-15-SC07,780.00,CLUBMAN CABS.
Children and Adult Services,Education,Transport,230008,Contract Hire,14-May-2015,2899056-E042/0415,"1,657.50",COLIN FRANKS T/A FRANKS COACHES.
Children and Adult Services,Education,Transport,230008,Contract Hire,14-May-2015,2899057-0001481,630.00,COLORS TAXIS LTD.
Children and Adult Services,Education,Transport,230008,Contract Hire,14-May-2015,2899076-5304,"1,942.36",CROFT BUSINESS SERVICES (UK) LTD T/A CROFT TAXIS.
Children and Adult Services,Education,Transport,230008,Contract Hire,14-May-2015,2899076-5318,"1,236.51",CROFT BUSINESS SERVICES (UK) LTD T/A CROFT TAXIS.
Children and Adult Services,Education,Transport,230008,Contract Hire,14-May-2015,2899079-ITSAPR1501,"1,400.00",DALELINK PRIVATE HIRE.
Children and Adult Services,Education,Transport,230008,Contract Hire,14-May-2015,2899080-79,992.00,DAVES TAXIS.
Children and Adult Services,Education,Transport,230008,Contract Hire,14-May-2015,2899131-5585,"1,192.00",GATESHEAD CENTRAL TAXIS LTD.
Children and Adult Services,Education,Transport,230008,Contract Hire,14-May-2015,2899139-W082/030,"1,064.00",GMC TAXIS NORTH EAST.
Children and Adult Services,Education,Transport,230008,Contract Hire,14-May-2015,2899139-W084/090,"1,160.00",GMC TAXIS NORTH EAST.
Children and Adult Services,Education,Transport,230008,Contract Hire,14-May-2015,2899162-IR1504005,"1,960.00",I & R EXECUTIVE TRAVEL.
Children and Adult Services,Education,Transport,230008,Contract Hire,14-May-2015,2899162-IR1504006,"1,120.00",I & R EXECUTIVE TRAVEL.
Children and Adult Services,Education,Transport,230008,Contract Hire,14-May-2015,2899172-0008,550.00,JA SHORT.
Children and Adult Services,Education,Transport,230008,Contract Hire,14-May-2015,2899176-2388,"1,770.44",JEFF ANDERSON COACHES LTD.
Children and Adult Services,Education,Transport,230008,Contract Hire,14-May-2015,2899179-JK9,"1,230.00",JK TAXIS.
Children and Adult Services,Education,Transport,230008,Contract Hire,14-May-2015,2899222-04/2015,500.00,MICHAEL PUNTON.
Children and Adult Services,Education,Transport,230008,Contract Hire,14-May-2015,2899233-DSR/04/15,900.00,MR J AGAR T/A PARK TAXIS.
Children and Adult Services,Education,Transport,230008,Contract Hire,14-May-2015,2899239-515,750.00,MR S BALL T/A ABBIE`S TAXIS..
Children and Adult Services,Education,Transport,230008,Contract Hire,14-May-2015,2899240-2853/APR,"1,182.00",MR S BOWERS.
Children and Adult Services,Education,Transport,230008,Contract Hire,14-May-2015,2899280-SC-034,"1,190.00",PAUL BURRELL T/A PAUL BURRELL TAXIS.
Children and Adult Services,Education,Transport,230008,Contract Hire,14-May-2015,2899287-0368,"1,260.00",PETER`S PRIVATE HIRE/PETER BEST.
Children and Adult Services,Education,Transport,230008,Contract Hire,14-May-2015,2899287-0369,784.00,PETER`S PRIVATE HIRE/PETER BEST.
Children and Adult Services,Education,Transport,230008,Contract Hire,14-May-2015,2899289-707,"2,254.00",PG TRIPS.
Children and Adult Services,Education,Transport,230008,Contract Hire,14-May-2015,2899294-1076,"1,014.00",PODA LTD.
Children and Adult Services,Education,Transport,230008,Contract Hire,14-May-2015,2899306-13108,"1,056.00",READYPAY LTD T/A PHOENIX TAXIS.
Children and Adult Services,Education,Transport,230008,Contract Hire,14-May-2015,2899360-13734,975.20,STANLEY TRAVEL (NORTH EAST) LTD.
Children and Adult Services,Education,Transport,230008,Contract Hire,14-May-2015,2899360-13736,632.00,STANLEY TRAVEL (NORTH EAST) LTD.
Children and Adult Services,Education,Transport,230008,Contract Hire,14-May-2015,2899360-13737,966.00,STANLEY TRAVEL (NORTH EAST) LTD.
Children and Adult Services,Education,Transport,230008,Contract Hire,14-May-2015,2899360-13738,546.00,STANLEY TRAVEL (NORTH EAST) LTD.
Children and Adult Services,Education,Transport,230008,Contract Hire,14-May-2015,2899360-13739,658.00,STANLEY TRAVEL (NORTH EAST) LTD.
Children and Adult Services,Education,Transport,230008,Contract Hire,14-May-2015,2899360-13740,726.60,STANLEY TRAVEL (NORTH EAST) LTD.
Children and Adult Services,Education,Transport,230008,Contract Hire,14-May-2015,2899361-DCC008/A032,"1,404.00",STEPHEN COXON.
Children and Adult Services,Education,Transport,230008,Contract Hire,14-May-2015,2899361-DCC008/A035,"1,012.00",STEPHEN COXON.
Children and Adult Services,Education,Transport,230008,Contract Hire,14-May-2015,2899404-061-30/4/15,656.00,TRUDY`S.
Children and Adult Services,Education,Transport,230009,Contract Hire,14-May-2015,2899360-13741,"1,300.00",STANLEY TRAVEL (NORTH EAST) LTD.
Children and Adult Services,Education,Transport,230010,Contract Hire,14-May-2015,2899232-MEAD04-15,"1,767.50",MR CT WALKER T/A COLIN`S TAXIS.
Children and Adult Services,Education,Supplies and Services,338089,Services,14-May-2015,2899015-016/15,500.00,BRUCE DAVIES.
Children and Adult Services,Education,Supplies and Services,338099,Services,14-May-2015,2899227-1948,"2,000.00",MORE PARTNERSHIP LTD.
Children and Adult Services,Education,Supplies and Services,342055,Computers and Communications,14-May-2015,2899030-87694,540.00,CASCAID LTD.
Children and Adult Services,Education,Supplies and Services,384199,Miscellaneous Expenses,14-May-2015,2899197-21833,868.00,LEE`S COACHES LTD.
Children and Adult Services,Education,Supplies and Services,384199,Miscellaneous Expenses,14-May-2015,2899197-21834,"1,478.00",LEE`S COACHES LTD.
Children and Adult Services,Education,Supplies and Services,384199,Miscellaneous Expenses,14-May-2015,2899197-21835,"1,277.00",LEE`S COACHES LTD.
Children and Adult Services,Education,Supplies and Services,384199,Miscellaneous Expenses,14-May-2015,2899197-21836,989.00,LEE`S COACHES LTD.
Children and Adult Services,Education,Third Party Payments,440999,Other Third Party Payments,14-May-2015,2899026-018,951.32,CAPITAL 4 TRAINING LTD
Children and Adult Services,Education,Third Party Payments,440999,Other Third Party Payments,14-May-2015,2899026-019,860.86,CAPITAL 4 TRAINING LTD
Children and Adult Services,Education,Third Party Payments,440999,Other Third Party Payments,14-May-2015,2899026-020,"17,796.52",CAPITAL 4 TRAINING LTD
Children and Adult Services,Education,Construction Work,908105,Construction work,14-May-2015,2899326-1824,"3,600.00",SAFE STRIP UK LTD.
Children and Adult Services,Head of Adults,Premises,125009,Rents,14-May-2015,2899087-REIN/00000174,"1,500.00",DERWENTSIDE HOMES LTD.
Children and Adult Services,Head of Adults,Transport,230005,Contract Hire,14-May-2015,2898953-E22/DC,712.00,AABAT TAXIS.
Children and Adult Services,Head of Adults,Transport,230005,Contract Hire,14-May-2015,2899146-020-30/4/15,572.00,GS PEARSON.
Children and Adult Services,Head of Adults,Transport,230005,Contract Hire,14-May-2015,2899162-IR1504008,"1,100.00",I & R EXECUTIVE TRAVEL.
Children and Adult Services,Head of Adults,Transport,230005,Contract Hire,14-May-2015,2899360-13747,539.00,STANLEY TRAVEL (NORTH EAST) LTD.
Children and Adult Services,Head of Adults,Transport,230005,Contract Hire,14-May-2015,2899361-DCC072/SLD005,"1,106.00",STEPHEN COXON.
Children and Adult Services,Head of Adults,Third Party Payments,478101,Purchase of Care,14-May-2015,2899059-421R103079,"3,832.92",COMMUNITY INTEGRATED CARE LTD.
Children and Adult Services,Planning & Service Strategy,Supplies and Services,384540,Miscellaneous Expenses,14-May-2015,2898996-340476,500.00,BAUER RADIO LTD.
Children and Adult Services,Public Health,Third Party Payments,460802,Contract Payments,14-May-2015,2899039-A83050,"4,150.00",CESTRIA HEALTH CENTRE.
Children and Adult Services,Public Health,Third Party Payments,460803,Contract Payments,14-May-2015,2899001-FVF01/FEB/15,590.00,BESTWAY NATIONAL CHEMIST LTD T/A WELL.
Children and Adult Services,Public Health,Third Party Payments,460803,Contract Payments,14-May-2015,2899009-FCH78/MAR15,521.00,BOOTS THE CHEMISTS LTD.
Children and Adult Services,Public Health,Third Party Payments,460803,Contract Payments,14-May-2015,2899316-FL345,620.00,ROBERTS & ROBERTS LTD T/A HIGGINBOTTOM PHARMACY.
Dedicated Schools Grant,Dedicated Schools Grant,Transport,230010,Contract Hire,14-May-2015,2898953-E18/SW,672.00,AABAT TAXIS.
Dedicated Schools Grant,Dedicated Schools Grant,Transport,230010,Contract Hire,14-May-2015,2899053-15-SC06,720.00,CLUBMAN CABS.
Dedicated Schools Grant,Dedicated Schools Grant,Transport,230010,Contract Hire,14-May-2015,2899076-5316,625.52,CROFT BUSINESS SERVICES (UK) LTD T/A CROFT TAXIS.
Dedicated Schools Grant,Dedicated Schools Grant,Transport,230010,Contract Hire,14-May-2015,2899188-00614,"1,190.00",KENNAS CABS.
Dedicated Schools Grant,Dedicated Schools Grant,Transport,230010,Contract Hire,14-May-2015,2899195-3B,"1,000.00",L & R PRIVATE HIRE.
Dedicated Schools Grant,Dedicated Schools Grant,Third Party Payments,440080,Other Third Party Payments,14-May-2015,2899111-7396,"10,897.38",ESPA LTD.
Dedicated Schools Grant,Dedicated Schools Grant,Transfer Payments,510034,School Children,14-May-2015,2898956-RES-04-2015-097,"1,450.00",ACRE RIGG ACADEMY.
Dedicated Schools Grant,Dedicated Schools Grant,Transfer Payments,510034,School Children,14-May-2015,2898966-RES-04-2015-111,"1,190.00",ALVERTON COMMUNITY PRIMARY SCHOOL
Dedicated Schools Grant,Dedicated Schools Grant,Transfer Payments,510034,School Children,14-May-2015,2899014-RES-04-2015-098,"1,830.00",BROWNEY PRIMARY ACADEMY.
Dedicated Schools Grant,Dedicated Schools Grant,Transfer Payments,510034,School Children,14-May-2015,2899099-RES-04-2015-109,610.00,EASINGTON LANE PRIMARY SCHOOL.
Dedicated Schools Grant,Dedicated Schools Grant,Transfer Payments,510034,School Children,14-May-2015,2899113-RES-04-2015-099,"1,000.00",EXCEL ACADEMY PARTNERSHIP T/A FRAMWELLGATE SCH DURHAM.
Dedicated Schools Grant,Dedicated Schools Grant,Transfer Payments,510034,School Children,14-May-2015,2899137-RES-04-2015-100,"2,350.00",GLENDENE ARTS ACADEMY.
Dedicated Schools Grant,Dedicated Schools Grant,Transfer Payments,510034,School Children,14-May-2015,2899153-RES-04-2015-106,"1,610.00",HERMITAGE ACADEMY.
Dedicated Schools Grant,Dedicated Schools Grant,Transfer Payments,510034,School Children,14-May-2015,2899279-RES-04-2015-101,"1,190.00",PARK VIEW ACADEMY.
Dedicated Schools Grant,Dedicated Schools Grant,Transfer Payments,510034,School Children,14-May-2015,2899311-RES-04-2015-102,"1,220.00",RIBBON ACADEMY TRUST.
Dedicated Schools Grant,Dedicated Schools Grant,Transfer Payments,510034,School Children,14-May-2015,2899355-RES-04-2015-103,"2,210.00",ST BEDES CATHOLIC ACADEMY (LANCHESTER).
Dedicated Schools Grant,Dedicated Schools Grant,Transfer Payments,510034,School Children,14-May-2015,2899363-RES-04-2015-104,"2,350.00",STEPHENSON WAY COMMUNITY PRIMARY SCHOOL.
Dedicated Schools Grant,Dedicated Schools Grant,Transfer Payments,510034,School Children,14-May-2015,2899383-RES-04-2015-105,"1,850.00",THE ACADEMY AT SHOTTON HALL.
Dedicated Schools Grant,Dedicated Schools Grant,Transfer Payments,510034,School Children,14-May-2015,2899430-RES-04-2015-107,"1,630.00",WOODHAM ACADEMY.
Dedicated Schools Grant,Dedicated Schools Grant,Central Support and Capital,689997,Unclassified,14-May-2015,2898956-CAS-04-2015-111,"10,284.76",ACRE RIGG ACADEMY.
Dedicated Schools Grant,Dedicated Schools Grant,Central Support and Capital,689997,Unclassified,14-May-2015,2899051-CAS-04-2015-115,"16,380.63",CLEVES CROSS ACADEMY.
Dedicated Schools Grant,Dedicated Schools Grant,Central Support and Capital,689997,Unclassified,14-May-2015,2899098-CAS-04-2015-127,"14,456.08",EASINGTON ACADEMY.
Dedicated Schools Grant,Dedicated Schools Grant,Central Support and Capital,689997,Unclassified,14-May-2015,2899113-CAS-04-2015-124,"1,166.77",EXCEL ACADEMY PARTNERSHIP T/A FRAMWELLGATE SCH DURHAM.
Dedicated Schools Grant,Dedicated Schools Grant,Central Support and Capital,689997,Unclassified,14-May-2015,2899113-CAS-04-2015-125,"2,210.88",EXCEL ACADEMY PARTNERSHIP T/A FRAMWELLGATE SCH DURHAM.
Dedicated Schools Grant,Dedicated Schools Grant,Central Support and Capital,689997,Unclassified,14-May-2015,2899192-CAS-04-2015-123,"9,448.06",KING JAMES I ACADEMY.
Dedicated Schools Grant,Dedicated Schools Grant,Central Support and Capital,689997,Unclassified,14-May-2015,2899254-CAS-04-2015-118,"14,643.82",NEW COLLEGE ACADEMIES TRUST - CONSETT ACADEMY.
Dedicated Schools Grant,Dedicated Schools Grant,Central Support and Capital,689997,Unclassified,14-May-2015,2899279-CAS-04-2015-119,"8,494.70",PARK VIEW ACADEMY.
Dedicated Schools Grant,Dedicated Schools Grant,Central Support and Capital,689997,Unclassified,14-May-2015,2899311-CAS-04-2015-117,"25,440.29",RIBBON ACADEMY TRUST.
Dedicated Schools Grant,Dedicated Schools Grant,Central Support and Capital,689997,Unclassified,14-May-2015,2899355-CAS-04-2015-128,"8,879.97",ST BEDES CATHOLIC ACADEMY (LANCHESTER).
Dedicated Schools Grant,Dedicated Schools Grant,Central Support and Capital,689997,Unclassified,14-May-2015,2899359-CAS-04-2015-121,"2,850.81",STAINDROP SCHOOL.
Dedicated Schools Grant,Dedicated Schools Grant,Central Support and Capital,689997,Unclassified,14-May-2015,2899363-CAS-04-2015-113,"24,471.75",STEPHENSON WAY COMMUNITY PRIMARY SCHOOL.
Dedicated Schools Grant,Dedicated Schools Grant,Central Support and Capital,689997,Unclassified,14-May-2015,2899363-CAS-04-2015-114,"5,717.84",STEPHENSON WAY COMMUNITY PRIMARY SCHOOL.
Dedicated Schools Grant,Dedicated Schools Grant,Central Support and Capital,689997,Unclassified,14-May-2015,2899383-CAS-04-2015-126,"8,254.07",THE ACADEMY AT SHOTTON HALL.
Dedicated Schools Grant,Dedicated Schools Grant,Central Support and Capital,689997,Unclassified,14-May-2015,2899394-CAS-04-2015-116,"9,449.15",THE SHOTTON HALL LEARNING TRUST.
Dedicated Schools Grant,Dedicated Schools Grant,Central Support and Capital,689997,Unclassified,14-May-2015,2899413-CAS-04-2015-112,"1,794.25",VICTORIA LANE ACADEMY.
Dedicated Schools Grant,Dedicated Schools Grant,Central Support and Capital,689997,Unclassified,14-May-2015,2899430-CAS-04-2015-122,738.80,WOODHAM ACADEMY.
Neighbourhood Services,Culture & Sport,Supplies and Services,304252,Equipment and Materials,14-May-2015,2898971-17425,"1,574.92",APPLIED TRADING LTD.
Neighbourhood Services,Culture & Sport,Supplies and Services,308011,Furniture,14-May-2015,2899145-3744152,565.80,GRESSWELL.
Neighbourhood Services,Direct Services,Employees,057109,Insurance and Medical fees,14-May-2015,2899193-RES-05-2015-203,520.00,KRH SMITH CONSULTING LTD.
Neighbourhood Services,Direct Services,Transport,230005,Contract Hire,14-May-2015,2899136-10084,"1,827.00",GEORGE VARDY HAULAGE.
Neighbourhood Services,Direct Services,Transport,230005,Contract Hire,14-May-2015,2899402-12200,800.00,TRASH UK LTD.
Neighbourhood Services,Direct Services,Transport,230005,Contract Hire,14-May-2015,2899402-12201,800.00,TRASH UK LTD.
Neighbourhood Services,Direct Services,Transport,230005,Contract Hire,14-May-2015,2899417-66399,604.20,WARREN ACCESS LTD.
Neighbourhood Services,Direct Services,Transport,230005,Contract Hire,14-May-2015,2899417-66400,685.00,WARREN ACCESS LTD.
Neighbourhood Services,Direct Services,Supplies and Services,304221,Equipment and Materials,14-May-2015,2899144-06/553473,"1,379.92",GREENHAM TRADING LTD.
Neighbourhood Services,Direct Services,Supplies and Services,304221,Equipment and Materials,14-May-2015,2899288-217086,615.03,PEW ELECTRICAL DISTRIBUTORS LTD.
Neighbourhood Services,Direct Services,Supplies and Services,304221,Equipment and Materials,14-May-2015,2899298-151571,"1,374.20",POWRMATIC LTD.
Neighbourhood Services,Direct Services,Supplies and Services,304221,Equipment and Materials,14-May-2015,2899428-21991988,"1,511.94",WOLSELEY UK LTD.
Neighbourhood Services,Direct Services,Supplies and Services,304221,Equipment and Materials,14-May-2015,2899432-111852/M,"3,876.24",WYBONE LTD.
Neighbourhood Services,Direct Services,Supplies and Services,304252,Equipment and Materials,14-May-2015,2899129-007047282,"2,026.00",GAP GROUP LTD.
Neighbourhood Services,Direct Services,Supplies and Services,338066,Services,14-May-2015,2899367-5386,"1,090.00",STUART WRIGHT FUNERAL SERVICE LTD.
Neighbourhood Services,Direct Services,Third Party Payments,430100,Rendered by Private Contractors,14-May-2015,2899029-36539,848.43,CARPETTIME LTD.
Neighbourhood Services,Direct Services,Third Party Payments,430100,Rendered by Private Contractors,14-May-2015,2899029-36559,"1,274.65",CARPETTIME LTD.
Neighbourhood Services,Direct Services,Third Party Payments,430100,Rendered by Private Contractors,14-May-2015,2899295-2109,"32,775.00",POLY ADVISORY SERVICES LTD.
Neighbourhood Services,Direct Services,Third Party Payments,430100,Rendered by Private Contractors,14-May-2015,2899326-1840,"1,071.68",SAFE STRIP UK LTD.
Neighbourhood Services,Direct Services,Third Party Payments,430100,Rendered by Private Contractors,14-May-2015,2899332-9140011918,"4,995.00",SCHIEDEL CHIMNEY SYSTEMS LTD.
Neighbourhood Services,Projects and Business services,Supplies and Services,344033,Telephones,14-May-2015,2898992-11494113,"7,000.00",AZZURRI COMMUNICATIONS LTD.
Neighbourhood Services,Projects and Business services,Third Party Payments,430103,Rendered by Private Contractors,14-May-2015,2899381-NEI-EXP,"6,059.91",TEESDALE CONSERVATION VOLUNTEERS.
Neighbourhood Services,Technical Services,Employees,080025,Agency Staff,14-May-2015,2898959-28218177,"1,368.00",AECOM LTD.
Neighbourhood Services,Technical Services,Supplies and Services,304221,Equipment and Materials,14-May-2015,2898962-21321404,"5,052.36",AGGREGATE INDUSTRIES UK LTD.
Neighbourhood Services,Technical Services,Supplies and Services,304221,Equipment and Materials,14-May-2015,2898962-21321405,"1,014.49",AGGREGATE INDUSTRIES UK LTD.
Neighbourhood Services,Technical Services,Supplies and Services,304221,Equipment and Materials,14-May-2015,2898962-21321406,"1,184.86",AGGREGATE INDUSTRIES UK LTD.
Neighbourhood Services,Technical Services,Supplies and Services,304221,Equipment and Materials,14-May-2015,2899181-00100030,"3,817.92",JOBLING PURSER LTD.
Neighbourhood Services,Technical Services,Supplies and Services,304221,Equipment and Materials,14-May-2015,2899365-071526,"1,195.92",STONEGRAVE AGGREGATES LTD.
Neighbourhood Services,Technical Services,Supplies and Services,304221,Equipment and Materials,14-May-2015,2899399-26013,630.00,TODDS HIGHWAY MAINTENANCE LTD.
Neighbourhood Services,Technical Services,Supplies and Services,304221,Equipment and Materials,14-May-2015,2899426-7129,600.00,WILF HUSBAND PLANT HIRE.
Neighbourhood Services,Technical Services,Supplies and Services,304221,Equipment and Materials,14-May-2015,2899426-7130,550.00,WILF HUSBAND PLANT HIRE.
Neighbourhood Services,Technical Services,Supplies and Services,304221,Equipment and Materials,14-May-2015,2899426-7132,"2,112.00",WILF HUSBAND PLANT HIRE.
Neighbourhood Services,Technical Services,Supplies and Services,304252,Equipment and Materials,14-May-2015,2899129-007047247,510.75,GAP GROUP LTD.
Neighbourhood Services,Technical Services,Supplies and Services,304252,Equipment and Materials,14-May-2015,2899129-007047277,"2,710.00",GAP GROUP LTD.
Neighbourhood Services,Technical Services,Supplies and Services,304252,Equipment and Materials,14-May-2015,2899129-007047278,"1,072.50",GAP GROUP LTD.
Neighbourhood Services,Technical Services,Supplies and Services,304358,Equipment and Materials,14-May-2015,2899136-10072,"1,332.00",GEORGE VARDY HAULAGE.
Neighbourhood Services,Technical Services,Supplies and Services,304358,Equipment and Materials,14-May-2015,2899136-10074,538.00,GEORGE VARDY HAULAGE.
Neighbourhood Services,Technical Services,Supplies and Services,304358,Equipment and Materials,14-May-2015,2899170-0035,"1,280.00",J & JG GILL & SONS LTD.
Neighbourhood Services,Technical Services,Supplies and Services,304358,Equipment and Materials,14-May-2015,2899170-0036,"1,800.00",J & JG GILL & SONS LTD.
Neighbourhood Services,Technical Services,Supplies and Services,304358,Equipment and Materials,14-May-2015,2899437-4828,"1,037.25",YOULL CONSTRUCTION LTD.
Neighbourhood Services,Technical Services,Third Party Payments,430100,Rendered by Private Contractors,14-May-2015,2899299-133712,"9,687.48",PREMIER TRAFFIC MANAGEMENT LTD.
Neighbourhood Services,Technical Services,Third Party Payments,460350,Contract Payments,14-May-2015,2899212-5111,"1,181.00",MAKEPEACE MOTORS.
Neighbourhood Services,Technical Services,Third Party Payments,460350,Contract Payments,14-May-2015,2899212-5112,"1,181.00",MAKEPEACE MOTORS.
Neighbourhood Services,Technical Services,Third Party Payments,460351,Contract Payments,14-May-2015,2899262-032807,732.12,NORTHERN DISPOSAL SERVICES LTD.
Neighbourhood Services,Technical Services,Construction Work,908105,Construction work,14-May-2015,2899326-1884,"7,406.72",SAFE STRIP UK LTD.
Neighbourhood Services,Technical Services,Construction Work,908108,Capital - Surface Dressing,14-May-2015,2899191-15292,"280,815.10",KIELY BROS LTD.
Neighbourhood Services,Technical Services,Stock,926900,Stock in hand-Inventory system,14-May-2015,2899027-851501095,620.00,CARLISLE CONSTRUCTION MATERIALS LTD.
Neighbourhood Services,Technical Services,Stock,926900,Stock in hand-Inventory system,14-May-2015,2899027-851501096,"2,644.00",CARLISLE CONSTRUCTION MATERIALS LTD.
Neighbourhood Services,Technical Services,Stock,926900,Stock in hand-Inventory system,14-May-2015,2899040-69233,"1,911.10",CHANTER BIOMED UK LTD.
Neighbourhood Services,Technical Services,Stock,926900,Stock in hand-Inventory system,14-May-2015,2899120-OP/I287613,924.00,FLEMING & CO (MACHINERY) LTD.
Neighbourhood Services,Technical Services,Stock,926900,Stock in hand-Inventory system,14-May-2015,2899120-OP/I287620,737.76,FLEMING & CO (MACHINERY) LTD.
Neighbourhood Services,Technical Services,Stock,926900,Stock in hand-Inventory system,14-May-2015,2899161-090134,"3,094.00",HYDRAM ENGINEERING LTD.
Neighbourhood Services,Technical Services,Stock,926900,Stock in hand-Inventory system,14-May-2015,2899164-485760,"2,424.80",INSTARMAC GROUP PLC.
Neighbourhood Services,Technical Services,Stock,926900,Stock in hand-Inventory system,14-May-2015,2899411-INV030701,"90,500.00",URBIS SCHREDER LTD.
Neighbourhood Services,Technical Services,Stock,926900,Stock in hand-Inventory system,14-May-2015,2899428-21991991,"3,865.63",WOLSELEY UK LTD.
Neighbourhood Services,Technical Services,Stock,926900,Stock in hand-Inventory system,14-May-2015,2899428-21991994,790.56,WOLSELEY UK LTD.
Neighbourhood Services,Technical Services,Stock,926900,Stock in hand-Inventory system,14-May-2015,2899428-21992002,835.68,WOLSELEY UK LTD.
Neighbourhood Services,Technical Services,Stock,926900,Stock in hand-Inventory system,14-May-2015,2899428-21992005,650.00,WOLSELEY UK LTD.
RED HRA,Housing Revenue Account,Supplies and Services,338066,Services,14-May-2015,2899252,"70,927.98",NEPRO LTD.
RED HRA,Housing Revenue Account,Supplies and Services,360099,Insurances,14-May-2015,2899215-6514337,"313,866.00",MARSH LTD UK.
RED HRA,Housing Revenue Account,Supplies and Services,360099,Insurances,14-May-2015,2899215-6514342,"24,000.00",MARSH LTD UK.
